Capital or Revenue,Directorate,Transaction Number,Date,Service Area,Expenses Type,Amount,Supplier Name,
Revenue,Managing Director & Head of Paid Service,5105612552,04.02.2015,Public Health Core,Professional Services,"5,600.00",REDACTED PERSONAL DATA,
Revenue,Head of ASC & Community Wellbeing,5105614172,18.02.2015,Warm Homes Healthy People DoH,Operational Equipment,409.70,REDACTED PERSONAL DATA,
Revenue,Director of Childrens Services,5105614230,18.02.2015,Old Cowes Enterprise College,Minor Works,900.00,REDACTED PERSONAL DATA,
Revenue,Director of Childrens Services,5105615549,25.02.2015,Old Cowes Enterprise College,Security of Buildings,610.00,REDACTED PERSONAL DATA,
Revenue,Director of Childrens Services,5105615549,25.02.2015,Old Cowes Enterprise College,Security of Buildings,50.00,REDACTED PERSONAL DATA,
Revenue,Director of Childrens Services,5105615549,25.02.2015,Sandham Middle School Disposal,Security of Buildings,620.00,REDACTED PERSONAL DATA,
Revenue,Director of Childrens Services,5105615549,25.02.2015,Sandham Middle School Disposal,Security of Buildings,50.00,REDACTED PERSONAL DATA,
Revenue,Director of Childrens Services,5105615549,25.02.2015,Hunnyhill Primary School Disposal,Security of Buildings,310.00,REDACTED PERSONAL DATA,
Revenue,Head of HR & Organisational Change,5105616958,27.02.2015,"Westridge, Ryde",Security of Buildings,25.00,REDACTED PERSONAL DATA,
Revenue,Head of Economy & Tourism,5105616958,27.02.2015,Ryde Depot,Security of Buildings,100.00,REDACTED PERSONAL DATA,
Revenue,Director of Childrens Services,5105616958,27.02.2015,Old Cowes Enterprise College,Security of Buildings,300.00,REDACTED PERSONAL DATA,
Revenue,Director of Childrens Services,5105616958,27.02.2015,Gatten & Lake Primary School Disposal,Security of Buildings,600.00,REDACTED PERSONAL DATA,
Revenue,Head of HR & Organisational Change,5105616958,27.02.2015,Somerton Industrial Park,Security of Buildings,100.00,REDACTED PERSONAL DATA,
Revenue,Head of Economy & Tourism,5105616958,27.02.2015,Church View Ventnor,Security of Buildings,135.00,REDACTED PERSONAL DATA,
Revenue,Head of Economy & Tourism,5105616958,27.02.2015,Non-operational buildings,Security of Buildings,100.00,REDACTED PERSONAL DATA,
Revenue,Head of Economy & Tourism,5105616958,27.02.2015,Medina Adult Training Centre Empty Costs,Security of Buildings,200.00,REDACTED PERSONAL DATA,
Revenue,Head of Economy & Tourism,5105616958,27.02.2015,Non-operational buildings,Security of Buildings,100.00,REDACTED PERSONAL DATA,
Revenue,Head of Economy & Tourism,5105616958,27.02.2015,Carisbrooke Contact Centre,Security of Buildings,100.00,REDACTED PERSONAL DATA,
Revenue,Director of Childrens Services,5105616958,27.02.2015,Youth- Shorwell,Security of Buildings,100.00,REDACTED PERSONAL DATA,
Revenue,Director of Childrens Services,5105616958,27.02.2015,Youth- Cowes,Security of Buildings,100.00,REDACTED PERSONAL DATA,
Revenue,Head of Economy & Tourism,5105616958,27.02.2015,York Centre E Cowes,Security of Buildings,100.00,REDACTED PERSONAL DATA,
Revenue,Director of Childrens Services,5105616958,27.02.2015,Youth- Ryde  (Well St),Security of Buildings,100.00,REDACTED PERSONAL DATA,
Revenue,Director of Childrens Services,5105616958,27.02.2015,Youth- Sandown/Lake,Security of Buildings,100.00,REDACTED PERSONAL DATA,
Revenue,Head of Economy & Tourism,5105616958,27.02.2015,Shared Ownership,Security of Buildings,100.00,REDACTED PERSONAL DATA,
Revenue,Head of ASC & Community Wellbeing,5105614171,18.02.2015,Seagulls,Maintenance of Operational Equipment,35.00,CHRIS' DOMESTIC SERVICES,
Revenue,Director of Childrens Services,5105616549,25.02.2015,Accreditation Centre,Training,474.00,REDACTED PERSONAL DATA,
Revenue,Managing Director & Head of Paid Service,5105617017,27.02.2015,Drug Misuse - Adults,Payment to Private Contractors,195.00,REDACTED PERSONAL DATA,
Revenue,Head of Planning & Regulatory Services,5105612455,04.02.2015,East Wight Landscape Partnership-Development,Consultants Fees,"1,832.39",REDACTED PERSONAL DATA,
Revenue,Head of Economy & Tourism,5105616969,27.02.2015,Off-Street Parking Operations,Vehicle Maintenance Costs,55.00,ISLANDWIDE WINDSCREENS,
Revenue,Head of Planning & Regulatory Services,5105617058,27.02.2015,A.O.N.B.,Consultants Fees,"1,457.56",REDACTED PERSONAL DATA,
Revenue,Head of Planning & Regulatory Services,5105617058,27.02.2015,A.O.N.B.,Consultants Fees,"2,500.00",REDACTED PERSONAL DATA,
Revenue,Managing Director & Head of Paid Service,5105615248,20.02.2015,Nutrition Initiatives,Publications,100.00,REDACTED PERSONAL DATA,
Revenue,Managing Director & Head of Paid Service,5105617100,27.02.2015,Nutrition Initiatives,Publications,183.45,REDACTED PERSONAL DATA,
Revenue,Director of Childrens Services,5105612538,04.02.2015,Accreditation Centre,Training,104.00,REDACTED PERSONAL DATA,
Revenue,Director of Childrens Services,5105616371,25.02.2015,Accreditation Centre,Training,88.00,REDACTED PERSONAL DATA,
Revenue,Director of Childrens Services,5105612538,04.02.2015,Accreditation Centre,Training,64.00,REDACTED PERSONAL DATA,
Revenue,Director of Childrens Services,5105616371,25.02.2015,Accreditation Centre,Training,64.00,REDACTED PERSONAL DATA,
Revenue,Director of Childrens Services,5105613311,13.02.2015,Thompson House Tuition Centre (PRU),Minor Works,163.20,REDACTED PERSONAL DATA,
Revenue,Director of Childrens Services,5105613311,13.02.2015,Clatterford Pupil Referral Unit (PRU),Minor Works,163.20,REDACTED PERSONAL DATA,
Revenue,Director of Childrens Services,5105609529,06.02.2015,Adoption Costs,Professional Services,570.00,REDACTED PERSONAL DATA,
Revenue,Managing Director & Head of Paid Service,5105613588,18.02.2015,Strengthening Families,Payments to Voluntary and Other Associations,50.00,REDACTED PERSONAL DATA,
Revenue,Director of Childrens Services,5105613229,11.02.2015,Clatterford Pupil Referral Unit (PRU),Professional Services,680.00,ISLAND EQUUS,
Revenue,Director of Childrens Services,5105613135,11.02.2015,Thompson House Tuition Centre (PRU),Professional Services,300.00,ISLAND EQUUS,
Revenue,Director of Childrens Services,5105613165,11.02.2015,Support for Looked After Children,Support Children,400.00,ISLAND EQUUS,
Revenue,Director of Childrens Services,5105613849,20.02.2015,Special Educational Needs Reforms Grant,Agency staff,593.70,REDACTED PERSONAL DATA,
Revenue,Director of Childrens Services,5105613849,20.02.2015,Special Educational Needs Reforms Grant,Agency staff,61.80,REDACTED PERSONAL DATA,
Revenue,Director of Childrens Services,5105616542,25.02.2015,Adult Skills,Grants to External Bodies,"4,630.00",REDACTED PERSONAL DATA,
Revenue,Head of ASC & Community Wellbeing,5105614919,20.02.2015,Leaseholds by LA,Accommodation Costs - Leaseholder Payments,695.89,REDACTED PERSONAL DATA,
Revenue,Head of ASC & Community Wellbeing,5105614919,20.02.2015,Leaseholds by LA,Accommodation Costs - Leaseholder Payments,695.89,REDACTED PERSONAL DATA,
Revenue,Head of ASC & Community Wellbeing,5105614919,20.02.2015,Leaseholds by LA,Accommodation Costs - Leaseholder Payments,695.89,REDACTED PERSONAL DATA,
Revenue,Head of ASC & Community Wellbeing,5105614919,20.02.2015,Leaseholds by LA,Accommodation Costs - Leaseholder Payments,695.89,REDACTED PERSONAL DATA,
Revenue,Head of ASC & Community Wellbeing,5105614919,20.02.2015,Leaseholds by LA,Accommodation Costs - Leaseholder Payments,695.89,REDACTED PERSONAL DATA,
Revenue,Head of Economy & Tourism,5105614223,18.02.2015,"St Thomas Church, Ryde",Minor Works,100.00,"PETER A ATTRILL, GARDENING SERVICES",
Revenue,Head of ASC & Community Wellbeing,5105613108,11.02.2015,Homelessness,Client Expenses,370.00,REDACTED PERSONAL DATA,
Revenue,Director of Childrens Services,5105613073,11.02.2015,LSCB (Local Safeguarding Childrens Board),Training,383.54,REDACTED PERSONAL DATA,
Revenue,Director of Childrens Services,5105613073,11.02.2015,LSCB (Local Safeguarding Childrens Board),Training,"1,000.00",REDACTED PERSONAL DATA,
Revenue,Head of ASC & Community Wellbeing,5105614939,20.02.2015,Leaseholds by LA,Accommodation Costs - Leaseholder Payments,866.67,2K PROPERTY,
Revenue,Head of Economy & Tourism,5105612540,04.02.2015,Westridge Squash Courts,Stock Purchases,133.55,3663 (BFS GROUP LTD),
Revenue,Head of Economy & Tourism,5105616569,25.02.2015,Fairway Sports Complex,Stock Purchases,391.08,3663 (BFS GROUP LTD),
Revenue,Head of Economy & Tourism,5105613973,18.02.2015,The Heights,Stock Purchases,116.31,3663 (BFS GROUP LTD),
Revenue,Head of Economy & Tourism,5105612553,04.02.2015,The Heights,Stock Purchases,56.87,3663 (BFS GROUP LTD),
Revenue,Head of Economy & Tourism,5105616514,25.02.2015,The Heights,Stock Purchases,252.73,3663 (BFS GROUP LTD),
Revenue,Head of Economy & Tourism,5105616536,25.02.2015,The Heights,Stock Purchases,21.01,3663 (BFS GROUP LTD),
Revenue,Head of Economy & Tourism,5105613974,18.02.2015,The Heights,Stock Purchases,255.33,3663 (BFS GROUP LTD),
Revenue,Head of Economy & Tourism,5105613975,18.02.2015,The Heights,Stock Purchases,344.73,3663 (BFS GROUP LTD),
Revenue,Head of Economy & Tourism,5105616535,25.02.2015,The Heights,Stock Purchases,477.34,3663 (BFS GROUP LTD),
Revenue,Head of Economy & Tourism,5105616486,25.02.2015,The Heights,Stock Purchases,109.59,3663 (BFS GROUP LTD),
Revenue,Head of Economy & Tourism,5105616486,25.02.2015,The Heights,Stock Purchases,126.76,3663 (BFS GROUP LTD),
Revenue,Head of Economy & Tourism,5105616536,25.02.2015,The Heights,Stock Purchases,22.51,3663 (BFS GROUP LTD),
Revenue,Head of Economy & Tourism,5105616514,25.02.2015,The Heights,Stock Purchases,48.60,3663 (BFS GROUP LTD),
Revenue,Head of Economy & Tourism,5105612553,04.02.2015,The Heights,Stock Purchases,41.84,3663 (BFS GROUP LTD),
Revenue,Head of Economy & Tourism,5105613973,18.02.2015,The Heights,Stock Purchases,33.32,3663 (BFS GROUP LTD),
Revenue,Head of Economy & Tourism,5105614139,18.02.2015,Medina Leisure Centre,Stock Purchases,4.50,3663 (BFS GROUP LTD),
Revenue,Head of Economy & Tourism,5105614139,18.02.2015,Medina Leisure Centre,Stock Purchases,22.17,3663 (BFS GROUP LTD),
Revenue,Head of Economy & Tourism,5105614141,18.02.2015,Medina Leisure Centre,Stock Purchases,651.13,3663 (BFS GROUP LTD),
Revenue,Head of Economy & Tourism,5105612530,04.02.2015,The Heights,Stock Purchases,252.52,3663 (BFS GROUP LTD),
Revenue,Head of Economy & Tourism,5105616582,25.02.2015,The Heights,Stock Purchases,305.10,3663 (BFS GROUP LTD),
Revenue,Head of Economy & Tourism,5105612530,04.02.2015,The Heights,Stock Purchases,12.52,3663 (BFS GROUP LTD),
Revenue,Head of Economy & Tourism,5105614156,18.02.2015,Medina Leisure Centre,Stock Purchases,457.67,3663 (BFS GROUP LTD),
Revenue,Head of Economy & Tourism,5105616397,25.02.2015,Medina Leisure Centre,Stock Purchases,411.04,3663 (BFS GROUP LTD),
Revenue,Head of Economy & Tourism,5105616398,25.02.2015,Medina Leisure Centre,Stock Purchases,72.33,3663 (BFS GROUP LTD),
Revenue,Head of Economy & Tourism,5105614144,18.02.2015,Medina Leisure Centre,Stock Purchases,1.97,3663 (BFS GROUP LTD),
Revenue,Head of Economy & Tourism,5105614144,18.02.2015,Medina Leisure Centre,Stock Purchases,119.50,3663 (BFS GROUP LTD),
Revenue,Head of Economy & Tourism,5105616398,25.02.2015,Medina Leisure Centre,Stock Purchases,75.17,3663 (BFS GROUP LTD),
Revenue,Head of ASC & Community Wellbeing,5105615247,20.02.2015,Westminster House,Catering Purchases,206.29,3663 (BFS GROUP LTD),
Revenue,Head of ASC & Community Wellbeing,5105615245,20.02.2015,Westminster House,Catering Purchases,62.38,3663 (BFS GROUP LTD),
Revenue,Head of ASC & Community Wellbeing,5105615253,20.02.2015,Westminster House,Catering Purchases,44.21,3663 (BFS GROUP LTD),
Revenue,Head of ASC & Community Wellbeing,5105616567,25.02.2015,Adelaide Resource Centre,Catering Purchases,115.91,3663 (BFS GROUP LTD),
Revenue,Head of ASC & Community Wellbeing,5105616556,25.02.2015,Adelaide Resource Centre,Catering Purchases,337.82,3663 (BFS GROUP LTD),
Revenue,Head of ASC & Community Wellbeing,5105616664,25.02.2015,Adelaide Resource Centre,Catering Purchases,252.79,3663 (BFS GROUP LTD),
Revenue,Head of ASC & Community Wellbeing,5105616663,25.02.2015,Adelaide Resource Centre,Catering Purchases,73.72,3663 (BFS GROUP LTD),
Revenue,Head of ASC & Community Wellbeing,5105613606,13.02.2015,Adelaide Resource Centre,Catering Purchases,135.48,3663 (BFS GROUP LTD),
Revenue,Head of ASC & Community Wellbeing,5105613604,13.02.2015,Adelaide Resource Centre,Catering Purchases,18.10,3663 (BFS GROUP LTD),
Revenue,Head of ASC & Community Wellbeing,5105613531,13.02.2015,Adelaide Resource Centre,Catering Purchases,106.12,3663 (BFS GROUP LTD),
Revenue,Head of ASC & Community Wellbeing,5105613531,13.02.2015,Adelaide Resource Centre,Catering Purchases,2.57,3663 (BFS GROUP LTD),
Revenue,Head of ASC & Community Wellbeing,5105616663,25.02.2015,Adelaide Resource Centre,Catering Purchases,5.14,3663 (BFS GROUP LTD),
Revenue,Head of ASC & Community Wellbeing,5105616556,25.02.2015,Adelaide Resource Centre,Catering Purchases,22.86,3663 (BFS GROUP LTD),
Revenue,Head of ASC & Community Wellbeing,5105616724,27.02.2015,Gouldings Resource Centre,Catering Purchases,275.59,3663 (BFS GROUP LTD),
Revenue,Head of ASC & Community Wellbeing,5105617104,27.02.2015,Gouldings Resource Centre,Catering Purchases,566.07,3663 (BFS GROUP LTD),
Revenue,Head of ASC & Community Wellbeing,5105614886,20.02.2015,Gouldings Resource Centre,Catering Purchases,579.71,3663 (BFS GROUP LTD),
Revenue,Head of ASC & Community Wellbeing,5105614886,20.02.2015,Gouldings Resource Centre,Catering Purchases,4.89,3663 (BFS GROUP LTD),
Revenue,Head of ASC & Community Wellbeing,5105617104,27.02.2015,Gouldings Resource Centre,Catering Purchases,18.55,3663 (BFS GROUP LTD),
Revenue,Head of ASC & Community Wellbeing,5105613760,18.02.2015,Adelaide Resource Centre,Catering Purchases,-21.69,3663 (BFS GROUP LTD),
Revenue,Head of ASC & Community Wellbeing,5105612825,06.02.2015,Adelaide Resource Centre,Catering Purchases,283.22,3663 (BFS GROUP LTD),
Revenue,Head of ASC & Community Wellbeing,5105612841,27.02.2015,Adelaide Resource Centre,Catering Purchases,110.16,3663 (BFS GROUP LTD),
Revenue,Head of ASC & Community Wellbeing,5105612842,06.02.2015,Adelaide Resource Centre,Catering Purchases,168.79,3663 (BFS GROUP LTD),
Revenue,Head of ASC & Community Wellbeing,5105612855,06.02.2015,Adelaide Resource Centre,Catering Purchases,101.36,3663 (BFS GROUP LTD),
Revenue,Head of ASC & Community Wellbeing,5105616957,27.02.2015,Adelaide Resource Centre,Catering Purchases,-28.92,3663 (BFS GROUP LTD),
Revenue,Head of ASC & Community Wellbeing,5105612855,06.02.2015,Adelaide Resource Centre,Catering Purchases,11.84,3663 (BFS GROUP LTD),
Revenue,Head of ASC & Community Wellbeing,5105612841,27.02.2015,Adelaide Resource Centre,Catering Purchases,5.14,3663 (BFS GROUP LTD),
Revenue,Head of ASC & Community Wellbeing,5105612825,06.02.2015,Adelaide Resource Centre,Catering Purchases,15.33,3663 (BFS GROUP LTD),
Revenue,Head of ASC & Community Wellbeing,5105613851,18.02.2015,Gouldings Resource Centre,Catering Purchases,336.96,3663 (BFS GROUP LTD),
Revenue,Head of ASC & Community Wellbeing,5105612895,06.02.2015,Gouldings Resource Centre,Catering Purchases,165.12,3663 (BFS GROUP LTD),
Revenue,Head of ASC & Community Wellbeing,5105612895,06.02.2015,Gouldings Resource Centre,Catering Purchases,55.95,3663 (BFS GROUP LTD),
Revenue,Head of ASC & Community Wellbeing,5105613851,18.02.2015,Gouldings Resource Centre,Catering Purchases,8.77,3663 (BFS GROUP LTD),
Revenue,Head of ASC & Community Wellbeing,5105613037,11.02.2015,Westminster House,Catering Purchases,31.41,3663 (BFS GROUP LTD),
Revenue,Head of ASC & Community Wellbeing,5105613007,11.02.2015,Westminster House,Catering Purchases,77.89,3663 (BFS GROUP LTD),
Revenue,Head of ASC & Community Wellbeing,5105613036,11.02.2015,Westminster House,Catering Purchases,107.47,3663 (BFS GROUP LTD),
Revenue,Head of Finance & S151 Officer,5105612518,06.02.2015,Project Manager Waste Strategy,Computer Software & Consumables,461.25,4 PROJECTS LIMITED,
Revenue,Chief Fire Officer,5105613825,18.02.2015,Deputy Chief Fire Office,Prop Svs only - Day to day mtce,316.44,A & M APPLIANCE CARE,
Revenue,Chief Fire Officer,5105613138,11.02.2015,Fire Technical Support,Stock Purchases,180.00,A & M APPLIANCE CARE,
Revenue,Head of ASC & Community Wellbeing,5105616025,25.02.2015,Elderly Frail Personal Budgets,Payments for Self Directed Support,"1,329.68",REDACTED PERSONAL DATA,
Revenue,Head of ASC & Community Wellbeing,5105617042,27.02.2015,Physical Disability Personal Budgets,Payments for Self Directed Support,845.12,REDACTED PERSONAL DATA,
Revenue,Head of ASC & Community Wellbeing,5105615889,25.02.2015,Learning Disability Personal Budgets,Payments for Self Directed Support,"2,707.52",REDACTED PERSONAL DATA,
Revenue,Director of Childrens Services,5105616524,25.02.2015,Core Programmes,Training,725.00,REDACTED PERSONAL DATA,
Revenue,Director of Childrens Services,5105613822,18.02.2015,Core Programmes,Training,725.00,REDACTED PERSONAL DATA,
Revenue,Director of Childrens Services,5105613209,11.02.2015,Workforce Development - Early Years,Training,725.00,REDACTED PERSONAL DATA,
Revenue,Head of ASC & Community Wellbeing,5105616158,25.02.2015,Physical Disability Personal Budgets,Payments for Self Directed Support,724.00,REDACTED PERSONAL DATA,
Revenue,Director of Childrens Services,5105614749,18.02.2015,Direct Payments Children & Families,Direct Payments,247.00,REDACTED PERSONAL DATA,
Revenue,Head of ASC & Community Wellbeing,5105615999,25.02.2015,Learning Disability Personal Budgets,Payments for Self Directed Support,192.00,REDACTED PERSONAL DATA,
Revenue,Head of ASC & Community Wellbeing,5105615910,25.02.2015,Learning Disability Personal Budgets,Payments for Self Directed Support,"1,279.32",REDACTED PERSONAL DATA,
Revenue,Head of ASC & Community Wellbeing,5105615855,25.02.2015,Learning Disability Personal Budgets,Payments for Self Directed Support,444.80,REDACTED PERSONAL DATA,
Revenue,Head of ASC & Community Wellbeing,5105615727,25.02.2015,Learning Disability Personal Budgets,Payments for Self Directed Support,987.52,REDACTED PERSONAL DATA,
Revenue,Head of ASC & Community Wellbeing,5105615814,25.02.2015,Learning Disability Personal Budgets,Payments for Self Directed Support,"1,611.76",REDACTED PERSONAL DATA,
Revenue,Head of ASC & Community Wellbeing,5105614925,20.02.2015,Leaseholds by LA,Accommodation Costs - Leaseholder Payments,780.00,REDACTED PERSONAL DATA,
Revenue,Head of ASC & Community Wellbeing,5105615948,25.02.2015,Mental Health Personal Budgets,Payments for Self Directed Support,528.00,REDACTED PERSONAL DATA,
Revenue,Director of Childrens Services,5105614725,18.02.2015,Direct Payments Children & Families,Direct Payments,437.00,REDACTED PERSONAL DATA,
Revenue,Head of ASC & Community Wellbeing,5105616331,25.02.2015,Physical Disability Direct Payments,Direct Payments,"1,831.20",REDACTED PERSONAL DATA,
Revenue,Head of ASC & Community Wellbeing,5105615964,25.02.2015,Learning Disability Personal Budgets,Payments for Self Directed Support,"4,429.28",REDACTED PERSONAL DATA,
Revenue,Head of ASC & Community Wellbeing,5105612572,04.02.2015,Elderly Frail Personal Budgets,Payments for Self Directed Support,"1,326.24",REDACTED PERSONAL DATA,
Revenue,Head of ASC & Community Wellbeing,5105612572,04.02.2015,Elderly Frail Personal Budgets,Payments for Self Directed Support,"2,313.44",REDACTED PERSONAL DATA,
Revenue,Director of Childrens Services,5105616438,25.02.2015,Clatterford Pupil Referral Unit (PRU),Professional Services,600.00,REDACTED PERSONAL DATA,
Revenue,Director of Childrens Services,5105616782,27.02.2015,Special Guardianship Order Costs,Support Children,168.39,REDACTED PERSONAL DATA,
Revenue,Director of Childrens Services,5105615012,20.02.2015,Special Guardianship Order Costs,Support Children,168.39,REDACTED PERSONAL DATA,
Revenue,Director of Childrens Services,5105612686,06.02.2015,Special Guardianship Order Costs,Support Children,168.39,REDACTED PERSONAL DATA,
Revenue,Director of Childrens Services,5105613375,13.02.2015,Special Guardianship Order Costs,Support Children,168.39,REDACTED PERSONAL DATA,
Revenue,Director of Childrens Services,5105613375,13.02.2015,Special Guardianship Order Costs,Support Children,207.73,REDACTED PERSONAL DATA,
Revenue,Director of Childrens Services,5105612686,06.02.2015,Special Guardianship Order Costs,Support Children,207.73,REDACTED PERSONAL DATA,
Revenue,Director of Childrens Services,5105615012,20.02.2015,Special Guardianship Order Costs,Support Children,207.73,REDACTED PERSONAL DATA,
Revenue,Director of Childrens Services,5105616782,27.02.2015,Special Guardianship Order Costs,Support Children,207.73,REDACTED PERSONAL DATA,
Revenue,Head of ASC & Community Wellbeing,5105615732,25.02.2015,Transitions Team Personal Budgets,Payments for Self Directed Support,"2,755.60",REDACTED PERSONAL DATA,
Revenue,Head of Economy & Tourism,5105614953,20.02.2015,Allotments,Rent of Buildings and Rooms,200.00,REDACTED PERSONAL DATA,
Revenue,Head of ASC & Community Wellbeing,5105615949,25.02.2015,Learning Disability Personal Budgets,Payments for Self Directed Support,253.84,REDACTED PERSONAL DATA,
Revenue,Director of Childrens Services,5105612756,06.02.2015,Leaving Care Costs,Accommodation Costs - Service Users,57.50,REDACTED PERSONAL DATA,
Revenue,Director of Childrens Services,5105613444,13.02.2015,Leaving Care Costs,Accommodation Costs - Service Users,57.50,REDACTED PERSONAL DATA,
Revenue,Director of Childrens Services,5105615114,20.02.2015,Leaving Care Costs,Accommodation Costs - Service Users,57.50,REDACTED PERSONAL DATA,
Revenue,Director of Childrens Services,5105616852,27.02.2015,Leaving Care Costs,Accommodation Costs - Service Users,57.50,REDACTED PERSONAL DATA,
Revenue,Director of Childrens Services,5105616852,27.02.2015,Leaving Care Costs,Support Children,120.89,REDACTED PERSONAL DATA,
Revenue,Director of Childrens Services,5105615114,20.02.2015,Leaving Care Costs,Support Children,120.89,REDACTED PERSONAL DATA,
Revenue,Director of Childrens Services,5105613444,13.02.2015,Leaving Care Costs,Support Children,120.89,REDACTED PERSONAL DATA,
Revenue,Director of Childrens Services,5105612756,06.02.2015,Leaving Care Costs,Support Children,120.89,REDACTED PERSONAL DATA,
Revenue,Director of Childrens Services,5105616852,27.02.2015,Leaving Care Costs,Support Children,120.89,REDACTED PERSONAL DATA,
Revenue,Head of ASC & Community Wellbeing,5105615933,25.02.2015,Learning Disability Personal Budgets,Payments for Self Directed Support,237.44,REDACTED PERSONAL DATA,
Revenue,Head of ASC & Community Wellbeing,5105615840,25.02.2015,Learning Disability Personal Budgets,Payments for Self Directed Support,590.00,REDACTED PERSONAL DATA,
Revenue,Head of ASC & Community Wellbeing,5105614934,20.02.2015,Leaseholds by LA,Accommodation Costs - Leaseholder Payments,510.25,REDACTED PERSONAL DATA,
Revenue,Head of ASC & Community Wellbeing,5105614934,20.02.2015,Leaseholds by LA,Accommodation Costs - Leaseholder Payments,510.25,REDACTED PERSONAL DATA,
Revenue,Head of ASC & Community Wellbeing,5105614934,20.02.2015,Leaseholds by LA,Accommodation Costs - Leaseholder Payments,510.25,REDACTED PERSONAL DATA,
Revenue,Head of ASC & Community Wellbeing,5105614934,20.02.2015,Leaseholds by LA,Accommodation Costs - Leaseholder Payments,510.25,REDACTED PERSONAL DATA,
Revenue,Head of ASC & Community Wellbeing,5105614934,20.02.2015,Leaseholds by LA,Accommodation Costs - Leaseholder Payments,510.25,REDACTED PERSONAL DATA,
Revenue,Head of ASC & Community Wellbeing,5105614934,20.02.2015,Leaseholds by LA,Accommodation Costs - Leaseholder Payments,510.25,REDACTED PERSONAL DATA,
Revenue,Director of Childrens Services,5105614729,18.02.2015,Direct Payments Children & Families,Direct Payments,561.20,REDACTED PERSONAL DATA,
Revenue,Head of ASC & Community Wellbeing,5105615913,25.02.2015,Physical Disability Personal Budgets,Payments for Self Directed Support,"1,436.00",REDACTED PERSONAL DATA,
Revenue,Head of ASC & Community Wellbeing,5105615817,25.02.2015,Physical Disability Personal Budgets,Payments for Self Directed Support,974.24,REDACTED PERSONAL DATA,
Revenue,Head of ASC & Community Wellbeing,5105615848,25.02.2015,Learning Disability Personal Budgets,Payments for Self Directed Support,462.08,REDACTED PERSONAL DATA,
Revenue,Director of Childrens Services,5105616760,27.02.2015,Adoption Costs,Support Children,186.49,REDACTED PERSONAL DATA,
Revenue,Director of Childrens Services,5105612664,06.02.2015,Adoption Costs,Support Children,186.49,REDACTED PERSONAL DATA,
Revenue,Director of Childrens Services,5105613353,13.02.2015,Adoption Costs,Support Children,186.49,REDACTED PERSONAL DATA,
Revenue,Director of Childrens Services,5105614990,20.02.2015,Adoption Costs,Support Children,186.49,REDACTED PERSONAL DATA,
Revenue,Head of ASC & Community Wellbeing,5105616032,25.02.2015,Transitions Team Personal Budgets,Payments for Self Directed Support,"1,006.12",REDACTED PERSONAL DATA,
Revenue,Head of ASC & Community Wellbeing,5105616239,25.02.2015,Physical Disability Personal Budgets,Payments for Self Directed Support,670.00,REDACTED PERSONAL DATA,
Revenue,Head of ASC & Community Wellbeing,5105616131,25.02.2015,Learning Disability Personal Budgets,Payments for Self Directed Support,365.52,REDACTED PERSONAL DATA,
Revenue,Head of ASC & Community Wellbeing,5105616068,25.02.2015,Physical Disability Personal Budgets,Payments for Self Directed Support,554.24,REDACTED PERSONAL DATA,
Revenue,Head of ASC & Community Wellbeing,5105615643,25.02.2015,Elderly Frail Personal Budgets,Payments for Self Directed Support,"2,181.48",REDACTED PERSONAL DATA,
Revenue,Head of ASC & Community Wellbeing,5105612864,06.02.2015,Elderly Frail Personal Budgets,Payments for Self Directed Support,"2,181.48",REDACTED PERSONAL DATA,
Revenue,Head of ASC & Community Wellbeing,5105616063,25.02.2015,Learning Disability Personal Budgets,Payments for Self Directed Support,822.00,REDACTED PERSONAL DATA,
Revenue,Head of ASC & Community Wellbeing,5105615836,25.02.2015,Learning Disability Personal Budgets,Payments for Self Directed Support,178.08,REDACTED PERSONAL DATA,
Revenue,Head of ASC & Community Wellbeing,5105616197,25.02.2015,Transitions Team Personal Budgets,Payments for Self Directed Support,"2,280.80",REDACTED PERSONAL DATA,
Revenue,Director of Childrens Services,5105615073,20.02.2015,In-house Fostering,Boarding Out Allowances,159.85,REDACTED PERSONAL DATA,
Revenue,Director of Childrens Services,5105616820,27.02.2015,In-house Fostering,Boarding Out Allowances,159.85,REDACTED PERSONAL DATA,
Revenue,Head of ASC & Community Wellbeing,5105615725,25.02.2015,Elderly Frail Personal Budgets,Payments for Self Directed Support,"1,315.44",REDACTED PERSONAL DATA,
Revenue,Head of ASC & Community Wellbeing,5105614936,20.02.2015,Leaseholds by LA,Accommodation Costs - Leaseholder Payments,780.00,REDACTED PERSONAL DATA,
Revenue,Director of Childrens Services,5105614743,18.02.2015,Direct Payments Children & Families,Direct Payments,247.00,REDACTED PERSONAL DATA,
Revenue,Head of ASC & Community Wellbeing,5105616076,25.02.2015,Learning Disability Personal Budgets,Payments for Self Directed Support,280.00,REDACTED PERSONAL DATA,
Revenue,Head of ASC & Community Wellbeing,5105616091,25.02.2015,Physical Disability Personal Budgets,Payments for Self Directed Support,728.00,REDACTED PERSONAL DATA,
Revenue,Head of ASC & Community Wellbeing,5105615985,25.02.2015,Learning Disability Personal Budgets,Payments for Self Directed Support,484.24,REDACTED PERSONAL DATA,
Revenue,Head of ASC & Community Wellbeing,5105616139,25.02.2015,Learning Disability Personal Budgets,Payments for Self Directed Support,389.00,REDACTED PERSONAL DATA,
Revenue,Head of ASC & Community Wellbeing,5105616160,25.02.2015,Learning Disability Personal Budgets,Payments for Self Directed Support,973.96,REDACTED PERSONAL DATA,
Revenue,Head of ASC & Community Wellbeing,5105616055,25.02.2015,Learning Disability Personal Budgets,Payments for Self Directed Support,677.16,REDACTED PERSONAL DATA,
Revenue,Head of ASC & Community Wellbeing,5105615894,25.02.2015,Learning Disability Personal Budgets,Payments for Self Directed Support,"2,700.32",REDACTED PERSONAL DATA,
Revenue,Head of ASC & Community Wellbeing,5105614923,20.02.2015,Leaseholds by LA,Accommodation Costs - Leaseholder Payments,835.08,REDACTED PERSONAL DATA,
Revenue,Head of ASC & Community Wellbeing,5105614923,20.02.2015,Leaseholds by LA,Accommodation Costs - Leaseholder Payments,789.01,REDACTED PERSONAL DATA,
Revenue,Head of ASC & Community Wellbeing,5105614923,20.02.2015,Leaseholds by LA,Accommodation Costs - Leaseholder Payments,649.83,REDACTED PERSONAL DATA,
Revenue,Head of ASC & Community Wellbeing,5105616016,25.02.2015,Learning Disability Personal Budgets,Payments for Self Directed Support,"1,457.00",REDACTED PERSONAL DATA,
Revenue,Director of Childrens Services,5105616756,27.02.2015,Adoption Costs,Support Children,87.15,REDACTED PERSONAL DATA,
Revenue,Director of Childrens Services,5105612660,06.02.2015,Adoption Costs,Support Children,87.15,REDACTED PERSONAL DATA,
Revenue,Director of Childrens Services,5105613349,13.02.2015,Adoption Costs,Support Children,87.15,REDACTED PERSONAL DATA,
Revenue,Director of Childrens Services,5105614986,20.02.2015,Adoption Costs,Support Children,87.15,REDACTED PERSONAL DATA,
Revenue,Director of Childrens Services,5105614760,18.02.2015,Direct Payments Children & Families,Direct Payments,152.00,REDACTED PERSONAL DATA,
Revenue,Head of ASC & Community Wellbeing,5105615811,25.02.2015,Elderly Frail Personal Budgets,Payments for Self Directed Support,"1,464.00",REDACTED PERSONAL DATA,
Revenue,Director of Childrens Services,5105615141,20.02.2015,In-house Fostering,Boarding Out Allowances,242.08,REDACTED PERSONAL DATA,
Revenue,Director of Childrens Services,5105612783,06.02.2015,In-house Fostering,Boarding Out Allowances,242.08,REDACTED PERSONAL DATA,
Revenue,Director of Childrens Services,5105613470,13.02.2015,In-house Fostering,Boarding Out Allowances,242.08,REDACTED PERSONAL DATA,
Revenue,Director of Childrens Services,5105616878,27.02.2015,In-house Fostering,Boarding Out Allowances,242.08,REDACTED PERSONAL DATA,
Revenue,Director of Childrens Services,5105616878,27.02.2015,In-house Fostering,Boarding Out Allowances,150.00,REDACTED PERSONAL DATA,
Revenue,Director of Childrens Services,5105612783,06.02.2015,In-house Fostering,Boarding Out Allowances,150.00,REDACTED PERSONAL DATA,
Revenue,Director of Childrens Services,5105613470,13.02.2015,In-house Fostering,Boarding Out Allowances,150.00,REDACTED PERSONAL DATA,
Revenue,Director of Childrens Services,5105615141,20.02.2015,In-house Fostering,Boarding Out Allowances,150.00,REDACTED PERSONAL DATA,
Revenue,Head of ASC & Community Wellbeing,5105615730,25.02.2015,Learning Disability Personal Budgets,Payments for Self Directed Support,"3,816.52",REDACTED PERSONAL DATA,
Revenue,Head of ASC & Community Wellbeing,5105616119,25.02.2015,Transitions Team Personal Budgets,Payments for Self Directed Support,469.04,REDACTED PERSONAL DATA,
Revenue,Head of HR & Organisational Change,5105613082,11.02.2015,"24 Daish Way, Newport (WISE)",Prop Svs only - Day to day mtce,425.00,A-1 GARAGE DOOR SPECIALISTS (IOW),
Revenue,Head of ASC & Community Wellbeing,5105615993,25.02.2015,Transitions Team Personal Budgets,Payments for Self Directed Support,412.80,REDACTED PERSONAL DATA,
Revenue,Head of ASC & Community Wellbeing,5105613674,13.02.2015,Supporting People Older Persons,Payment to Private Contractors,510.00,ABBEYFIELD WEST WIGHT SOCIETY,
Revenue,Head of Economy & Tourism,5105613560,13.02.2015,Dinosaur Isle Museum (Sandown Geology),Operational Equipment,"2,082.50",ABOUT PRESENTATION LTD,
Revenue,Head of ASC & Community Wellbeing,5105615773,25.02.2015,Elderly Frail Residential Care,Charges from Independent Providers,"1,700.44",ACACIA CARE HOME,
Revenue,Head of ASC & Community Wellbeing,5105615773,25.02.2015,Elderly Mentally Ill Residential Care,Charges from Independent Providers,"1,781.36",ACACIA CARE HOME,
Revenue,Head of ASC & Community Wellbeing,5105615773,25.02.2015,Elderly Frail Residential Care,Charges from Independent Providers,"1,700.44",ACACIA CARE HOME,
Revenue,Head of ASC & Community Wellbeing,5105612568,04.02.2015,Elderly Frail Residential Care,Charges from Independent Providers,121.46,ACACIA CARE HOME,
Revenue,Head of ASC & Community Wellbeing,5105612568,04.02.2015,Elderly Frail Residential Care,Charges from Independent Providers,60.73,ACACIA CARE HOME,
Revenue,Head of ASC & Community Wellbeing,5105615617,25.02.2015,Elderly Frail Residential Care,Charges from Independent Providers,897.36,ACACIA CARE HOME,
Revenue,Head of ASC & Community Wellbeing,5105615773,25.02.2015,Elderly Frail Residential Care,Charges from Independent Providers,"2,093.84",ACACIA CARE HOME,
Revenue,Head of Planning & Regulatory Services,5105613324,13.02.2015,Licensing Services,Interview & recruitment expenses,440.00,ACCESS PERSONAL CHECKING SERVICES LTD,
Revenue,Head of ASC & Community Wellbeing,5105613154,11.02.2015,Plean Dene,Interview & recruitment expenses,12.00,ACCESS PERSONAL CHECKING SERVICES LTD,
Revenue,Head of ASC & Community Wellbeing,5105613154,11.02.2015,40 Venner Avenue,Interview & recruitment expenses,44.00,ACCESS PERSONAL CHECKING SERVICES LTD,
Revenue,Head of ASC & Community Wellbeing,5105613154,11.02.2015,40 Venner Avenue,Interview & recruitment expenses,6.00,ACCESS PERSONAL CHECKING SERVICES LTD,
Revenue,Director of Childrens Services,5105613154,11.02.2015,ICS Project,Interview & recruitment expenses,25.00,ACCESS PERSONAL CHECKING SERVICES LTD,
Revenue,Director of Childrens Services,5105613154,11.02.2015,ICS Project,Interview & recruitment expenses,8.00,ACCESS PERSONAL CHECKING SERVICES LTD,
Revenue,Head of ASC & Community Wellbeing,5105613154,11.02.2015,Wightcare,Interview & recruitment expenses,176.00,ACCESS PERSONAL CHECKING SERVICES LTD,
Revenue,Head of ASC & Community Wellbeing,5105613154,11.02.2015,Wightcare,Interview & recruitment expenses,26.00,ACCESS PERSONAL CHECKING SERVICES LTD,
Revenue,Head of ASC & Community Wellbeing,5105613154,11.02.2015,Wightcare,Interview & recruitment expenses,30.00,ACCESS PERSONAL CHECKING SERVICES LTD,
Revenue,Head of ASC & Community Wellbeing,5105613154,11.02.2015,First Response,Interview & recruitment expenses,44.00,ACCESS PERSONAL CHECKING SERVICES LTD,
Revenue,Head of ASC & Community Wellbeing,5105613154,11.02.2015,First Response,Interview & recruitment expenses,6.00,ACCESS PERSONAL CHECKING SERVICES LTD,
Revenue,Head of ASC & Community Wellbeing,5105613154,11.02.2015,Community Outreach,Interview & recruitment expenses,88.00,ACCESS PERSONAL CHECKING SERVICES LTD,
Revenue,Head of ASC & Community Wellbeing,5105613154,11.02.2015,Community Outreach,Interview & recruitment expenses,12.00,ACCESS PERSONAL CHECKING SERVICES LTD,
Revenue,Head of ASC & Community Wellbeing,5105613154,11.02.2015,Adelaide Resource Centre,Interview & recruitment expenses,88.00,ACCESS PERSONAL CHECKING SERVICES LTD,
Revenue,Head of ASC & Community Wellbeing,5105613154,11.02.2015,Adelaide Resource Centre,Interview & recruitment expenses,26.00,ACCESS PERSONAL CHECKING SERVICES LTD,
Revenue,Head of ASC & Community Wellbeing,5105613154,11.02.2015,Adelaide Resource Centre,Interview & recruitment expenses,18.00,ACCESS PERSONAL CHECKING SERVICES LTD,
Revenue,Director of Childrens Services,5105613154,11.02.2015,Thompson House Tuition Centre (PRU),Interview & recruitment expenses,44.00,ACCESS PERSONAL CHECKING SERVICES LTD,
Revenue,Director of Childrens Services,5105613154,11.02.2015,Thompson House Tuition Centre (PRU),Interview & recruitment expenses,6.00,ACCESS PERSONAL CHECKING SERVICES LTD,
Revenue,Director of Childrens Services,5105613154,11.02.2015,Clatterford Pupil Referral Unit (PRU),Interview & recruitment expenses,44.00,ACCESS PERSONAL CHECKING SERVICES LTD,
Revenue,Director of Childrens Services,5105613154,11.02.2015,Clatterford Pupil Referral Unit (PRU),Interview & recruitment expenses,6.00,ACCESS PERSONAL CHECKING SERVICES LTD,
Revenue,Head of Economy & Tourism,5105613154,11.02.2015,School Music Service,Interview & recruitment expenses,88.00,ACCESS PERSONAL CHECKING SERVICES LTD,
Revenue,Head of Economy & Tourism,5105613154,11.02.2015,School Music Service,Interview & recruitment expenses,12.00,ACCESS PERSONAL CHECKING SERVICES LTD,
Revenue,Director of Childrens Services,5105613154,11.02.2015,Children In Need 1,Interview & recruitment expenses,88.00,ACCESS PERSONAL CHECKING SERVICES LTD,
Revenue,Director of Childrens Services,5105613154,11.02.2015,Children In Need 1,Interview & recruitment expenses,18.00,ACCESS PERSONAL CHECKING SERVICES LTD,
Revenue,Director of Childrens Services,5105613154,11.02.2015,Direct Payments Children & Families,Interview & recruitment expenses,132.00,ACCESS PERSONAL CHECKING SERVICES LTD,
Revenue,Director of Childrens Services,5105613154,11.02.2015,Direct Payments Children & Families,Interview & recruitment expenses,18.00,ACCESS PERSONAL CHECKING SERVICES LTD,
Revenue,Director of Childrens Services,5105613154,11.02.2015,In-house Fostering,Interview & recruitment expenses,176.00,ACCESS PERSONAL CHECKING SERVICES LTD,
Revenue,Director of Childrens Services,5105613154,11.02.2015,In-house Fostering,Interview & recruitment expenses,24.00,ACCESS PERSONAL CHECKING SERVICES LTD,
Revenue,Director of Childrens Services,5105613154,11.02.2015,Children In Need 3,Interview & recruitment expenses,44.00,ACCESS PERSONAL CHECKING SERVICES LTD,
Revenue,Director of Childrens Services,5105613154,11.02.2015,Children In Need 3,Interview & recruitment expenses,6.00,ACCESS PERSONAL CHECKING SERVICES LTD,
Revenue,Managing Director & Head of Paid Service,5105613154,11.02.2015,Strengthening Families,Interview & recruitment expenses,25.00,ACCESS PERSONAL CHECKING SERVICES LTD,
Revenue,Managing Director & Head of Paid Service,5105613154,11.02.2015,Strengthening Families,Interview & recruitment expenses,8.00,ACCESS PERSONAL CHECKING SERVICES LTD,
Revenue,Head of Economy & Tourism,5105613154,11.02.2015,Duke of Edingburgh Award,Interview & recruitment expenses,44.00,ACCESS PERSONAL CHECKING SERVICES LTD,
Revenue,Head of Corp Gov & Monitoring Officer,5105613154,11.02.2015,Legal Services Section,Interview & recruitment expenses,25.00,ACCESS PERSONAL CHECKING SERVICES LTD,
Revenue,Head of Corp Gov & Monitoring Officer,5105613154,11.02.2015,Legal Services Section,Interview & recruitment expenses,8.00,ACCESS PERSONAL CHECKING SERVICES LTD,
Revenue,Head of ASC & Community Wellbeing,5105613154,11.02.2015,Homelessness,Interview & recruitment expenses,75.00,ACCESS PERSONAL CHECKING SERVICES LTD,
Revenue,Head of ASC & Community Wellbeing,5105613154,11.02.2015,Homelessness,Interview & recruitment expenses,24.00,ACCESS PERSONAL CHECKING SERVICES LTD,
Revenue,Head of ASC & Community Wellbeing,5105613154,11.02.2015,31 Carter Avenue,Interview & recruitment expenses,132.00,ACCESS PERSONAL CHECKING SERVICES LTD,
Revenue,Head of ASC & Community Wellbeing,5105613154,11.02.2015,Homelessness,Interview & recruitment expenses,18.00,ACCESS PERSONAL CHECKING SERVICES LTD,
Revenue,Head of ASC & Community Wellbeing,5105613154,11.02.2015,Seagulls,Interview & recruitment expenses,88.00,ACCESS PERSONAL CHECKING SERVICES LTD,
Revenue,Head of ASC & Community Wellbeing,5105613154,11.02.2015,Seagulls,Interview & recruitment expenses,12.00,ACCESS PERSONAL CHECKING SERVICES LTD,
Revenue,Head of ASC & Community Wellbeing,5105613154,11.02.2015,Plean Dene,Interview & recruitment expenses,88.00,ACCESS PERSONAL CHECKING SERVICES LTD,
Revenue,Head of Economy & Tourism,5105613154,11.02.2015,Duke of Edingburgh Award,Interview & recruitment expenses,6.00,ACCESS PERSONAL CHECKING SERVICES LTD,
Revenue,Director of Childrens Services,5105613154,11.02.2015,Targeted Youth Support,Interview & recruitment expenses,44.00,ACCESS PERSONAL CHECKING SERVICES LTD,
Revenue,Director of Childrens Services,5105613154,11.02.2015,Targeted Youth Support,Interview & recruitment expenses,6.00,ACCESS PERSONAL CHECKING SERVICES LTD,
Revenue,Director of Childrens Services,5105613154,11.02.2015,Beaulieu House,Interview & recruitment expenses,88.00,ACCESS PERSONAL CHECKING SERVICES LTD,
Revenue,Director of Childrens Services,5105613154,11.02.2015,Beaulieu House,Interview & recruitment expenses,18.00,ACCESS PERSONAL CHECKING SERVICES LTD,
Revenue,Head of Planning & Regulatory Services,5105613324,13.02.2015,Licensing Services,Professional Services,60.00,ACCESS PERSONAL CHECKING SERVICES LTD,
Revenue,Head of ASC & Community Wellbeing,5105614225,18.02.2015,S75 Integrated Community Equipment Store,Operational Equipment,"1,417.00",ACCORA  LIMITED,
Revenue,Director of Childrens Services,5105613770,18.02.2015,Thompson House Tuition Centre (PRU),Teaching Materials,"1,000.00",ACHIEVEMENT FOR ALL (3AS) LIMITED,
Revenue,Director of Childrens Services,5105613770,18.02.2015,Clatterford Pupil Referral Unit (PRU),Teaching Materials,"1,000.00",ACHIEVEMENT FOR ALL (3AS) LIMITED,
Revenue,Director of Childrens Services,5105613860,18.02.2015,Adoption Costs,Payments to Other Local Authorities,"19,800.00",ACHIEVING FOR CHILDREN,
Revenue,Head of ASC & Community Wellbeing,5105614099,18.02.2015,Elderly Frail Homecare,Charges from Independent Providers,259.76,ACORN CARE SERVICE LTD,
Revenue,Head of ASC & Community Wellbeing,5105614100,18.02.2015,Elderly Frail Homecare,Charges from Independent Providers,"1,589.12",ACORN CARE SERVICE LTD,
Revenue,Head of ASC & Community Wellbeing,5105614101,18.02.2015,Elderly Frail Homecare,Charges from Independent Providers,844.22,ACORN CARE SERVICE LTD,
Revenue,Head of ASC & Community Wellbeing,5105614102,18.02.2015,Elderly Frail Homecare,Charges from Independent Providers,"1,180.38",ACORN CARE SERVICE LTD,
Revenue,Head of ASC & Community Wellbeing,5105614103,18.02.2015,Elderly Frail Homecare,Charges from Independent Providers,867.14,ACORN CARE SERVICE LTD,
Revenue,Head of ASC & Community Wellbeing,5105614104,18.02.2015,Elderly Frail Homecare,Charges from Independent Providers,168.08,ACORN CARE SERVICE LTD,
Revenue,Head of ASC & Community Wellbeing,5105614105,18.02.2015,Elderly Frail Homecare,Charges from Independent Providers,565.36,ACORN CARE SERVICE LTD,
Revenue,Head of ASC & Community Wellbeing,5105614106,18.02.2015,Elderly Frail Homecare,Charges from Independent Providers,53.48,ACORN CARE SERVICE LTD,
Revenue,Head of ASC & Community Wellbeing,5105614107,18.02.2015,Elderly Frail Homecare,Charges from Independent Providers,106.96,ACORN CARE SERVICE LTD,
Revenue,Head of ASC & Community Wellbeing,5105614108,18.02.2015,Elderly Frail Homecare,Charges from Independent Providers,45.84,ACORN CARE SERVICE LTD,
Revenue,Head of ASC & Community Wellbeing,5105614109,18.02.2015,Elderly Frail Homecare,Charges from Independent Providers,725.80,ACORN CARE SERVICE LTD,
Revenue,Head of ASC & Community Wellbeing,5105614098,18.02.2015,Elderly Frail Homecare,Charges from Independent Providers,"2,116.28",ACORN CARE SERVICE LTD,
Revenue,Head of ASC & Community Wellbeing,5105614110,18.02.2015,Elderly Frail Homecare,Charges from Independent Providers,634.12,ACORN CARE SERVICE LTD,
Revenue,Head of ASC & Community Wellbeing,5105614112,18.02.2015,Elderly Frail Homecare,Charges from Independent Providers,427.84,ACORN CARE SERVICE LTD,
Revenue,Head of ASC & Community Wellbeing,5105614113,18.02.2015,Elderly Frail Homecare,Charges from Independent Providers,679.96,ACORN CARE SERVICE LTD,
Revenue,Head of ASC & Community Wellbeing,5105614114,18.02.2015,Elderly Frail Homecare,Charges from Independent Providers,622.66,ACORN CARE SERVICE LTD,
Revenue,Head of ASC & Community Wellbeing,5105614116,18.02.2015,Elderly Frail Homecare,Charges from Independent Providers,"2,513.56",ACORN CARE SERVICE LTD,
Revenue,Head of ASC & Community Wellbeing,5105614118,18.02.2015,Elderly Frail Homecare,Charges from Independent Providers,466.04,ACORN CARE SERVICE LTD,
Revenue,Head of ASC & Community Wellbeing,5105614120,18.02.2015,Elderly Frail Homecare,Charges from Independent Providers,527.16,ACORN CARE SERVICE LTD,
Revenue,Head of ASC & Community Wellbeing,5105614123,18.02.2015,Elderly Frail Homecare,Charges from Independent Providers,576.82,ACORN CARE SERVICE LTD,
Revenue,Head of ASC & Community Wellbeing,5105614122,18.02.2015,Elderly Frail Homecare,Charges from Independent Providers,374.36,ACORN CARE SERVICE LTD,
Revenue,Head of ASC & Community Wellbeing,5105614124,18.02.2015,Elderly Frail Homecare,Charges from Independent Providers,534.80,ACORN CARE SERVICE LTD,
Revenue,Head of ASC & Community Wellbeing,5105614126,18.02.2015,Elderly Frail Homecare,Charges from Independent Providers,206.28,ACORN CARE SERVICE LTD,
Revenue,Head of ASC & Community Wellbeing,5105614125,18.02.2015,Elderly Frail Homecare,Charges from Independent Providers,492.78,ACORN CARE SERVICE LTD,
Revenue,Head of ASC & Community Wellbeing,5105614128,18.02.2015,Elderly Frail Homecare,Charges from Independent Providers,305.60,ACORN CARE SERVICE LTD,
Revenue,Head of ASC & Community Wellbeing,5105614127,18.02.2015,Elderly Frail Homecare,Charges from Independent Providers,275.04,ACORN CARE SERVICE LTD,
Revenue,Head of ASC & Community Wellbeing,5105614129,18.02.2015,Elderly Frail Homecare,Charges from Independent Providers,424.02,ACORN CARE SERVICE LTD,
Revenue,Head of ASC & Community Wellbeing,5105614134,18.02.2015,Elderly Frail Homecare,Charges from Independent Providers,198.64,ACORN CARE SERVICE LTD,
Revenue,Head of ASC & Community Wellbeing,5105614132,18.02.2015,Elderly Frail Homecare,Charges from Independent Providers,748.72,ACORN CARE SERVICE LTD,
Revenue,Head of ASC & Community Wellbeing,5105614133,18.02.2015,Elderly Frail Homecare,Charges from Independent Providers,"1,061.96",ACORN CARE SERVICE LTD,
Revenue,Head of ASC & Community Wellbeing,5105614135,18.02.2015,Elderly Frail Homecare,Charges from Independent Providers,309.42,ACORN CARE SERVICE LTD,
Revenue,Head of ASC & Community Wellbeing,5105614130,18.02.2015,Elderly Frail Homecare,Charges from Independent Providers,275.04,ACORN CARE SERVICE LTD,
Revenue,Head of ASC & Community Wellbeing,5105614131,18.02.2015,Elderly Frail Homecare,Charges from Independent Providers,"2,567.04",ACORN CARE SERVICE LTD,
Revenue,Head of ASC & Community Wellbeing,5105615619,25.02.2015,Elderly Frail Homecare,Charges from Independent Providers,450.76,ACORN CARE SERVICE LTD,
Revenue,Head of ASC & Community Wellbeing,5105614137,18.02.2015,Elderly Frail Homecare,Charges from Independent Providers,412.56,ACORN CARE SERVICE LTD,
Revenue,Head of ASC & Community Wellbeing,5105614136,18.02.2015,Elderly Frail Homecare,Regular Respite Care,91.68,ACORN CARE SERVICE LTD,
Revenue,Head of ASC & Community Wellbeing,5105614115,18.02.2015,Elderly Frail Homecare,Regular Respite Care,91.68,ACORN CARE SERVICE LTD,
Revenue,Head of ASC & Community Wellbeing,5105614121,18.02.2015,Elderly Frail Homecare,Regular Respite Care,122.24,ACORN CARE SERVICE LTD,
Revenue,Head of ASC & Community Wellbeing,5105614119,18.02.2015,Elderly Frail Homecare,Regular Respite Care,122.24,ACORN CARE SERVICE LTD,
Revenue,Head of ASC & Community Wellbeing,5105614111,18.02.2015,Elderly Frail Homecare,Regular Respite Care,244.48,ACORN CARE SERVICE LTD,
Revenue,Head of ASC & Community Wellbeing,5105614117,18.02.2015,Elderly Frail Homecare,Regular Respite Care,122.24,ACORN CARE SERVICE LTD,
Revenue,Head of Planning & Regulatory Services,5105612972,11.02.2015,Environmental Health - Geographical Team,Professional Services,"1,892.00",ACOUSTIC CALIBRATION SERVICES LTD,
Revenue,Head of Planning & Regulatory Services,5105615237,20.02.2015,Trading Standards,Professional Subscriptions,120.00,ACTSO LTD,
Revenue,Director of Childrens Services,5105614717,18.02.2015,Direct Payments Children & Families,Direct Payments,247.00,REDACTED PERSONAL DATA,
Revenue,Head of ASC & Community Wellbeing,5105615992,25.02.2015,Learning Disability Personal Budgets,Payments for Self Directed Support,"1,731.52",REDACTED PERSONAL DATA,
Revenue,Chief Fire Officer,5105613802,18.02.2015,Fire Technical Support,Vehicle Maintenance Costs,30.62,ADAMS MOREY LTD,
Revenue,Chief Fire Officer,5105613802,18.02.2015,Fire Technical Support,Vehicle Maintenance Costs,30.62,ADAMS MOREY LTD,
Revenue,Chief Fire Officer,5105613802,18.02.2015,Fire Technical Support,Vehicle Maintenance Costs,5.36,ADAMS MOREY LTD,
Revenue,Chief Fire Officer,5105613802,18.02.2015,Fire Technical Support,Vehicle Maintenance Costs,5.36,ADAMS MOREY LTD,
Revenue,Chief Fire Officer,5105613802,18.02.2015,Fire Technical Support,Vehicle Maintenance Costs,10.30,ADAMS MOREY LTD,
Revenue,Chief Fire Officer,5105613802,18.02.2015,Fire Technical Support,Vehicle Maintenance Costs,10.30,ADAMS MOREY LTD,
Revenue,Chief Fire Officer,5105613802,18.02.2015,Fire Technical Support,Vehicle Maintenance Costs,8.62,ADAMS MOREY LTD,
Revenue,Chief Fire Officer,5105613802,18.02.2015,Fire Technical Support,Vehicle Maintenance Costs,8.62,ADAMS MOREY LTD,
Revenue,Chief Fire Officer,5105613802,18.02.2015,Fire Technical Support,Vehicle Maintenance Costs,35.57,ADAMS MOREY LTD,
Revenue,Chief Fire Officer,5105613802,18.02.2015,Fire Technical Support,Vehicle Maintenance Costs,35.57,ADAMS MOREY LTD,
Revenue,Chief Fire Officer,5105612940,11.02.2015,Fire Technical Support,Vehicle Maintenance Costs,14.50,ADAMS MOREY LTD,
Revenue,Chief Fire Officer,5105613512,13.02.2015,Fire Technical Support,Vehicle Maintenance Costs,4.22,ADAMS MOREY LTD,
Revenue,Chief Fire Officer,5105613512,13.02.2015,Fire Technical Support,Vehicle Maintenance Costs,8.17,ADAMS MOREY LTD,
Revenue,Chief Fire Officer,5105613512,13.02.2015,Fire Technical Support,Vehicle Maintenance Costs,5.05,ADAMS MOREY LTD,
Revenue,Chief Fire Officer,5105613512,13.02.2015,Fire Technical Support,Vehicle Maintenance Costs,3.90,ADAMS MOREY LTD,
Revenue,Chief Fire Officer,5105613512,13.02.2015,Fire Technical Support,Vehicle Maintenance Costs,13.85,ADAMS MOREY LTD,
Revenue,Chief Fire Officer,5105613512,13.02.2015,Fire Technical Support,Vehicle Maintenance Costs,88.63,ADAMS MOREY LTD,
Revenue,Chief Fire Officer,5105613512,13.02.2015,Fire Technical Support,Vehicle Maintenance Costs,20.57,ADAMS MOREY LTD,
Revenue,Chief Fire Officer,5105613265,11.02.2015,Fire Technical Support,Vehicle Maintenance Costs,48.00,ADAMS MOREY LTD,
Revenue,Chief Fire Officer,5105613890,18.02.2015,Fire Technical Support,Vehicle Maintenance Costs,10.75,ADAMS MOREY LTD,
Revenue,Chief Fire Officer,5105613890,18.02.2015,Fire Technical Support,Vehicle Maintenance Costs,6.05,ADAMS MOREY LTD,
Revenue,Chief Fire Officer,5105613890,18.02.2015,Fire Technical Support,Vehicle Maintenance Costs,7.88,ADAMS MOREY LTD,
Revenue,Chief Fire Officer,5105613890,18.02.2015,Fire Technical Support,Vehicle Maintenance Costs,13.66,ADAMS MOREY LTD,
Revenue,Chief Fire Officer,5105613890,18.02.2015,Fire Technical Support,Vehicle Maintenance Costs,13.00,ADAMS MOREY LTD,
Revenue,Chief Fire Officer,5105613890,18.02.2015,Fire Technical Support,Vehicle Maintenance Costs,24.48,ADAMS MOREY LTD,
Revenue,Chief Fire Officer,5105613890,18.02.2015,Fire Technical Support,Vehicle Maintenance Costs,20.24,ADAMS MOREY LTD,
Revenue,Chief Fire Officer,5105613890,18.02.2015,Fire Technical Support,Vehicle Maintenance Costs,8.61,ADAMS MOREY LTD,
Revenue,Chief Fire Officer,5105613835,18.02.2015,Fire Technical Support,Vehicle Maintenance Costs,14.50,ADAMS MOREY LTD,
Revenue,Chief Fire Officer,5105615551,20.02.2015,Fire Technical Support,Vehicle Maintenance Costs,40.00,ADAMS MOREY LTD,
Revenue,Chief Fire Officer,5105615553,20.02.2015,Fire Technical Support,Vehicle Maintenance Costs,90.74,ADAMS MOREY LTD,
Revenue,Chief Fire Officer,5105614878,20.02.2015,Fire Technical Support,Vehicle Maintenance Costs,66.92,ADAMS MOREY LTD,
Revenue,Chief Fire Officer,5105614878,20.02.2015,Fire Technical Support,Vehicle Maintenance Costs,2.00,ADAMS MOREY LTD,
Revenue,Chief Fire Officer,5105614878,20.02.2015,Fire Technical Support,Vehicle Maintenance Costs,32.07,ADAMS MOREY LTD,
Revenue,Chief Fire Officer,5105614878,20.02.2015,Fire Technical Support,Vehicle Maintenance Costs,39.40,ADAMS MOREY LTD,
Revenue,Chief Fire Officer,5105616966,27.02.2015,Fire Technical Support,Vehicle Maintenance Costs,14.50,ADAMS MOREY LTD,
Revenue,Head of ASC & Community Wellbeing,5105616917,27.02.2015,Commissioning Manager for Adult Social Care,Conference Expenses,499.00,ADASS,
Revenue,Managing Director & Head of Paid Service,5105613925,20.02.2015,Drug Misuse - Adults,Payment to Private Contractors,"2,360.00",ADDICTION RECOVERY CENTRE (ARC),
Revenue,Head of ASC & Community Wellbeing,5105615647,25.02.2015,Elderly Frail Residential Care,Charges from Independent Providers,"1,812.44",ADIEMUS CARE LTD,
Revenue,Director of Childrens Services,5105607964,06.02.2015,Adoption Costs,Advertising & Publicity,536.25,ADOPTION UK,
Revenue,Director of Childrens Services,5105613859,18.02.2015,Adoption Costs,Professional Subscriptions,74.00,ADOPTION UK,
Capital,Head of HR & Organisational Change,5105609366,18.02.2015,Strategic Projects,Security of Buildings,376.00,ADT FIRE AND SECURITY PLC,
Capital,Head of HR & Organisational Change,5105617122,27.02.2015,Strategic Projects,Security of Buildings,-376.00,ADT FIRE AND SECURITY PLC,
Revenue,Head of Economy & Tourism,5105613057,11.02.2015,Cothey Bottom Store RYDE,Prop Svs only - Day to day mtce,188.00,ADT FIRE AND SECURITY PLC,
Revenue,Head of Economy & Tourism,5105615606,25.02.2015,Medina Leisure Centre,Payment to Private Contractors,78.00,ADT FIRE AND SECURITY PLC,
Revenue,Head of HR & Organisational Change,5105615602,25.02.2015,"County Hall,Newport",Security of Buildings,39.00,ADT FIRE AND SECURITY PLC,
Revenue,Head of Economy & Tourism,5105615214,20.02.2015,Westridge Squash Courts,Maintenance of Operational Equipment,287.28,ADT FIRE AND SECURITY PLC,
Revenue,Director of Childrens Services,5105613239,13.02.2015,Children In Need 1,Agency staff,"1,766.25",AFFINITY WORKFORCE,
Revenue,Director of Childrens Services,5105611839,06.02.2015,Children In Need 1,Agency staff,"1,665.00",AFFINITY WORKFORCE,
Revenue,Director of Childrens Services,5105613875,25.02.2015,Children In Need 1,Agency staff,"1,440.00",AFFINITY WORKFORCE,
Revenue,Director of Childrens Services,5105613875,25.02.2015,Children In Need 1,Agency staff,16.00,AFFINITY WORKFORCE,
Revenue,Director of Childrens Services,5105611839,06.02.2015,Children In Need 1,Agency staff,12.40,AFFINITY WORKFORCE,
Revenue,Director of Childrens Services,5105613239,13.02.2015,Children In Need 1,Agency staff,8.00,AFFINITY WORKFORCE,
Revenue,Director of Childrens Services,5105616919,27.02.2015,Children In Need 1,Agency staff,"1,597.50",AFFINITY WORKFORCE,
Revenue,Director of Childrens Services,5105613836,18.02.2015,Children In Need 1,Agency staff,"1,665.00",AFFINITY WORKFORCE,
Revenue,Director of Childrens Services,5105613141,13.02.2015,Children In Need 1,Agency staff,"1,027.00",AFFINITY WORKFORCE,
Revenue,Director of Childrens Services,5105615545,20.02.2015,Children In Need 1,Agency staff,"1,665.00",AFFINITY WORKFORCE,
Revenue,Director of Childrens Services,5105613295,13.02.2015,Referral & Assessment,Agency staff,"1,732.50",AFFINITY WORKFORCE,
Revenue,Director of Childrens Services,5105611823,27.02.2015,Referral & Assessment,Agency staff,"1,665.00",AFFINITY WORKFORCE,
Revenue,Director of Childrens Services,5105614907,20.02.2015,Referral & Assessment,Agency staff,"1,665.00",AFFINITY WORKFORCE,
Revenue,Director of Childrens Services,5105613900,18.02.2015,Referral & Assessment,Agency staff,"1,665.00",AFFINITY WORKFORCE,
Revenue,Director of Childrens Services,5105616708,27.02.2015,Referral & Assessment,Agency staff,"2,160.00",AFFINITY WORKFORCE,
Revenue,Director of Childrens Services,5105616708,27.02.2015,Referral & Assessment,Agency staff,67.50,AFFINITY WORKFORCE,
Revenue,Director of Childrens Services,5105613900,18.02.2015,Referral & Assessment,Agency staff,22.50,AFFINITY WORKFORCE,
Revenue,Director of Childrens Services,5105614907,20.02.2015,Referral & Assessment,Agency staff,47.25,AFFINITY WORKFORCE,
Revenue,Director of Childrens Services,5105611823,27.02.2015,Referral & Assessment,Agency staff,49.05,AFFINITY WORKFORCE,
Revenue,Director of Childrens Services,5105613295,13.02.2015,Referral & Assessment,Agency staff,27.00,AFFINITY WORKFORCE,
Revenue,Director of Childrens Services,5105617022,26.02.2015,Children In Need 2,Agency staff,-967.50,AFFINITY WORKFORCE,
Revenue,Director of Childrens Services,5105617026,27.02.2015,Children In Need 2,Agency staff,"1,591.00",AFFINITY WORKFORCE,
Revenue,Director of Childrens Services,5105616921,27.02.2015,Children In Need 2,Agency staff,"1,647.70",AFFINITY WORKFORCE,
Revenue,Director of Childrens Services,5105617026,27.02.2015,Children In Need 3,Agency staff,64.35,AFFINITY WORKFORCE,
Revenue,Director of Childrens Services,5105617023,26.02.2015,Children In Need 3,Agency staff,967.50,AFFINITY WORKFORCE,
Revenue,Director of Childrens Services,5105612293,06.02.2015,Children In Need 3,Agency staff,"2,324.56",AFFINITY WORKFORCE,
Revenue,Director of Childrens Services,5105613881,18.02.2015,Children In Need 3,Agency staff,"1,688.65",AFFINITY WORKFORCE,
Revenue,Head of ASC & Community Wellbeing,5105616194,25.02.2015,Elderly Frail Personal Budgets,Payments for Self Directed Support,689.84,REDACTED PERSONAL DATA,
Revenue,Director of Childrens Services,5105616605,25.02.2015,Special Educational Needs Transport,Taxis - Contract Hire,490.00,AKAR TAXIS,
Revenue,Director of Childrens Services,5105616610,25.02.2015,Special Educational Needs Transport,Taxis - Contract Hire,210.00,AKAR TAXIS,
Revenue,Head of ASC & Community Wellbeing,5105616254,25.02.2015,Elderly Frail Personal Budgets,Payments for Self Directed Support,"1,622.04",REDACTED PERSONAL DATA,
Revenue,Head of HR & Organisational Change,5105614235,18.02.2015,"County Hall,Newport","Refuse Collection, Disposal and Recycling Costs",48.00,ALAN NEWBERY WASTE MANAGEMENT,
Revenue,Head of ASC & Community Wellbeing,5105616264,25.02.2015,Physical Disability Personal Budgets,Payments for Self Directed Support,425.00,REDACTED PERSONAL DATA,
Revenue,Director of Childrens Services,5105613296,13.02.2015,Court Work & Consultancy Services,Legal Fees - Other Parties,240.00,ALERE TOXICOLOGY PLC,
Revenue,Director of Childrens Services,5105614765,18.02.2015,Direct Payments Children & Families,Direct Payments,194.32,REDACTED PERSONAL DATA,
Revenue,Director of Childrens Services,5105616482,27.02.2015,Special Educational Needs Reforms Grant,Training,"2,000.00",REDACTED PERSONAL DATA,
Revenue,Head of ASC & Community Wellbeing,5105616213,25.02.2015,Transitions Team Personal Budgets,Payments for Self Directed Support,660.00,REDACTED PERSONAL DATA,
Revenue,Head of Planning & Regulatory Services,5105615601,25.02.2015,Development Control,Advertising & Publicity,181.06,ALEXANDER ADVERTISING (INT) LTD,
Revenue,Head of Planning & Regulatory Services,5105614179,18.02.2015,Development Control,Advertising & Publicity,181.06,ALEXANDER ADVERTISING (INT) LTD,
Revenue,Head of Planning & Regulatory Services,5105613883,18.02.2015,Development Control,Advertising & Publicity,250.29,ALEXANDER ADVERTISING (INT) LTD,
Revenue,Head of Planning & Regulatory Services,5105612435,04.02.2015,Development Control,Advertising & Publicity,104.60,ALEXANDER ADVERTISING (INT) LTD,
Revenue,Head of ASC & Community Wellbeing,5105616309,25.02.2015,Mental Health Personal Budgets,Payments for Self Directed Support,"1,365.92",REDACTED PERSONAL DATA,
Revenue,Head of ASC & Community Wellbeing,5105616301,25.02.2015,Transitions Team Personal Budgets,Payments for Self Directed Support,246.52,REDACTED PERSONAL DATA,
Revenue,Director of Childrens Services,5105614808,18.02.2015,Support for Looked After Children - Disabled Childrens Team,Transport of Clients,600.00,ALPHA (IOW) LTD,
Revenue,Director of Childrens Services,5105614814,25.02.2015,Support for Looked After Children - Disabled Childrens Team,Transport of Clients,480.00,ALPHA (IOW) LTD,
Revenue,Director of Childrens Services,5105614841,20.02.2015,Support for Looked After Children - Disabled Childrens Team,Transport of Clients,480.00,ALPHA (IOW) LTD,
Revenue,Director of Childrens Services,5105614841,20.02.2015,Independ. & Non-Maint. Special Schls & Independ. Specialist Provision,Transport of Clients,480.00,ALPHA (IOW) LTD,
Revenue,Director of Childrens Services,5105614814,25.02.2015,Independ. & Non-Maint. Special Schls & Independ. Specialist Provision,Transport of Clients,480.00,ALPHA (IOW) LTD,
Revenue,Director of Childrens Services,5105614808,18.02.2015,Independ. & Non-Maint. Special Schls & Independ. Specialist Provision,Transport of Clients,600.00,ALPHA (IOW) LTD,
Revenue,Director of Childrens Services,5105614808,18.02.2015,Independ. & Non-Maint. Special Schls & Independ. Specialist Provision,Transport of Clients,152.90,ALPHA (IOW) LTD,
Revenue,Director of Childrens Services,5105614814,25.02.2015,Independ. & Non-Maint. Special Schls & Independ. Specialist Provision,Transport of Clients,86.50,ALPHA (IOW) LTD,
Revenue,Director of Childrens Services,5105614841,20.02.2015,Independ. & Non-Maint. Special Schls & Independ. Specialist Provision,Transport of Clients,90.50,ALPHA (IOW) LTD,
Revenue,Director of Childrens Services,5105614841,20.02.2015,Support for Looked After Children - Disabled Childrens Team,Transport of Clients,90.50,ALPHA (IOW) LTD,
Revenue,Director of Childrens Services,5105614814,25.02.2015,Support for Looked After Children - Disabled Childrens Team,Transport of Clients,86.50,ALPHA (IOW) LTD,
Revenue,Director of Childrens Services,5105614808,18.02.2015,Support for Looked After Children - Disabled Childrens Team,Transport of Clients,152.90,ALPHA (IOW) LTD,
Revenue,Director of Childrens Services,5105613247,11.02.2015,Special Educational Needs Transport,Taxis - Contract Hire,355.60,ALPHA (IOW) LTD,
Revenue,Director of Childrens Services,5105609801,04.02.2015,Special Educational Needs Transport,Taxis - Contract Hire,396.90,ALPHA (IOW) LTD,
Revenue,Director of Childrens Services,5105610858,04.02.2015,Special Educational Needs Transport,Taxis - Contract Hire,396.90,ALPHA (IOW) LTD,
Revenue,Director of Childrens Services,5105612356,04.02.2015,Special Educational Needs Transport,Taxis - Contract Hire,396.90,ALPHA (IOW) LTD,
Revenue,Director of Childrens Services,5105614215,18.02.2015,Special Educational Needs Transport,Taxis - Contract Hire,396.90,ALPHA (IOW) LTD,
Revenue,Director of Childrens Services,5105615582,25.02.2015,Special Educational Needs Transport,Taxis - Contract Hire,396.90,ALPHA (IOW) LTD,
Revenue,Director of Childrens Services,5105615582,25.02.2015,Special Educational Needs Transport,Taxis - Contract Hire,313.35,ALPHA (IOW) LTD,
Revenue,Director of Childrens Services,5105614215,18.02.2015,Special Educational Needs Transport,Taxis - Contract Hire,313.35,ALPHA (IOW) LTD,
Revenue,Director of Childrens Services,5105612356,04.02.2015,Special Educational Needs Transport,Taxis - Contract Hire,313.35,ALPHA (IOW) LTD,
Revenue,Director of Childrens Services,5105610858,04.02.2015,Special Educational Needs Transport,Taxis - Contract Hire,313.35,ALPHA (IOW) LTD,
Revenue,Director of Childrens Services,5105609801,04.02.2015,Special Educational Needs Transport,Taxis - Contract Hire,313.35,ALPHA (IOW) LTD,
Revenue,Director of Childrens Services,5105613247,11.02.2015,Special Educational Needs Transport,Taxis - Contract Hire,313.35,ALPHA (IOW) LTD,
Revenue,Director of Childrens Services,5105613247,11.02.2015,Home to School Transport,Taxis - Contract Hire,415.50,ALPHA (IOW) LTD,
Revenue,Director of Childrens Services,5105609801,04.02.2015,Home to School Transport,Taxis - Contract Hire,415.50,ALPHA (IOW) LTD,
Revenue,Director of Childrens Services,5105610858,04.02.2015,Home to School Transport,Taxis - Contract Hire,415.50,ALPHA (IOW) LTD,
Revenue,Director of Childrens Services,5105612356,04.02.2015,Home to School Transport,Taxis - Contract Hire,415.50,ALPHA (IOW) LTD,
Revenue,Director of Childrens Services,5105614215,18.02.2015,Home to School Transport,Taxis - Contract Hire,415.50,ALPHA (IOW) LTD,
Revenue,Director of Childrens Services,5105613247,11.02.2015,Special Educational Needs Transport,Taxis - Contract Hire,376.00,ALPHA (IOW) LTD,
Revenue,Director of Childrens Services,5105609801,04.02.2015,Special Educational Needs Transport,Taxis - Contract Hire,376.00,ALPHA (IOW) LTD,
Revenue,Director of Childrens Services,5105610858,04.02.2015,Special Educational Needs Transport,Taxis - Contract Hire,376.00,ALPHA (IOW) LTD,
Revenue,Director of Childrens Services,5105612356,04.02.2015,Special Educational Needs Transport,Taxis - Contract Hire,376.00,ALPHA (IOW) LTD,
Revenue,Director of Childrens Services,5105614215,18.02.2015,Special Educational Needs Transport,Taxis - Contract Hire,376.00,ALPHA (IOW) LTD,
Revenue,Director of Childrens Services,5105615582,25.02.2015,Special Educational Needs Transport,Taxis - Contract Hire,376.00,ALPHA (IOW) LTD,
Revenue,Director of Childrens Services,5105615582,25.02.2015,Special Educational Needs Transport,Taxis - Contract Hire,355.60,ALPHA (IOW) LTD,
Revenue,Director of Childrens Services,5105614215,18.02.2015,Special Educational Needs Transport,Taxis - Contract Hire,355.60,ALPHA (IOW) LTD,
Revenue,Director of Childrens Services,5105612356,04.02.2015,Special Educational Needs Transport,Taxis - Contract Hire,355.60,ALPHA (IOW) LTD,
Revenue,Director of Childrens Services,5105610858,04.02.2015,Special Educational Needs Transport,Taxis - Contract Hire,355.60,ALPHA (IOW) LTD,
Revenue,Director of Childrens Services,5105609801,04.02.2015,Special Educational Needs Transport,Taxis - Contract Hire,355.60,ALPHA (IOW) LTD,
Revenue,Director of Childrens Services,5105613247,11.02.2015,Special Educational Needs Transport,Taxis - Contract Hire,396.90,ALPHA (IOW) LTD,
Revenue,Director of Childrens Services,5105615582,25.02.2015,Home to School Transport,Taxis - Contract Hire,415.50,ALPHA (IOW) LTD,
Revenue,Director of Childrens Services,5105615582,25.02.2015,Special Educational Needs Transport,Taxis - Contract Hire,321.45,ALPHA (IOW) LTD,
Revenue,Director of Childrens Services,5105614215,18.02.2015,Special Educational Needs Transport,Taxis - Contract Hire,321.45,ALPHA (IOW) LTD,
Revenue,Director of Childrens Services,5105612356,04.02.2015,Special Educational Needs Transport,Taxis - Contract Hire,321.45,ALPHA (IOW) LTD,
Revenue,Director of Childrens Services,5105610858,04.02.2015,Special Educational Needs Transport,Taxis - Contract Hire,321.45,ALPHA (IOW) LTD,
Revenue,Director of Childrens Services,5105609801,04.02.2015,Special Educational Needs Transport,Taxis - Contract Hire,321.45,ALPHA (IOW) LTD,
Revenue,Director of Childrens Services,5105613247,11.02.2015,Special Educational Needs Transport,Taxis - Contract Hire,321.45,ALPHA (IOW) LTD,
Revenue,Director of Childrens Services,5105615582,25.02.2015,Special Educational Needs Transport,Taxis - Contract Hire,304.80,ALPHA (IOW) LTD,
Revenue,Director of Childrens Services,5105614215,18.02.2015,Special Educational Needs Transport,Taxis - Contract Hire,304.80,ALPHA (IOW) LTD,
Revenue,Director of Childrens Services,5105612356,04.02.2015,Special Educational Needs Transport,Taxis - Contract Hire,304.80,ALPHA (IOW) LTD,
Revenue,Director of Childrens Services,5105610858,04.02.2015,Special Educational Needs Transport,Taxis - Contract Hire,304.80,ALPHA (IOW) LTD,
Revenue,Director of Childrens Services,5105609801,04.02.2015,Special Educational Needs Transport,Taxis - Contract Hire,304.80,ALPHA (IOW) LTD,
Revenue,Director of Childrens Services,5105613247,11.02.2015,Special Educational Needs Transport,Taxis - Contract Hire,304.80,ALPHA (IOW) LTD,
Revenue,Director of Childrens Services,5105613247,11.02.2015,Home to School Transport,Taxis - Contract Hire,396.90,ALPHA (IOW) LTD,
Revenue,Director of Childrens Services,5105609801,04.02.2015,Home to School Transport,Taxis - Contract Hire,396.90,ALPHA (IOW) LTD,
Revenue,Director of Childrens Services,5105610858,04.02.2015,Home to School Transport,Taxis - Contract Hire,396.90,ALPHA (IOW) LTD,
Revenue,Director of Childrens Services,5105612356,04.02.2015,Home to School Transport,Taxis - Contract Hire,396.90,ALPHA (IOW) LTD,
Revenue,Director of Childrens Services,5105614215,18.02.2015,Home to School Transport,Taxis - Contract Hire,396.90,ALPHA (IOW) LTD,
Revenue,Director of Childrens Services,5105615582,25.02.2015,Home to School Transport,Taxis - Contract Hire,396.90,ALPHA (IOW) LTD,
Revenue,Director of Childrens Services,5105615582,25.02.2015,Special Educational Needs Transport,Taxis - Contract Hire,267.90,ALPHA (IOW) LTD,
Revenue,Director of Childrens Services,5105614215,18.02.2015,Special Educational Needs Transport,Taxis - Contract Hire,267.90,ALPHA (IOW) LTD,
Revenue,Director of Childrens Services,5105612356,04.02.2015,Special Educational Needs Transport,Taxis - Contract Hire,267.90,ALPHA (IOW) LTD,
Revenue,Director of Childrens Services,5105610858,04.02.2015,Special Educational Needs Transport,Taxis - Contract Hire,267.90,ALPHA (IOW) LTD,
Revenue,Director of Childrens Services,5105609801,04.02.2015,Special Educational Needs Transport,Taxis - Contract Hire,267.90,ALPHA (IOW) LTD,
Revenue,Director of Childrens Services,5105613247,11.02.2015,Special Educational Needs Transport,Taxis - Contract Hire,267.90,ALPHA (IOW) LTD,
Revenue,Director of Childrens Services,5105613247,11.02.2015,Special Educational Needs Transport,Taxis - Contract Hire,457.20,ALPHA (IOW) LTD,
Revenue,Director of Childrens Services,5105609801,04.02.2015,Special Educational Needs Transport,Taxis - Contract Hire,457.20,ALPHA (IOW) LTD,
Revenue,Director of Childrens Services,5105610858,04.02.2015,Special Educational Needs Transport,Taxis - Contract Hire,457.20,ALPHA (IOW) LTD,
Revenue,Director of Childrens Services,5105612356,04.02.2015,Special Educational Needs Transport,Taxis - Contract Hire,457.20,ALPHA (IOW) LTD,
Revenue,Director of Childrens Services,5105614215,18.02.2015,Special Educational Needs Transport,Taxis - Contract Hire,457.20,ALPHA (IOW) LTD,
Revenue,Director of Childrens Services,5105615582,25.02.2015,Special Educational Needs Transport,Taxis - Contract Hire,457.20,ALPHA (IOW) LTD,
Revenue,Director of Childrens Services,5105615582,25.02.2015,Special Educational Needs Transport,Taxis - Contract Hire,461.75,ALPHA (IOW) LTD,
Revenue,Director of Childrens Services,5105614215,18.02.2015,Special Educational Needs Transport,Taxis - Contract Hire,461.75,ALPHA (IOW) LTD,
Revenue,Director of Childrens Services,5105612356,04.02.2015,Special Educational Needs Transport,Taxis - Contract Hire,461.75,ALPHA (IOW) LTD,
Revenue,Director of Childrens Services,5105610858,04.02.2015,Special Educational Needs Transport,Taxis - Contract Hire,461.75,ALPHA (IOW) LTD,
Revenue,Director of Childrens Services,5105609801,04.02.2015,Special Educational Needs Transport,Taxis - Contract Hire,461.75,ALPHA (IOW) LTD,
Revenue,Director of Childrens Services,5105613247,11.02.2015,Special Educational Needs Transport,Taxis - Contract Hire,461.75,ALPHA (IOW) LTD,
Revenue,Director of Childrens Services,5105615582,25.02.2015,Home to School Transport,Taxis - Contract Hire,254.00,ALPHA (IOW) LTD,
Revenue,Director of Childrens Services,5105610858,04.02.2015,Home to School Transport,Taxis - Contract Hire,254.00,ALPHA (IOW) LTD,
Revenue,Director of Childrens Services,5105609801,04.02.2015,Home to School Transport,Taxis - Contract Hire,254.00,ALPHA (IOW) LTD,
Revenue,Director of Childrens Services,5105612356,04.02.2015,Home to School Transport,Taxis - Contract Hire,254.00,ALPHA (IOW) LTD,
Revenue,Director of Childrens Services,5105613247,11.02.2015,Home to School Transport,Taxis - Contract Hire,254.00,ALPHA (IOW) LTD,
Revenue,Director of Childrens Services,5105614215,18.02.2015,Home to School Transport,Taxis - Contract Hire,254.00,ALPHA (IOW) LTD,
Revenue,Director of Childrens Services,5105613247,11.02.2015,Special Educational Needs Transport,Taxis - Contract Hire,188.00,ALPHA (IOW) LTD,
Revenue,Director of Childrens Services,5105612356,04.02.2015,Special Educational Needs Transport,Taxis - Contract Hire,188.00,ALPHA (IOW) LTD,
Revenue,Director of Childrens Services,5105609801,04.02.2015,Special Educational Needs Transport,Taxis - Contract Hire,188.00,ALPHA (IOW) LTD,
Revenue,Director of Childrens Services,5105610858,04.02.2015,Special Educational Needs Transport,Taxis - Contract Hire,188.00,ALPHA (IOW) LTD,
Revenue,Director of Childrens Services,5105614215,18.02.2015,Special Educational Needs Transport,Taxis - Contract Hire,188.00,ALPHA (IOW) LTD,
Revenue,Director of Childrens Services,5105615582,25.02.2015,Special Educational Needs Transport,Taxis - Contract Hire,188.00,ALPHA (IOW) LTD,
Revenue,Director of Childrens Services,5105615582,25.02.2015,Special Educational Needs Transport,Taxis - Contract Hire,260.00,ALPHA (IOW) LTD,
Revenue,Director of Childrens Services,5105614215,18.02.2015,Special Educational Needs Transport,Taxis - Contract Hire,260.00,ALPHA (IOW) LTD,
Revenue,Director of Childrens Services,5105610858,04.02.2015,Special Educational Needs Transport,Taxis - Contract Hire,260.00,ALPHA (IOW) LTD,
Revenue,Director of Childrens Services,5105609801,04.02.2015,Special Educational Needs Transport,Taxis - Contract Hire,260.00,ALPHA (IOW) LTD,
Revenue,Director of Childrens Services,5105612356,04.02.2015,Special Educational Needs Transport,Taxis - Contract Hire,260.00,ALPHA (IOW) LTD,
Revenue,Director of Childrens Services,5105613247,11.02.2015,Special Educational Needs Transport,Taxis - Contract Hire,260.00,ALPHA (IOW) LTD,
Revenue,Director of Childrens Services,5105613247,11.02.2015,Home to School Transport,Taxis - Contract Hire,428.25,ALPHA (IOW) LTD,
Revenue,Director of Childrens Services,5105609801,04.02.2015,Home to School Transport,Taxis - Contract Hire,428.25,ALPHA (IOW) LTD,
Revenue,Director of Childrens Services,5105610858,04.02.2015,Home to School Transport,Taxis - Contract Hire,428.25,ALPHA (IOW) LTD,
Revenue,Director of Childrens Services,5105612356,04.02.2015,Home to School Transport,Taxis - Contract Hire,428.25,ALPHA (IOW) LTD,
Revenue,Director of Childrens Services,5105614215,18.02.2015,Home to School Transport,Taxis - Contract Hire,428.25,ALPHA (IOW) LTD,
Revenue,Director of Childrens Services,5105615582,25.02.2015,Home to School Transport,Taxis - Contract Hire,428.25,ALPHA (IOW) LTD,
Revenue,Director of Childrens Services,5105615582,25.02.2015,Special Educational Needs Transport,Taxis - Contract Hire,320.00,ALPHA (IOW) LTD,
Revenue,Director of Childrens Services,5105614215,18.02.2015,Special Educational Needs Transport,Taxis - Contract Hire,320.00,ALPHA (IOW) LTD,
Revenue,Director of Childrens Services,5105612356,04.02.2015,Special Educational Needs Transport,Taxis - Contract Hire,320.00,ALPHA (IOW) LTD,
Revenue,Director of Childrens Services,5105610858,04.02.2015,Special Educational Needs Transport,Taxis - Contract Hire,320.00,ALPHA (IOW) LTD,
Revenue,Director of Childrens Services,5105609801,04.02.2015,Special Educational Needs Transport,Taxis - Contract Hire,320.00,ALPHA (IOW) LTD,
Revenue,Director of Childrens Services,5105613247,11.02.2015,Special Educational Needs Transport,Taxis - Contract Hire,320.00,ALPHA (IOW) LTD,
Revenue,Director of Childrens Services,5105613247,11.02.2015,Home to School Transport,Taxis - Contract Hire,314.95,ALPHA (IOW) LTD,
Revenue,Director of Childrens Services,5105609801,04.02.2015,Home to School Transport,Taxis - Contract Hire,314.95,ALPHA (IOW) LTD,
Revenue,Director of Childrens Services,5105610858,04.02.2015,Home to School Transport,Taxis - Contract Hire,314.95,ALPHA (IOW) LTD,
Revenue,Director of Childrens Services,5105612356,04.02.2015,Home to School Transport,Taxis - Contract Hire,314.95,ALPHA (IOW) LTD,
Revenue,Director of Childrens Services,5105614215,18.02.2015,Home to School Transport,Taxis - Contract Hire,314.95,ALPHA (IOW) LTD,
Revenue,Director of Childrens Services,5105615582,25.02.2015,Home to School Transport,Taxis - Contract Hire,314.95,ALPHA (IOW) LTD,
Revenue,Director of Childrens Services,5105610858,04.02.2015,Special Educational Needs Transport,Taxis - Contract Hire,100.00,ALPHA (IOW) LTD,
Revenue,Director of Childrens Services,5105612356,04.02.2015,Special Educational Needs Transport,Taxis - Contract Hire,100.00,ALPHA (IOW) LTD,
Revenue,Director of Childrens Services,5105613247,11.02.2015,Special Educational Needs Transport,Taxis - Contract Hire,100.00,ALPHA (IOW) LTD,
Revenue,Director of Childrens Services,5105614215,18.02.2015,Special Educational Needs Transport,Taxis - Contract Hire,100.00,ALPHA (IOW) LTD,
Revenue,Director of Childrens Services,5105615582,25.02.2015,Special Educational Needs Transport,Taxis - Contract Hire,100.00,ALPHA (IOW) LTD,
Revenue,Director of Childrens Services,5105609801,04.02.2015,Special Educational Needs Transport,Taxis - Contract Hire,100.00,ALPHA (IOW) LTD,
Revenue,Director of Childrens Services,5105615581,20.02.2015,Clatterford Pupil Referral Unit (PRU),Transport of Clients,40.65,ALPHA (IOW) LTD,
Revenue,Director of Childrens Services,5105616930,27.02.2015,Contact Team,Transport of Clients,576.88,ALPHA (IOW) LTD,
Revenue,Director of Childrens Services,5105616930,27.02.2015,Education Welfare Service,Transport of Clients,576.88,ALPHA (IOW) LTD,
Revenue,Director of Childrens Services,5105614814,25.02.2015,Children in Care Team,Transport of Clients,744.60,ALPHA (IOW) LTD,
Revenue,Head of ASC & Community Wellbeing,5105615687,25.02.2015,Learning Disability Residential Care,Charges from Independent Providers,"3,836.84",ALPHAGRANGE LTD,
Revenue,Head of ASC & Community Wellbeing,5105616069,25.02.2015,Learning Disability Personal Budgets,Payments for Self Directed Support,826.40,REDACTED PERSONAL DATA,
Revenue,Head of ASC & Community Wellbeing,5105616184,25.02.2015,Transitions Team Personal Budgets,Payments for Self Directed Support,236.60,REDACTED PERSONAL DATA,
Revenue,Head of ASC & Community Wellbeing,5105616265,25.02.2015,Physical Disability Personal Budgets,Payments for Self Directed Support,"1,103.32",REDACTED PERSONAL DATA,
Revenue,Head of ASC & Community Wellbeing,5105615689,25.02.2015,Elderly Frail Residential Care,Charges from Independent Providers,"2,093.84",ANCONA CARE HOME,
Revenue,Head of ASC & Community Wellbeing,5105615689,25.02.2015,Elderly Mentally Ill Residential Care,Charges from Independent Providers,"1,781.36",ANCONA CARE HOME,
Revenue,Head of ASC & Community Wellbeing,5105615689,25.02.2015,Elderly Frail Residential Care,Charges from Independent Providers,"1,700.44",ANCONA CARE HOME,
Revenue,Head of ASC & Community Wellbeing,5105615336,20.02.2015,Elderly Frail Residential Care,Charges from Independent Providers,60.73,ANCONA CARE HOME,
Revenue,Head of ASC & Community Wellbeing,5105615336,20.02.2015,Elderly Frail Residential Care,Charges from Independent Providers,"1,700.44",ANCONA CARE HOME,
Revenue,Head of ASC & Community Wellbeing,5105615689,25.02.2015,Elderly Frail Residential Care,Charges from Independent Providers,"1,700.44",ANCONA CARE HOME,
Revenue,Head of ASC & Community Wellbeing,5105615689,25.02.2015,HOLMES Edith - Ancona,Order Settlement to Bal Sht GL,"1,781.36",ANCONA CARE HOME,
Revenue,Head of Economy & Tourism,5105612464,04.02.2015,Rights of Way Operations,Payment to Private Contractors,393.75,REDACTED PERSONAL DATA,
Revenue,Head of Economy & Tourism,5105614864,20.02.2015,Rights of Way Operations,Payment to Private Contractors,271.25,REDACTED PERSONAL DATA,
Revenue,Head of Economy & Tourism,5105617081,27.02.2015,Rights of Way Operations,Payment to Private Contractors,280.00,REDACTED PERSONAL DATA,
Revenue,Head of Economy & Tourism,5105617084,27.02.2015,Rights of Way Operations,Payment to Private Contractors,402.50,REDACTED PERSONAL DATA,
Revenue,Head of ASC & Community Wellbeing,5105616145,25.02.2015,Transitions Team Personal Budgets,Payments for Self Directed Support,"2,596.00",REDACTED PERSONAL DATA,
Revenue,Director of Childrens Services,5105613015,11.02.2015,Court Work & Consultancy Services,Legal Fees - Other Parties,145.00,ANGLIA DNA SERVICES LTD,
Revenue,Head of Exchequer Services,5105615164,20.02.2015,Staff Benefits,Payment to Private Contractors,225.00,REDACTED PERSONAL DATA,
Revenue,Head of ASC & Community Wellbeing,5105615967,25.02.2015,Mental Health Personal Budgets,Payments for Self Directed Support,440.00,REDACTED PERSONAL DATA,
Revenue,Head of ASC & Community Wellbeing,5105616169,25.02.2015,Mental Health Personal Budgets,Payments for Self Directed Support,30.80,REDACTED PERSONAL DATA,
Revenue,Head of ASC & Community Wellbeing,5105615764,25.02.2015,Learning Disability Personal Budgets,Payments for Self Directed Support,800.00,REDACTED PERSONAL DATA,
Revenue,Head of ASC & Community Wellbeing,5105613854,25.02.2015,Commissioning Manager for Adult Social Care,Interim Staff,"3,463.25",ANNE BUTLER CONSULTING LTD,
Revenue,Head of Economy & Tourism,5105613269,11.02.2015,Print Unit,Printing Costs,69.90,ANTALIS MCNAUGHTON,
Revenue,Head of Economy & Tourism,5105613269,11.02.2015,Print Unit,Printing Costs,29.20,ANTALIS MCNAUGHTON,
Revenue,Head of Economy & Tourism,5105614180,18.02.2015,Print Unit,Printing Costs,29.20,ANTALIS MCNAUGHTON,
Revenue,Head of Economy & Tourism,5105615573,20.02.2015,Print Unit,Printing Costs,69.90,ANTALIS MCNAUGHTON,
Revenue,Head of Economy & Tourism,5105616585,25.02.2015,Print Unit,Printing Costs,69.90,ANTALIS MCNAUGHTON,
Revenue,Head of Economy & Tourism,5105616682,25.02.2015,Print Unit,Printing Costs,42.60,ANTALIS MCNAUGHTON,
Revenue,Head of ASC & Community Wellbeing,5105612412,04.02.2015,Learning Disability Personal Budgets,Payments for Self Directed Support,60.00,REDACTED PERSONAL DATA,
Revenue,Head of ASC & Community Wellbeing,5105616334,25.02.2015,Transitions Team Personal Budgets,Payments for Self Directed Support,"3,233.28",REDACTED PERSONAL DATA,
Revenue,Head of ASC & Community Wellbeing,5105613608,13.02.2015,S75 Integrated Community Equipment Store,Operational Equipment,"1,999.50",APOLLO HEALTHCARE TECHNOLOGIES,
Revenue,Head of ASC & Community Wellbeing,5105613611,13.02.2015,S75 Integrated Community Equipment Store,Operational Equipment,"1,999.50",APOLLO HEALTHCARE TECHNOLOGIES,
Revenue,Head of ASC & Community Wellbeing,5105613615,13.02.2015,S75 Integrated Community Equipment Store,Operational Equipment,"1,999.50",APOLLO HEALTHCARE TECHNOLOGIES,
Revenue,Head of ASC & Community Wellbeing,5105613613,13.02.2015,S75 Integrated Community Equipment Store,Operational Equipment,"1,999.50",APOLLO HEALTHCARE TECHNOLOGIES,
Revenue,Head of Economy & Tourism,5105613034,11.02.2015,SOREC Project ERDF,Grants to External Bodies,"15,441.56",APPLIED POLYMER DEVELOPMENTS,
Capital,Head of Planning & Regulatory Services,5105613894,18.02.2015,Highways transport capital,Payment to Contractors - Capital,"1,500.00",ARC CONSULTING LTD,
Revenue,Head of ASC & Community Wellbeing,5105613271,11.02.2015,Community Outreach,Clothing & Laundry,1.80,ARCO LTD,
Revenue,Head of ASC & Community Wellbeing,5105613271,11.02.2015,Community Outreach,Clothing & Laundry,6.40,ARCO LTD,
Revenue,Head of HR & Organisational Change,5105608261,11.02.2015,Corporate Stores,Clothing & Laundry,41.89,ARCO LTD,
Revenue,Head of HR & Organisational Change,5105606594,11.02.2015,Corporate Stores,Clothing & Laundry,139.71,ARCO LTD,
Revenue,Head of HR & Organisational Change,5105613020,11.02.2015,Corporate Stores,Clothing & Laundry,-50.26,ARCO LTD,
Revenue,Head of HR & Organisational Change,5105613021,11.02.2015,Corporate Stores,Clothing & Laundry,-41.89,ARCO LTD,
Revenue,Head of HR & Organisational Change,5105613268,11.02.2015,Corporate Stores,Clothing & Laundry,56.35,ARCO LTD,
Revenue,Head of HR & Organisational Change,5105613268,11.02.2015,County Hall Central Mail Room,Clothing & Laundry,18.78,ARCO LTD,
Revenue,Head of HR & Organisational Change,5105613021,11.02.2015,County Hall Central Mail Room,Clothing & Laundry,-13.96,ARCO LTD,
Revenue,Head of Economy & Tourism,5105612463,06.02.2015,The Heights,Operational Equipment,49.72,ARCO LTD,
Revenue,Head of HR & Organisational Change,5105613020,11.02.2015,County Hall Central Mail Room,Clothing & Laundry,-16.76,ARCO LTD,
Revenue,Head of HR & Organisational Change,5105608261,11.02.2015,County Hall Central Mail Room,Clothing & Laundry,13.96,ARCO LTD,
Revenue,Head of HR & Organisational Change,5105606594,11.02.2015,County Hall Central Mail Room,Clothing & Laundry,46.57,ARCO LTD,
Revenue,Chief Fire Officer,5105613230,11.02.2015,Fire Technical Support,Stock Purchases,129.08,ARCO LTD,
Revenue,Chief Fire Officer,5105613233,11.02.2015,Fire Technical Support,Stock Purchases,104.02,ARCO LTD,
Revenue,Chief Fire Officer,5105613230,11.02.2015,Fire Technical Support,Stock Purchases,42.25,ARCO LTD,
Revenue,Chief Fire Officer,5105613230,11.02.2015,Fire Technical Support,Stock Purchases,2.28,ARCO LTD,
Revenue,Chief Fire Officer,5105613230,11.02.2015,Fire Technical Support,Stock Purchases,13.18,ARCO LTD,
Revenue,Chief Fire Officer,5105613230,11.02.2015,Fire Technical Support,Stock Purchases,8.31,ARCO LTD,
Revenue,Chief Fire Officer,5105613230,11.02.2015,Fire Technical Support,Stock Purchases,7.15,ARCO LTD,
Revenue,Chief Fire Officer,5105613230,11.02.2015,Fire Technical Support,Stock Purchases,14.14,ARCO LTD,
Revenue,Chief Fire Officer,5105613230,11.02.2015,Fire Technical Support,Stock Purchases,40.35,ARCO LTD,
Revenue,Head of Economy & Tourism,5105612985,25.02.2015,Ferry Operation,Clothing & Laundry,20.64,ARCO LTD,
Revenue,Head of ASC & Community Wellbeing,5105613306,13.02.2015,Saxonbury,Clothing & Laundry,22.68,ARCO LTD,
Revenue,Head of ASC & Community Wellbeing,5105613306,13.02.2015,Saxonbury,Clothing & Laundry,29.16,ARCO LTD,
Revenue,Head of ASC & Community Wellbeing,5105613306,13.02.2015,Saxonbury,Clothing & Laundry,29.16,ARCO LTD,
Revenue,Head of ASC & Community Wellbeing,5105613258,13.02.2015,Community Outreach,Clothing & Laundry,9.00,ARCO LTD,
Revenue,Head of ASC & Community Wellbeing,5105613258,13.02.2015,Community Outreach,Clothing & Laundry,13.10,ARCO LTD,
Revenue,Head of ASC & Community Wellbeing,5105613258,13.02.2015,Community Outreach,Clothing & Laundry,6.55,ARCO LTD,
Revenue,Head of ASC & Community Wellbeing,5105613258,13.02.2015,Community Outreach,Clothing & Laundry,13.10,ARCO LTD,
Revenue,Head of ASC & Community Wellbeing,5105613258,13.02.2015,Community Outreach,Clothing & Laundry,6.40,ARCO LTD,
Revenue,Head of ASC & Community Wellbeing,5105613258,13.02.2015,Community Outreach,Clothing & Laundry,10.98,ARCO LTD,
Revenue,Head of ASC & Community Wellbeing,5105613258,13.02.2015,Community Outreach,Clothing & Laundry,10.98,ARCO LTD,
Revenue,Head of ASC & Community Wellbeing,5105616386,25.02.2015,Community Outreach,Clothing & Laundry,1.60,ARCO LTD,
Revenue,Head of ASC & Community Wellbeing,5105616386,25.02.2015,Community Outreach,Clothing & Laundry,10.98,ARCO LTD,
Revenue,Head of ASC & Community Wellbeing,5105617103,27.02.2015,Community Outreach,Clothing & Laundry,7.20,ARCO LTD,
Revenue,Head of ASC & Community Wellbeing,5105617018,27.02.2015,Community Outreach,Clothing & Laundry,6.48,ARCO LTD,
Revenue,Head of Economy & Tourism,5105616985,27.02.2015,Newport Harbour Account,Clothing & Laundry,36.80,ARCO LTD,
Revenue,Head of ASC & Community Wellbeing,5105612462,04.02.2015,S75 Integrated Community Equipment Store,Maintenance of Operational Equipment,12.98,ARJO MED AB LTD,
Revenue,Director of Childrens Services,5105616555,25.02.2015,Workforce Development Schools,Training,835.33,ASPIRO EDUCATION LIMITED,
Revenue,Head of HR & Organisational Change,5105616941,27.02.2015,"Jubilee Stores, Newport",Prop Svs only - Day to day mtce,30.04,ASSA ABLOY ENTRANCE SYSTEMS LTD,
Revenue,Director of Childrens Services,5105616626,27.02.2015,Thompson House Tuition Centre (PRU),Prop Svs only - Day to day mtce,59.08,ASSA ABLOY ENTRANCE SYSTEMS LTD,
Revenue,Head of Economy & Tourism,5105613286,13.02.2015,Medina Theatre,Prop Svs only - Day to day mtce,475.07,ASSA ABLOY ENTRANCE SYSTEMS LTD,
Revenue,Head of HR & Organisational Change,5105614874,20.02.2015,"Westridge, Ryde",Prop Svs only - Day to day mtce,412.00,ASSA ABLOY ENTRANCE SYSTEMS LTD,
Revenue,Head of Economy & Tourism,5105612229,11.02.2015,Medina Leisure Centre,Prop Svs only - Day to day mtce,86.63,ASSA ABLOY ENTRANCE SYSTEMS LTD,
Revenue,Head of Corp Gov & Monitoring Officer,5105612424,04.02.2015,Electoral Registration Office,Professional Subscriptions,47.50,ASSOCIATION OF ELECTORAL ADMINISTRATORS,
Revenue,Head of Finance & S151 Officer,5105616606,25.02.2015,Transport contracts,Professional Services,50.00,ATCO TRANSPORT PROFESSIONALS,
Revenue,Head of Economy & Tourism,5105613944,18.02.2015,Cemeteries Administration,Vehicle Maintenance Costs,-5.85,ATS EUROMASTER LTD,
Revenue,Chief Fire Officer,5105613586,13.02.2015,Fire Technical Support,Vehicle Maintenance Costs,220.92,ATS EUROMASTER LTD,
Revenue,Chief Fire Officer,5105613586,13.02.2015,Fire Technical Support,Vehicle Maintenance Costs,8.70,ATS EUROMASTER LTD,
Revenue,Chief Fire Officer,5105613586,13.02.2015,Fire Technical Support,Vehicle Maintenance Costs,2.32,ATS EUROMASTER LTD,
Revenue,Chief Fire Officer,5105613586,13.02.2015,Fire Technical Support,Vehicle Maintenance Costs,3.72,ATS EUROMASTER LTD,
Revenue,Head of Exchequer Services,5105614206,25.02.2015,Revenues & Benefits Operational Support,Stationery,248.70,AUTOMAIL ENVELOPES LTD,
Revenue,Head of ASC & Community Wellbeing,5105615660,25.02.2015,Elderly Mentally Ill Residential Care,Charges from Independent Providers,"1,781.36",AUTUMN HOUSE CARE LTD,
Revenue,Head of ASC & Community Wellbeing,5105615660,25.02.2015,Elderly Mentally Ill Residential Care,Charges from Independent Providers,"2,093.84",AUTUMN HOUSE CARE LTD,
Revenue,Head of ASC & Community Wellbeing,5105615660,25.02.2015,Elderly Mentally Ill Residential Care,Charges from Independent Providers,"2,093.84",AUTUMN HOUSE CARE LTD,
Revenue,Head of ASC & Community Wellbeing,5105615660,25.02.2015,Elderly Mentally Ill Residential Care,Charges from Independent Providers,"2,093.84",AUTUMN HOUSE CARE LTD,
Revenue,Head of ASC & Community Wellbeing,5105615660,25.02.2015,Elderly Mentally Ill Residential Care,Charges from Independent Providers,"1,781.36",AUTUMN HOUSE CARE LTD,
Revenue,Head of ASC & Community Wellbeing,5105615660,25.02.2015,Elderly Mentally Ill Residential Care,Charges from Independent Providers,"2,093.84",AUTUMN HOUSE CARE LTD,
Revenue,Head of ASC & Community Wellbeing,5105615660,25.02.2015,Elderly Mentally Ill Residential Care,Charges from Independent Providers,"2,093.84",AUTUMN HOUSE CARE LTD,
Revenue,Head of ASC & Community Wellbeing,5105615660,25.02.2015,Elderly Mentally Ill Residential Care,Charges from Independent Providers,"2,093.84",AUTUMN HOUSE CARE LTD,
Revenue,Head of ASC & Community Wellbeing,5105615660,25.02.2015,Elderly Mentally Ill Residential Care,Charges from Independent Providers,"2,093.84",AUTUMN HOUSE CARE LTD,
Revenue,Head of ASC & Community Wellbeing,5105615660,25.02.2015,Elderly Frail Residential Care,Charges from Independent Providers,"2,093.84",AUTUMN HOUSE CARE LTD,
Revenue,Head of ASC & Community Wellbeing,5105615660,25.02.2015,Elderly Mentally Ill Residential Care,Charges from Independent Providers,"2,093.84",AUTUMN HOUSE CARE LTD,
Revenue,Head of ASC & Community Wellbeing,5105615660,25.02.2015,Elderly Mentally Ill Residential Care,Charges from Independent Providers,"2,093.84",AUTUMN HOUSE CARE LTD,
Revenue,Head of ASC & Community Wellbeing,5105615660,25.02.2015,Elderly Mentally Ill Residential Care,Charges from Independent Providers,"2,093.84",AUTUMN HOUSE CARE LTD,
Revenue,Head of ASC & Community Wellbeing,5105615660,25.02.2015,Elderly Mentally Ill Residential Care,Charges from Independent Providers,"2,093.84",AUTUMN HOUSE CARE LTD,
Revenue,Head of ASC & Community Wellbeing,5105615660,25.02.2015,Elderly Mentally Ill Residential Care,Charges from Independent Providers,"2,093.84",AUTUMN HOUSE CARE LTD,
Revenue,Head of ASC & Community Wellbeing,5105615660,25.02.2015,Elderly Mentally Ill Residential Care,Charges from Independent Providers,"1,781.36",AUTUMN HOUSE CARE LTD,
Revenue,Head of ASC & Community Wellbeing,5105615660,25.02.2015,Elderly Mentally Ill Residential Care,Charges from Independent Providers,"2,093.84",AUTUMN HOUSE CARE LTD,
Revenue,Head of ASC & Community Wellbeing,5105615660,25.02.2015,Elderly Mentally Ill Residential Care,Charges from Independent Providers,"2,093.84",AUTUMN HOUSE CARE LTD,
Revenue,Head of ASC & Community Wellbeing,5105615660,25.02.2015,Mental Health Residential Care,Charges from Independent Providers,"1,700.44",AUTUMN HOUSE CARE LTD,
Revenue,Head of ASC & Community Wellbeing,5105612404,13.02.2015,Elderly Mentally Ill Residential Care,Charges from Independent Providers,"1,869.50",AUTUMN HOUSE CARE LTD,
Revenue,Head of ASC & Community Wellbeing,5105613779,18.02.2015,Elderly Mentally Ill Residential Care,Charges from Independent Providers,"1,794.72",AUTUMN HOUSE CARE LTD,
Revenue,Head of ASC & Community Wellbeing,5105615660,25.02.2015,Elderly Frail Residential Care,Charges from Independent Providers,"2,093.84",AUTUMN HOUSE CARE LTD,
Revenue,Head of ASC & Community Wellbeing,5105612558,13.02.2015,Elderly Mentally Ill Residential Care,Charges from Independent Providers,190.86,AUTUMN HOUSE CARE LTD,
Revenue,Head of ASC & Community Wellbeing,5105612558,13.02.2015,Elderly Mentally Ill Residential Care,Charges from Independent Providers,"1,781.36",AUTUMN HOUSE CARE LTD,
Revenue,Head of ASC & Community Wellbeing,5105615660,25.02.2015,Elderly Mentally Ill Residential Care,Charges from Independent Providers,"2,093.84",AUTUMN HOUSE CARE LTD,
Revenue,Head of ASC & Community Wellbeing,5105615660,25.02.2015,SMITH Elsie - Autumn House,Order Settlement to Bal Sht GL,"1,781.36",AUTUMN HOUSE CARE LTD,
Revenue,Head of ASC & Community Wellbeing,5105616736,27.02.2015,Elderly Mentally Ill Residential Care,Charges from Independent Providers,954.30,AUTUMN HOUSE CARE LTD,
Revenue,Head of ASC & Community Wellbeing,5105613328,13.02.2015,Elderly Mentally Ill Residential Care,Regular Respite Care,"1,208.78",AUTUMN HOUSE CARE LTD,
Revenue,Head of HR & Organisational Change,5105613243,11.02.2015,Payroll,Consultants Fees,345.00,AVALON VALE UK LTD,
Revenue,Head of Economy & Tourism,5105617070,27.02.2015,Duke of Edingburgh Award,Stationery,687.00,AWARD SCHEME LTD,
Revenue,Head of Economy & Tourism,5105616348,25.02.2015,Duke of Edingburgh Award,Stationery,149.90,AWARD SCHEME LTD,
Revenue,Head of Economy & Tourism,5105616348,25.02.2015,Duke of Edingburgh Award,Stationery,6.25,AWARD SCHEME LTD,
Revenue,Director of Childrens Services,5105616774,27.02.2015,Leaving Care Costs,Accommodation Costs - Service Users,50.00,REDACTED PERSONAL DATA,
Revenue,Director of Childrens Services,5105615004,20.02.2015,Leaving Care Costs,Accommodation Costs - Service Users,50.00,REDACTED PERSONAL DATA,
Revenue,Director of Childrens Services,5105613367,13.02.2015,Leaving Care Costs,Accommodation Costs - Service Users,50.00,REDACTED PERSONAL DATA,
Revenue,Director of Childrens Services,5105612678,06.02.2015,Leaving Care Costs,Accommodation Costs - Service Users,50.00,REDACTED PERSONAL DATA,
Revenue,Director of Childrens Services,5105614165,18.02.2015,Beaulieu House,Minor Works,27.46,B & Q FINANCIAL SERVICES,
Revenue,Head of ASC & Community Wellbeing,5105616042,25.02.2015,Elderly Frail Personal Budgets,Payments for Self Directed Support,349.00,REDACTED PERSONAL DATA,
Revenue,Head of ASC & Community Wellbeing,5105615830,25.02.2015,Physical Disability Personal Budgets,Payments for Self Directed Support,"1,153.64",REDACTED PERSONAL DATA,
Revenue,Head of ASC & Community Wellbeing,5105617136,27.02.2015,Elderly Frail Personal Budgets,Payments for Self Directed Support,502.95,REDACTED PERSONAL DATA,
Revenue,Director of Childrens Services,5105616474,25.02.2015,Branstone Farm Studies Centre,Gas,57.00,REDACTED PERSONAL DATA,
Revenue,Director of Childrens Services,5105616474,25.02.2015,Branstone Farm Studies Centre,Gas,76.00,REDACTED PERSONAL DATA,
Revenue,Director of Childrens Services,5105616474,25.02.2015,Branstone Farm Studies Centre,Gas,76.00,REDACTED PERSONAL DATA,
Revenue,Head of ASC & Community Wellbeing,5105615741,25.02.2015,Learning Disability Personal Budgets,Payments for Self Directed Support,"1,250.80",REDACTED PERSONAL DATA,
Revenue,Head of ASC & Community Wellbeing,5105615674,25.02.2015,Learning Disability Residential Care,Charges from Independent Providers,"1,894.76",REDACTED PERSONAL DATA,
Revenue,Head of ASC & Community Wellbeing,5105615674,25.02.2015,Learning Disability Residential Care,Charges from Independent Providers,"1,894.76",REDACTED PERSONAL DATA,
Revenue,Head of ASC & Community Wellbeing,5105615674,25.02.2015,Learning Disability Residential Care,Charges from Independent Providers,"2,745.40",REDACTED PERSONAL DATA,
Revenue,Director of Childrens Services,5105614752,18.02.2015,Direct Payments Children & Families,Direct Payments,171.00,REDACTED PERSONAL DATA,
Revenue,Head of ASC & Community Wellbeing,5105614920,20.02.2015,Leaseholds by LA,Accommodation Costs - Leaseholder Payments,815.49,REDACTED PERSONAL DATA,
Revenue,Head of ASC & Community Wellbeing,5105616099,25.02.2015,Elderly Frail Personal Budgets,Payments for Self Directed Support,356.16,REDACTED PERSONAL DATA,
Revenue,Head of Exchequer Services,5105615068,20.02.2015,Staff Benefits,Payment to Private Contractors,243.00,REDACTED PERSONAL DATA,
Revenue,Head of Exchequer Services,5105615068,20.02.2015,Staff Benefits,Payment to Private Contractors,50.00,REDACTED PERSONAL DATA,
Revenue,Head of Exchequer Services,5105615068,20.02.2015,Staff Benefits,Payment to Private Contractors,100.00,REDACTED PERSONAL DATA,
Revenue,Head of ASC & Community Wellbeing,5105616111,25.02.2015,Transitions Team Personal Budgets,Payments for Self Directed Support,860.00,REDACTED PERSONAL DATA,
Revenue,Head of ASC & Community Wellbeing,5105614927,20.02.2015,Leaseholds by LA,Accommodation Costs - Leaseholder Payments,799.50,REDACTED PERSONAL DATA,
Revenue,Head of ASC & Community Wellbeing,5105614927,20.02.2015,Leaseholds by LA,Accommodation Costs - Leaseholder Payments,888.33,REDACTED PERSONAL DATA,
Revenue,Head of ASC & Community Wellbeing,5105614927,20.02.2015,Leaseholds by LA,Accommodation Costs - Leaseholder Payments,866.67,REDACTED PERSONAL DATA,
Revenue,Head of ASC & Community Wellbeing,5105614927,20.02.2015,Leaseholds by LA,Accommodation Costs - Leaseholder Payments,866.67,REDACTED PERSONAL DATA,
Revenue,Head of ASC & Community Wellbeing,5105614927,20.02.2015,Leaseholds by LA,Accommodation Costs - Leaseholder Payments,799.50,REDACTED PERSONAL DATA,
Revenue,Director of Childrens Services,5105614756,18.02.2015,Direct Payments Children & Families,Direct Payments,209.00,REDACTED PERSONAL DATA,
Revenue,Head of ASC & Community Wellbeing,5105615905,25.02.2015,Mental Health Personal Budgets,Payments for Self Directed Support,758.88,REDACTED PERSONAL DATA,
Revenue,Head of ASC & Community Wellbeing,5105616161,25.02.2015,Elderly Frail Personal Budgets,Payments for Self Directed Support,910.40,REDACTED PERSONAL DATA,
Revenue,Head of ASC & Community Wellbeing,5105615917,25.02.2015,Learning Disability Personal Budgets,Payments for Self Directed Support,815.20,REDACTED PERSONAL DATA,
Revenue,Director of Childrens Services,5105614210,18.02.2015,In-house Fostering,Professional Services,554.88,BAAF REGISTERED CHARITY,
Revenue,Director of Childrens Services,5105613722,18.02.2015,In-house Fostering,Charges from Independent Providers,87.00,BACK ON TRACK,
Revenue,Director of Childrens Services,5105612533,04.02.2015,In-house Fostering,Charges from Independent Providers,385.66,BACK ON TRACK,
Revenue,Director of Childrens Services,5105613573,13.02.2015,Purchased Residential,Charges from Independent Providers,"13,263.57",BACK ON TRACK,
Revenue,Director of Childrens Services,5105612959,11.02.2015,Beaulieu House,General Materials,364.00,BAKARE BEDS LTD,
Revenue,Director of Childrens Services,5105613556,13.02.2015,Statutory Assessment and Review Team,Professional Subscriptions,"1,500.00",BAKER SMALL LEGAL SERVICES LTD,
Revenue,Head of ASC & Community Wellbeing,5105615327,20.02.2015,Mental Health Day Services,Premises Insurance,78.00,BALENS LTD,
Revenue,Head of ASC & Community Wellbeing,5105664460,04.02.2015,Westminster House,Prop Svs only - Day to day mtce,631.15,BALFOUR BEATTY,
Revenue,Chief Fire Officer,5105615189,20.02.2015,Deputy Chief Fire Office,Property Services - Planned Maintenance,50.00,BALFOUR BEATTY,
Revenue,Director of Childrens Services,5105616656,25.02.2015,Childrens Centres Maintenance,Minor Works,53.05,BALFOUR BEATTY,
Revenue,Head of Economy & Tourism,5105616634,25.02.2015,Newport Library,Prop Svs only - Day to day mtce,262.50,BALFOUR BEATTY,
Capital,Head of HR & Organisational Change,5105615207,20.02.2015,Management of Asbestos,Payment to Contractors - Capital,"7,080.00",BALFOUR BEATTY,
Capital,Head of HR & Organisational Change,5105615198,20.02.2015,Electrical Rewiring Programme Non Educ,Payment to Contractors - Capital,"2,754.00",BALFOUR BEATTY,
Revenue,Head of Finance & S151 Officer,5105616638,25.02.2015,Public Conveniences - General,Prop Svs only - Day to day mtce,393.46,BALFOUR BEATTY,
Revenue,Head of Finance & S151 Officer,5105616627,25.02.2015,Public Conveniences - General,Prop Svs only - Day to day mtce,217.34,BALFOUR BEATTY,
Revenue,Head of Finance & S151 Officer,5105616632,25.02.2015,Public Conveniences - General,Prop Svs only - Day to day mtce,232.72,BALFOUR BEATTY,
Revenue,Head of Finance & S151 Officer,5105616665,25.02.2015,Public Conveniences - General,Property Services - Planned Maintenance,382.20,BALFOUR BEATTY,
Revenue,Head of Economy & Tourism,5105615204,20.02.2015,Non-operational buildings,Prop Svs only - Day to day mtce,183.87,BALFOUR BEATTY,
Revenue,Head of ASC & Community Wellbeing,5105615188,20.02.2015,S75 Integrated Community Equipment Store,Fixtures and Fittings,94.20,BALFOUR BEATTY,
Revenue,Head of HR & Organisational Change,5105614849,18.02.2015,"Civic Centre,Sandown",Prop Svs only - Day to day mtce,267.18,BALFOUR BEATTY,
Revenue,Head of ASC & Community Wellbeing,5105616652,25.02.2015,Saxonbury,Minor Works,280.28,BALFOUR BEATTY,
Revenue,Head of Finance & S151 Officer,5105615209,20.02.2015,Public Conveniences - General,Property Services - Planned Maintenance,45.00,BALFOUR BEATTY,
Revenue,Head of Finance & S151 Officer,5105614850,18.02.2015,Public Conveniences - General,Property Services - Planned Maintenance,75.05,BALFOUR BEATTY,
Revenue,Head of Economy & Tourism,5105615202,20.02.2015,Dinosaur Isle Museum (Sandown Geology),Property Services - Planned Maintenance,79.20,BALFOUR BEATTY,
Revenue,Head of HR & Organisational Change,5105617063,27.02.2015,"County Hall,Newport",Property Services - Planned Maintenance,56.71,BALFOUR BEATTY,
Revenue,Head of HR & Organisational Change,5105616622,25.02.2015,"County Hall,Newport",Prop Svs only - Day to day mtce,63.00,BALFOUR BEATTY,
Revenue,Head of HR & Organisational Change,5105616621,25.02.2015,"29,High St,Newport",Prop Svs only - Day to day mtce,77.53,BALFOUR BEATTY,
Revenue,Head of Economy & Tourism,5105616623,25.02.2015,Ventnor Library,Prop Svs only - Day to day mtce,99.08,BALFOUR BEATTY,
Revenue,Head of Finance & S151 Officer,5105616619,25.02.2015,Public Conveniences - General,Prop Svs only - Day to day mtce,53.10,BALFOUR BEATTY,
Revenue,Head of ASC & Community Wellbeing,5105616616,25.02.2015,Highmead,Minor Works,99.45,BALFOUR BEATTY,
Revenue,Head of Economy & Tourism,5105616614,25.02.2015,Newport Harbour Account,Prop Svs only - Day to day mtce,167.33,BALFOUR BEATTY,
Revenue,Head of HR & Organisational Change,5105616716,25.02.2015,"29,High St,Newport",Prop Svs only - Day to day mtce,269.64,BALFOUR BEATTY,
Capital,Head of HR & Organisational Change,5105616690,25.02.2015,Management of Asbestos,Payment to Contractors - Capital,"2,371.04",BALFOUR BEATTY,
Revenue,Head of Economy & Tourism,5105617009,27.02.2015,Roman Villa Newport,Prop Svs only - Day to day mtce,46.87,BALFOUR BEATTY,
Revenue,Head of ASC & Community Wellbeing,5105616651,25.02.2015,Gouldings Resource Centre,Prop Svs only - Day to day mtce,89.96,BALFOUR BEATTY,
Revenue,Director of Childrens Services,5105616658,25.02.2015,Childrens Centres Maintenance,Minor Works,37.80,BALFOUR BEATTY,
Revenue,Director of Childrens Services,5105616979,27.02.2015,Beaulieu House,Minor Works,95.40,BALFOUR BEATTY,
Revenue,Head of Finance & S151 Officer,5105616973,27.02.2015,Public Conveniences - General,Prop Svs only - Day to day mtce,73.52,BALFOUR BEATTY,
Revenue,Head of ASC & Community Wellbeing,5105616976,27.02.2015,Saxonbury,Minor Works,117.26,BALFOUR BEATTY,
Revenue,Head of Economy & Tourism,5105616974,27.02.2015,Ryde Library,Prop Svs only - Day to day mtce,82.80,BALFOUR BEATTY,
Revenue,Head of Finance & S151 Officer,5105616641,25.02.2015,Public Conveniences - General,Prop Svs only - Day to day mtce,208.57,BALFOUR BEATTY,
Revenue,Head of Finance & S151 Officer,5105616679,25.02.2015,Public Conveniences - General,Prop Svs only - Day to day mtce,336.90,BALFOUR BEATTY,
Revenue,Head of Finance & S151 Officer,5105617066,27.02.2015,Public Conveniences - General,Prop Svs only - Day to day mtce,61.20,BALFOUR BEATTY,
Revenue,Head of ASC & Community Wellbeing,5105617065,27.02.2015,Downside Community & Learning Centre,Minor Works,79.88,BALFOUR BEATTY,
Revenue,Head of ASC & Community Wellbeing,5105616647,25.02.2015,Gouldings Resource Centre,Property Services - Planned Maintenance,288.00,BALFOUR BEATTY,
Revenue,Head of ASC & Community Wellbeing,5105616685,25.02.2015,Westminster House,Prop Svs only - Day to day mtce,315.00,BALFOUR BEATTY,
Revenue,Head of Economy & Tourism,5105616981,27.02.2015,Crematorium,Prop Svs only - Day to day mtce,218.60,BALFOUR BEATTY,
Revenue,Head of HR & Organisational Change,5105616695,25.02.2015,"County Hall,Newport",Minor Works,"1,056.56",BALFOUR BEATTY,
Revenue,Head of HR & Organisational Change,5105615182,20.02.2015,"Westridge, Ryde",Property Services - Planned Maintenance,"2,064.00",BALFOUR BEATTY,
Revenue,Head of Economy & Tourism,5105615194,20.02.2015,Dinosaur Isle Museum (Sandown Geology),Prop Svs only - Day to day mtce,187.44,BALFOUR BEATTY,
Revenue,Head of ASC & Community Wellbeing,5105615186,20.02.2015,The Laurels,Minor Works,51.25,BALFOUR BEATTY,
Revenue,Head of Finance & S151 Officer,5105614846,18.02.2015,Public Conveniences - General,Property Services - Planned Maintenance,242.89,BALFOUR BEATTY,
Revenue,Head of Economy & Tourism,5105616643,25.02.2015,Cemeteries-Ryde,Prop Svs only - Day to day mtce,203.20,BALFOUR BEATTY,
Revenue,Head of ASC & Community Wellbeing,5105614847,18.02.2015,Adelaide Resource Centre,Property Services - Planned Maintenance,348.09,BALFOUR BEATTY,
Revenue,Head of Finance & S151 Officer,5105616648,25.02.2015,Public Conveniences - General,Property Services - Planned Maintenance,105.00,BALFOUR BEATTY,
Revenue,Head of Finance & S151 Officer,5105614845,18.02.2015,Public Conveniences - General,Property Services - Planned Maintenance,201.90,BALFOUR BEATTY,
Revenue,Head of Finance & S151 Officer,5105615203,20.02.2015,Public Conveniences - General,Property Services - Planned Maintenance,95.32,BALFOUR BEATTY,
Revenue,Head of Economy & Tourism,5105615183,20.02.2015,Ryde Library,Property Services - Planned Maintenance,35.10,BALFOUR BEATTY,
Revenue,Head of Finance & S151 Officer,5105615193,20.02.2015,Public Conveniences - General,Property Services - Planned Maintenance,75.60,BALFOUR BEATTY,
Revenue,Head of Finance & S151 Officer,5105615199,20.02.2015,Public Conveniences - General,Property Services - Planned Maintenance,70.40,BALFOUR BEATTY,
Revenue,Head of Economy & Tourism,5105616983,27.02.2015,Freshwater West Wight Library,Prop Svs only - Day to day mtce,87.30,BALFOUR BEATTY,
Revenue,Head of Finance & S151 Officer,5105616624,25.02.2015,Public Conveniences - General,Prop Svs only - Day to day mtce,112.60,BALFOUR BEATTY,
Revenue,Head of Finance & S151 Officer,5105616660,25.02.2015,Public Conveniences - General,Prop Svs only - Day to day mtce,82.80,BALFOUR BEATTY,
Revenue,Head of Finance & S151 Officer,5105616662,25.02.2015,Public Conveniences - General,Prop Svs only - Day to day mtce,53.40,BALFOUR BEATTY,
Revenue,Head of Finance & S151 Officer,5105616653,25.02.2015,Public Conveniences - General,Prop Svs only - Day to day mtce,67.20,BALFOUR BEATTY,
Revenue,Head of Finance & S151 Officer,5105616655,25.02.2015,Public Conveniences - General,Prop Svs only - Day to day mtce,103.27,BALFOUR BEATTY,
Revenue,Head of Economy & Tourism,5105616701,25.02.2015,Properties  - Other Properties,Minor Works,60.93,BALFOUR BEATTY,
Revenue,Head of Finance & S151 Officer,5105617068,27.02.2015,Public Conveniences - General,Prop Svs only - Day to day mtce,95.05,BALFOUR BEATTY,
Revenue,Head of ASC & Community Wellbeing,5105616978,27.02.2015,Downside Community & Learning Centre,Minor Works,84.25,BALFOUR BEATTY,
Revenue,Head of ASC & Community Wellbeing,5105616612,25.02.2015,Gouldings Resource Centre,Property Services - Planned Maintenance,288.00,BALFOUR BEATTY,
Revenue,Chief Fire Officer,5105616677,25.02.2015,Deputy Chief Fire Office,Prop Svs only - Day to day mtce,361.80,BALFOUR BEATTY,
Revenue,Head of Economy & Tourism,5105616615,25.02.2015,Medina Leisure Centre,Prop Svs only - Day to day mtce,324.78,BALFOUR BEATTY,
Revenue,Head of ASC & Community Wellbeing,5105616635,25.02.2015,Westminster House,Prop Svs only - Day to day mtce,965.40,BALFOUR BEATTY,
Revenue,Head of ASC & Community Wellbeing,5105616711,25.02.2015,Saxonbury,Minor Works,234.93,BALFOUR BEATTY,
Revenue,Head of ASC & Community Wellbeing,5105616629,25.02.2015,Gouldings Resource Centre,Prop Svs only - Day to day mtce,352.37,BALFOUR BEATTY,
Revenue,Head of Finance & S151 Officer,5105616692,25.02.2015,Public Conveniences - General,Prop Svs only - Day to day mtce,467.30,BALFOUR BEATTY,
Revenue,Head of ASC & Community Wellbeing,5105616971,27.02.2015,Adelaide Resource Centre,Prop Svs only - Day to day mtce,81.38,BALFOUR BEATTY,
Revenue,Head of ASC & Community Wellbeing,5105616639,25.02.2015,Westminster House,Prop Svs only - Day to day mtce,337.00,BALFOUR BEATTY,
Capital,Director of Childrens Services,5105613870,18.02.2015,One School Pathfinder,Payment to Contractors - Capital,"1,559.78",BALFOUR BEATTY,
Capital,Director of Childrens Services,5105613862,18.02.2015,One School Pathfinder,Payment to Contractors - Capital,739.86,BALFOUR BEATTY,
Capital,Director of Childrens Services,5105613868,18.02.2015,One School Pathfinder,Payment to Contractors - Capital,"4,388.69",BALFOUR BEATTY,
Capital,Director of Childrens Services,5105613882,18.02.2015,One School Pathfinder,Payment to Contractors - Capital,120.75,BALFOUR BEATTY,
Revenue,Head of Finance & S151 Officer,5105616618,25.02.2015,Public Conveniences - General,Prop Svs only - Day to day mtce,33.01,BALFOUR BEATTY,
Revenue,Head of Finance & S151 Officer,5105616645,25.02.2015,Public Conveniences - General,Prop Svs only - Day to day mtce,367.50,BALFOUR BEATTY,
Revenue,Corporate Items,5105617029,27.02.2015,Payments In Advance,Professional Services,"1,318.58",BALFOUR BEATTY,
Capital,Head of Economy & Tourism,5105616498,25.02.2015,Cremator Replacement,Payment to Contractors - Capital,"38,137.62",BALFOUR BEATTY,
Revenue,Chief Fire Officer,5105613173,11.02.2015,Fire Technical Support,Payment to Private Contractors,"6,683.45",BALLYCLARE LTD,
Revenue,Chief Fire Officer,5105613317,18.02.2015,Fire Technical Support,Payment to Private Contractors,644.70,BALLYCLARE LTD,
Revenue,Director of Childrens Services,5105614862,20.02.2015,Family Support Work,Payment to Private Contractors,"41,779.25",BARNARDOS,
Revenue,Director of Childrens Services,5105606316,11.02.2015,LSCB (Local Safeguarding Childrens Board),Training,743.00,BARNARDOS,
Revenue,Head of ASC & Community Wellbeing,5105616054,25.02.2015,Elderly Frail Personal Budgets,Payments for Self Directed Support,860.00,REDACTED PERSONAL DATA,
Revenue,Head of ASC & Community Wellbeing,5105613185,11.02.2015,Elderly Frail Personal Budgets,Payments for Self Directed Support,900.00,REDACTED PERSONAL DATA,
Revenue,Head of ASC & Community Wellbeing,5105616245,25.02.2015,Mental Health Personal Budgets,Payments for Self Directed Support,680.00,REDACTED PERSONAL DATA,
Revenue,Head of HR & Organisational Change,5105612195,11.02.2015,Corporate Stores,Vehicle Hire External,730.71,BARTLETTS SERVICE STATION,
Revenue,Chief Fire Officer,5105615278,25.02.2015,Road Safety,General Educational Materials,180.00,BARTLETTS SERVICE STATION,
Revenue,Chief Fire Officer,5105613040,11.02.2015,Diversity & Workforce,Operational Equipment,75.00,BARTLETTS SERVICE STATION,
Revenue,Chief Fire Officer,5105617097,27.02.2015,Diversity & Workforce,Operational Equipment,150.00,BARTLETTS SERVICE STATION,
Revenue,Director of Childrens Services,5105614734,18.02.2015,Workforce Development - Early Years,Hire of facilities,30.00,BARTON PRIMARY & EARLY YEARS,
Revenue,Director of Childrens Services,5105614735,18.02.2015,Workforce Development - Early Years,Hire of facilities,10.00,BARTON PRIMARY & EARLY YEARS,
Revenue,Head of Exchequer Services,5105615048,20.02.2015,Staff Benefits,Payment to Private Contractors,12.00,BARTON PRIMARY & EARLY YEARS,
Revenue,Head of Exchequer Services,5105615048,20.02.2015,Staff Benefits,Payment to Private Contractors,11.67,BARTON PRIMARY & EARLY YEARS,
Revenue,Head of Exchequer Services,5105615048,20.02.2015,Staff Benefits,Payment to Private Contractors,50.00,BARTON PRIMARY & EARLY YEARS,
Revenue,Head of Finance & S151 Officer,5105612602,06.02.2015,Recycling initiative,Advertising & Publicity,716.00,BEACON MEDIA LIMITED,
Revenue,Director of Childrens Services,5105617027,27.02.2015,In-house Fostering,Advertising & Publicity,716.00,BEACON MEDIA LIMITED,
Revenue,Director of Childrens Services,5105612990,11.02.2015,Support for Looked After Children - Disabled Childrens Team,Transport of Clients,720.00,BEACON TAXIS,
Revenue,Director of Childrens Services,5105616505,25.02.2015,Independ. & Non-Maint. Special Schls & Independ. Specialist Provision,Transport of Clients,720.00,BEACON TAXIS,
Revenue,Head of ASC & Community Wellbeing,5105615884,25.02.2015,Elderly Mentally Ill Nursing Mainland,Charges from Independent Providers,"2,269.40",BEAUMONT LODGE LTD,
Revenue,Head of Economy & Tourism,5105613950,18.02.2015,The Heights,Payment to Private Contractors,225.00,BEL SOLUTIONS LTD,
Revenue,Head of Economy & Tourism,5105613950,18.02.2015,Medina Leisure Centre,Payment to Private Contractors,225.00,BEL SOLUTIONS LTD,
Revenue,Head of Economy & Tourism,5105613950,18.02.2015,Westridge Squash Courts,Payment to Private Contractors,225.00,BEL SOLUTIONS LTD,
Revenue,Head of ASC & Community Wellbeing,5105616029,25.02.2015,Transitions Team Personal Budgets,Payments for Self Directed Support,781.52,REDACTED PERSONAL DATA,
Revenue,Head of ASC & Community Wellbeing,5105613702,18.02.2015,Community Laundry Service,Clothing & Laundry,13.74,BERENDSEN,
Revenue,Head of ASC & Community Wellbeing,5105613703,18.02.2015,Community Laundry Service,Clothing & Laundry,13.74,BERENDSEN,
Revenue,Head of ASC & Community Wellbeing,5105613546,13.02.2015,Community Laundry Service,Clothing & Laundry,13.74,BERENDSEN,
Revenue,Head of ASC & Community Wellbeing,5105613548,13.02.2015,Community Laundry Service,Clothing & Laundry,13.74,BERENDSEN,
Revenue,Head of ASC & Community Wellbeing,5105613308,18.02.2015,Community Laundry Service,Clothing & Laundry,13.86,BERENDSEN,
Revenue,Head of ASC & Community Wellbeing,5105613701,18.02.2015,Community Laundry Service,Clothing & Laundry,13.74,BERENDSEN,
Revenue,Head of Planning & Regulatory Services,5105615196,25.02.2015,Environmental Health - Geographical Team,Clothing & Laundry,10.00,BERENDSEN,
Revenue,Head of ASC & Community Wellbeing,5105616020,25.02.2015,Physical Disability Personal Budgets,Payments for Self Directed Support,435.52,REDACTED PERSONAL DATA,
Revenue,Head of ASC & Community Wellbeing,5105613827,18.02.2015,B&B Properties,Accommodation Costs - Bed & Breakfast,"1,650.00",BERTRAM LODGE,
Revenue,Head of ASC & Community Wellbeing,5105617051,27.02.2015,Plean Dene,Operational Equipment,24.04,BETA PAK LTD,
Revenue,Head of ASC & Community Wellbeing,5105616544,25.02.2015,Plean Dene,Operational Equipment,48.00,BETA PAK LTD,
Revenue,Head of ASC & Community Wellbeing,5105616521,25.02.2015,Plean Dene,Operational Equipment,21.45,BETA PAK LTD,
Revenue,Head of ASC & Community Wellbeing,5105615190,25.02.2015,Plean Dene,Operational Equipment,37.10,BETA PAK LTD,
Revenue,Head of ASC & Community Wellbeing,5105612949,13.02.2015,Plean Dene,Operational Equipment,97.80,BETA PAK LTD,
Revenue,Head of ASC & Community Wellbeing,5105613241,13.02.2015,Plean Dene,Operational Equipment,28.66,BETA PAK LTD,
Revenue,Head of ASC & Community Wellbeing,5105615190,25.02.2015,Plean Dene,Operational Equipment,45.96,BETA PAK LTD,
Revenue,Head of ASC & Community Wellbeing,5105616551,25.02.2015,Seagulls,Operational Equipment,110.12,BETA PAK LTD,
Revenue,Head of ASC & Community Wellbeing,5105616552,25.02.2015,Seagulls,Operational Equipment,-189.70,BETA PAK LTD,
Revenue,Head of ASC & Community Wellbeing,5105616561,25.02.2015,Seagulls,Operational Equipment,189.70,BETA PAK LTD,
Revenue,Head of ASC & Community Wellbeing,5105615267,25.02.2015,Seagulls,Operational Equipment,14.29,BETA PAK LTD,
Revenue,Head of ASC & Community Wellbeing,5105614902,25.02.2015,Seagulls,Operational Equipment,109.64,BETA PAK LTD,
Revenue,Head of ASC & Community Wellbeing,5105612556,06.02.2015,Seagulls,Operational Equipment,63.08,BETA PAK LTD,
Revenue,Head of ASC & Community Wellbeing,5105612998,25.02.2015,Seagulls,Operational Equipment,16.50,BETA PAK LTD,
Revenue,Head of ASC & Community Wellbeing,5105613032,11.02.2015,Seagulls,Operational Equipment,26.67,BETA PAK LTD,
Revenue,Head of ASC & Community Wellbeing,5105616944,27.02.2015,Highmead,Operational Equipment,9.19,BETA PAK LTD,
Revenue,Head of ASC & Community Wellbeing,5105616946,27.02.2015,Highmead,Operational Equipment,80.72,BETA PAK LTD,
Revenue,Head of ASC & Community Wellbeing,5105612967,13.02.2015,Highmead,Operational Equipment,485.37,BETA PAK LTD,
Revenue,Head of ASC & Community Wellbeing,5105613250,13.02.2015,Highmead,Operational Equipment,34.41,BETA PAK LTD,
Revenue,Head of ASC & Community Wellbeing,5105613711,18.02.2015,Highmead,Operational Equipment,-67.26,BETA PAK LTD,
Revenue,Head of ASC & Community Wellbeing,5105608269,04.02.2015,Highmead,Operational Equipment,22.00,BETA PAK LTD,
Revenue,Head of ASC & Community Wellbeing,5105611046,04.02.2015,31 Carter Avenue,Operational Equipment,8.75,BETA PAK LTD,
Revenue,Head of ASC & Community Wellbeing,5105612448,04.02.2015,31 Carter Avenue,Operational Equipment,7.15,BETA PAK LTD,
Revenue,Head of ASC & Community Wellbeing,5105613595,25.02.2015,31 Carter Avenue,Operational Equipment,85.63,BETA PAK LTD,
Revenue,Head of ASC & Community Wellbeing,5105613234,11.02.2015,31 Carter Avenue,Operational Equipment,-119.31,BETA PAK LTD,
Revenue,Head of ASC & Community Wellbeing,5105613231,11.02.2015,31 Carter Avenue,Operational Equipment,96.37,BETA PAK LTD,
Revenue,Head of ASC & Community Wellbeing,5105613225,11.02.2015,31 Carter Avenue,Operational Equipment,22.94,BETA PAK LTD,
Revenue,Head of ASC & Community Wellbeing,5105616947,27.02.2015,The Laurels,Operational Equipment,22.94,BETA PAK LTD,
Revenue,Head of ASC & Community Wellbeing,5105617050,27.02.2015,The Laurels,Operational Equipment,309.14,BETA PAK LTD,
Revenue,Head of ASC & Community Wellbeing,5105616508,25.02.2015,The Laurels,Operational Equipment,286.20,BETA PAK LTD,
Revenue,Head of ASC & Community Wellbeing,5105615593,25.02.2015,The Laurels,Operational Equipment,135.57,BETA PAK LTD,
Revenue,Head of ASC & Community Wellbeing,5105616531,25.02.2015,Overbrook,Operational Equipment,7.70,BETA PAK LTD,
Revenue,Head of ASC & Community Wellbeing,5105616960,27.02.2015,Overbrook,Operational Equipment,7.70,BETA PAK LTD,
Revenue,Head of ASC & Community Wellbeing,5105616961,27.02.2015,Overbrook,Operational Equipment,-7.70,BETA PAK LTD,
Revenue,Head of ASC & Community Wellbeing,5105612952,13.02.2015,Overbrook,Operational Equipment,39.79,BETA PAK LTD,
Revenue,Head of ASC & Community Wellbeing,5105614142,18.02.2015,Overbrook,Operational Equipment,31.31,BETA PAK LTD,
Revenue,Head of ASC & Community Wellbeing,5105615219,25.02.2015,Saxonbury,Operational Equipment,131.57,BETA PAK LTD,
Revenue,Head of ASC & Community Wellbeing,5105612997,13.02.2015,Saxonbury,Operational Equipment,104.69,BETA PAK LTD,
Revenue,Head of ASC & Community Wellbeing,5105616927,27.02.2015,Saxonbury,Operational Equipment,1.48,BETA PAK LTD,
Revenue,Head of ASC & Community Wellbeing,5105616465,25.02.2015,Saxonbury,Operational Equipment,29.15,BETA PAK LTD,
Revenue,Head of ASC & Community Wellbeing,5105616454,25.02.2015,Saxonbury,Operational Equipment,23.60,BETA PAK LTD,
Revenue,Head of ASC & Community Wellbeing,5105615219,25.02.2015,Saxonbury,Operational Equipment,62.00,BETA PAK LTD,
Revenue,Head of ASC & Community Wellbeing,5105608787,06.02.2015,Downside Community & Learning Centre,Consumable Cleaning Materials,22.61,BETA PAK LTD,
Revenue,Head of ASC & Community Wellbeing,5105612859,06.02.2015,Downside Community & Learning Centre,Consumable Cleaning Materials,-11.40,BETA PAK LTD,
Revenue,Head of ASC & Community Wellbeing,5105608787,06.02.2015,Downside Community & Learning Centre,Consumable Cleaning Materials,8.16,BETA PAK LTD,
Revenue,Head of ASC & Community Wellbeing,5105608787,06.02.2015,Downside Community & Learning Centre,Consumable Cleaning Materials,4.34,BETA PAK LTD,
Revenue,Head of ASC & Community Wellbeing,5105608787,06.02.2015,Downside Community & Learning Centre,Consumable Cleaning Materials,3.14,BETA PAK LTD,
Revenue,Head of ASC & Community Wellbeing,5105608787,06.02.2015,Downside Community & Learning Centre,Consumable Cleaning Materials,7.59,BETA PAK LTD,
Revenue,Head of ASC & Community Wellbeing,5105608787,06.02.2015,Downside Community & Learning Centre,Consumable Cleaning Materials,7.59,BETA PAK LTD,
Revenue,Head of ASC & Community Wellbeing,5105614772,25.02.2015,Adelaide Resource Centre,Consumable Cleaning Materials,22.50,BETA PAK LTD,
Revenue,Head of Economy & Tourism,5105614143,18.02.2015,Guildhall Museum,Maintenance of Operational Equipment,44.00,BETA PAK LTD,
Revenue,Head of ASC & Community Wellbeing,5105616341,25.02.2015,Gouldings Resource Centre,Consumable Cleaning Materials,629.95,BETA PAK LTD,
Revenue,Head of ASC & Community Wellbeing,5105613077,11.02.2015,Downside Community & Learning Centre,Consumable Cleaning Materials,6.28,BETA PAK LTD,
Revenue,Head of ASC & Community Wellbeing,5105613077,11.02.2015,Downside Community & Learning Centre,Consumable Cleaning Materials,19.95,BETA PAK LTD,
Revenue,Head of ASC & Community Wellbeing,5105613077,11.02.2015,Downside Community & Learning Centre,Consumable Cleaning Materials,26.84,BETA PAK LTD,
Revenue,Head of ASC & Community Wellbeing,5105613077,11.02.2015,Downside Community & Learning Centre,Consumable Cleaning Materials,8.16,BETA PAK LTD,
Revenue,Head of ASC & Community Wellbeing,5105613951,18.02.2015,Community Outreach,Consumable Cleaning Materials,71.95,BETA PAK LTD,
Revenue,Head of ASC & Community Wellbeing,5105613889,18.02.2015,Downside Community & Learning Centre,Consumable Cleaning Materials,12.37,BETA PAK LTD,
Revenue,Head of ASC & Community Wellbeing,5105613889,18.02.2015,Downside Community & Learning Centre,Consumable Cleaning Materials,8.16,BETA PAK LTD,
Revenue,Head of ASC & Community Wellbeing,5105613889,18.02.2015,Downside Community & Learning Centre,Consumable Cleaning Materials,39.90,BETA PAK LTD,
Revenue,Head of ASC & Community Wellbeing,5105613889,18.02.2015,Downside Community & Learning Centre,Consumable Cleaning Materials,25.29,BETA PAK LTD,
Revenue,Head of ASC & Community Wellbeing,5105613889,18.02.2015,Downside Community & Learning Centre,Consumable Cleaning Materials,19.97,BETA PAK LTD,
Revenue,Head of ASC & Community Wellbeing,5105616994,27.02.2015,Downside Community & Learning Centre,Stationery,35.76,BETA PAK LTD,
Revenue,Head of Exchequer Services,5105613953,18.02.2015,Revenues & Benefits Operational Support,General Materials,0.17,BETA PAK LTD,
Revenue,Head of Exchequer Services,5105613953,18.02.2015,Housing Benefit,General Materials,0.17,BETA PAK LTD,
Revenue,Head of Exchequer Services,5105613953,18.02.2015,Parking Services,General Materials,0.17,BETA PAK LTD,
Revenue,Head of Exchequer Services,5105613954,18.02.2015,Council Tax,General Materials,0.17,BETA PAK LTD,
Revenue,Head of Exchequer Services,5105613954,18.02.2015,Revenues & Benefits Operational Support,General Materials,0.17,BETA PAK LTD,
Revenue,Head of Exchequer Services,5105613954,18.02.2015,Housing Benefit,General Materials,0.17,BETA PAK LTD,
Revenue,Head of Exchequer Services,5105613954,18.02.2015,Parking Services,General Materials,0.17,BETA PAK LTD,
Revenue,Head of Exchequer Services,5105613954,18.02.2015,Council Tax,General Materials,0.32,BETA PAK LTD,
Revenue,Head of Exchequer Services,5105613954,18.02.2015,Revenues & Benefits Operational Support,General Materials,0.32,BETA PAK LTD,
Revenue,Head of Exchequer Services,5105613954,18.02.2015,Housing Benefit,General Materials,0.32,BETA PAK LTD,
Revenue,Head of Exchequer Services,5105613954,18.02.2015,Parking Services,General Materials,0.32,BETA PAK LTD,
Revenue,Head of Exchequer Services,5105613953,18.02.2015,Council Tax,General Materials,0.11,BETA PAK LTD,
Revenue,Head of Exchequer Services,5105613953,18.02.2015,Revenues & Benefits Operational Support,General Materials,0.11,BETA PAK LTD,
Revenue,Head of Exchequer Services,5105613953,18.02.2015,Housing Benefit,General Materials,0.11,BETA PAK LTD,
Revenue,Head of Exchequer Services,5105613953,18.02.2015,Parking Services,General Materials,0.11,BETA PAK LTD,
Revenue,Head of Exchequer Services,5105613953,18.02.2015,Council Tax,General Materials,0.74,BETA PAK LTD,
Revenue,Head of Exchequer Services,5105613953,18.02.2015,Revenues & Benefits Operational Support,General Materials,0.74,BETA PAK LTD,
Revenue,Head of Exchequer Services,5105613953,18.02.2015,Housing Benefit,General Materials,0.74,BETA PAK LTD,
Revenue,Head of Exchequer Services,5105613953,18.02.2015,Parking Services,General Materials,0.74,BETA PAK LTD,
Revenue,Head of Exchequer Services,5105613954,18.02.2015,Council Tax,General Materials,1.48,BETA PAK LTD,
Revenue,Head of Exchequer Services,5105613954,18.02.2015,Revenues & Benefits Operational Support,General Materials,1.48,BETA PAK LTD,
Revenue,Head of Exchequer Services,5105613954,18.02.2015,Housing Benefit,General Materials,1.48,BETA PAK LTD,
Revenue,Head of Exchequer Services,5105613954,18.02.2015,Parking Services,General Materials,1.48,BETA PAK LTD,
Revenue,Head of Exchequer Services,5105613953,18.02.2015,Council Tax,General Materials,1.50,BETA PAK LTD,
Revenue,Head of Exchequer Services,5105613953,18.02.2015,Revenues & Benefits Operational Support,General Materials,1.50,BETA PAK LTD,
Revenue,Head of Exchequer Services,5105613953,18.02.2015,Housing Benefit,General Materials,1.50,BETA PAK LTD,
Revenue,Head of Exchequer Services,5105613953,18.02.2015,Parking Services,General Materials,1.50,BETA PAK LTD,
Revenue,Head of Exchequer Services,5105613953,18.02.2015,Council Tax,General Materials,0.04,BETA PAK LTD,
Revenue,Head of Exchequer Services,5105613953,18.02.2015,Revenues & Benefits Operational Support,General Materials,0.04,BETA PAK LTD,
Revenue,Head of Exchequer Services,5105613953,18.02.2015,Housing Benefit,General Materials,0.04,BETA PAK LTD,
Revenue,Head of Exchequer Services,5105613953,18.02.2015,Parking Services,General Materials,0.04,BETA PAK LTD,
Revenue,Head of Exchequer Services,5105613954,18.02.2015,Council Tax,General Materials,0.08,BETA PAK LTD,
Revenue,Head of Exchequer Services,5105613954,18.02.2015,Revenues & Benefits Operational Support,General Materials,0.08,BETA PAK LTD,
Revenue,Head of Exchequer Services,5105613954,18.02.2015,Housing Benefit,General Materials,0.08,BETA PAK LTD,
Revenue,Head of Exchequer Services,5105613954,18.02.2015,Parking Services,General Materials,0.08,BETA PAK LTD,
Revenue,Head of Exchequer Services,5105613953,18.02.2015,Council Tax,General Materials,0.31,BETA PAK LTD,
Revenue,Head of Exchequer Services,5105613953,18.02.2015,Revenues & Benefits Operational Support,General Materials,0.31,BETA PAK LTD,
Revenue,Head of Exchequer Services,5105613953,18.02.2015,Housing Benefit,General Materials,0.31,BETA PAK LTD,
Revenue,Head of Exchequer Services,5105613953,18.02.2015,Parking Services,General Materials,0.31,BETA PAK LTD,
Revenue,Head of Exchequer Services,5105613954,18.02.2015,Council Tax,General Materials,1.96,BETA PAK LTD,
Revenue,Head of Exchequer Services,5105613954,18.02.2015,Revenues & Benefits Operational Support,General Materials,1.96,BETA PAK LTD,
Revenue,Head of Exchequer Services,5105613954,18.02.2015,Housing Benefit,General Materials,1.96,BETA PAK LTD,
Revenue,Head of Exchequer Services,5105613954,18.02.2015,Parking Services,General Materials,1.96,BETA PAK LTD,
Revenue,Head of Exchequer Services,5105613953,18.02.2015,Council Tax,General Materials,0.15,BETA PAK LTD,
Revenue,Head of Exchequer Services,5105613953,18.02.2015,Revenues & Benefits Operational Support,General Materials,0.15,BETA PAK LTD,
Revenue,Head of Exchequer Services,5105613953,18.02.2015,Housing Benefit,General Materials,0.15,BETA PAK LTD,
Revenue,Head of Exchequer Services,5105613953,18.02.2015,Parking Services,General Materials,0.15,BETA PAK LTD,
Revenue,Head of Exchequer Services,5105613953,18.02.2015,Council Tax,General Materials,0.34,BETA PAK LTD,
Revenue,Head of Exchequer Services,5105613953,18.02.2015,Revenues & Benefits Operational Support,General Materials,0.34,BETA PAK LTD,
Revenue,Head of Exchequer Services,5105613953,18.02.2015,Housing Benefit,General Materials,0.34,BETA PAK LTD,
Revenue,Head of Exchequer Services,5105613953,18.02.2015,Parking Services,General Materials,0.34,BETA PAK LTD,
Revenue,Head of Exchequer Services,5105613954,18.02.2015,Council Tax,General Materials,0.34,BETA PAK LTD,
Revenue,Head of Exchequer Services,5105613954,18.02.2015,Revenues & Benefits Operational Support,General Materials,0.34,BETA PAK LTD,
Revenue,Head of Exchequer Services,5105613954,18.02.2015,Housing Benefit,General Materials,0.34,BETA PAK LTD,
Revenue,Head of Exchequer Services,5105613954,18.02.2015,Parking Services,General Materials,0.34,BETA PAK LTD,
Revenue,Head of Exchequer Services,5105613953,18.02.2015,Council Tax,General Materials,1.82,BETA PAK LTD,
Revenue,Head of Exchequer Services,5105613953,18.02.2015,Revenues & Benefits Operational Support,General Materials,1.82,BETA PAK LTD,
Revenue,Head of Exchequer Services,5105613953,18.02.2015,Housing Benefit,General Materials,1.82,BETA PAK LTD,
Revenue,Head of Exchequer Services,5105613953,18.02.2015,Parking Services,General Materials,1.82,BETA PAK LTD,
Revenue,Head of Exchequer Services,5105613953,18.02.2015,Council Tax,General Materials,1.43,BETA PAK LTD,
Revenue,Head of Exchequer Services,5105613953,18.02.2015,Revenues & Benefits Operational Support,General Materials,1.43,BETA PAK LTD,
Revenue,Head of Exchequer Services,5105613953,18.02.2015,Housing Benefit,General Materials,1.43,BETA PAK LTD,
Revenue,Head of Exchequer Services,5105613953,18.02.2015,Parking Services,General Materials,1.43,BETA PAK LTD,
Revenue,Head of Exchequer Services,5105613954,18.02.2015,Council Tax,General Materials,1.43,BETA PAK LTD,
Revenue,Head of Exchequer Services,5105613954,18.02.2015,Revenues & Benefits Operational Support,General Materials,1.43,BETA PAK LTD,
Revenue,Head of Exchequer Services,5105613954,18.02.2015,Housing Benefit,General Materials,1.43,BETA PAK LTD,
Revenue,Head of Exchequer Services,5105613954,18.02.2015,Parking Services,General Materials,1.43,BETA PAK LTD,
Revenue,Head of Exchequer Services,5105613954,18.02.2015,Council Tax,General Materials,0.45,BETA PAK LTD,
Revenue,Head of Exchequer Services,5105613954,18.02.2015,Revenues & Benefits Operational Support,General Materials,0.45,BETA PAK LTD,
Revenue,Head of Exchequer Services,5105613954,18.02.2015,Housing Benefit,General Materials,0.45,BETA PAK LTD,
Revenue,Head of Exchequer Services,5105613954,18.02.2015,Parking Services,General Materials,0.45,BETA PAK LTD,
Revenue,Head of Exchequer Services,5105613953,18.02.2015,Council Tax,General Materials,0.23,BETA PAK LTD,
Revenue,Head of Exchequer Services,5105613953,18.02.2015,Revenues & Benefits Operational Support,General Materials,0.23,BETA PAK LTD,
Revenue,Head of Exchequer Services,5105613953,18.02.2015,Housing Benefit,General Materials,0.23,BETA PAK LTD,
Revenue,Head of Exchequer Services,5105613953,18.02.2015,Parking Services,General Materials,0.23,BETA PAK LTD,
Revenue,Head of ASC & Community Wellbeing,5105617112,27.02.2015,Adelaide Resource Centre,Catering Purchases,18.56,BETA PAK LTD,
Revenue,Head of ASC & Community Wellbeing,5105617083,27.02.2015,Adelaide Resource Centre,Catering Purchases,373.13,BETA PAK LTD,
Revenue,Head of ASC & Community Wellbeing,5105616504,25.02.2015,Adelaide Resource Centre,Catering Purchases,290.58,BETA PAK LTD,
Revenue,Head of ASC & Community Wellbeing,5105616506,25.02.2015,Adelaide Resource Centre,Catering Purchases,-4.36,BETA PAK LTD,
Revenue,Head of Exchequer Services,5105613953,18.02.2015,Council Tax,General Materials,0.95,BETA PAK LTD,
Revenue,Head of Exchequer Services,5105613953,18.02.2015,Revenues & Benefits Operational Support,General Materials,0.95,BETA PAK LTD,
Revenue,Head of Exchequer Services,5105613953,18.02.2015,Housing Benefit,General Materials,0.95,BETA PAK LTD,
Revenue,Head of Exchequer Services,5105613953,18.02.2015,Parking Services,General Materials,0.95,BETA PAK LTD,
Revenue,Head of Exchequer Services,5105613953,18.02.2015,Council Tax,General Materials,0.17,BETA PAK LTD,
Revenue,Head of ASC & Community Wellbeing,5105613158,11.02.2015,Wightcare,General Materials,135.99,BETA PAK LTD,
Revenue,Head of ASC & Community Wellbeing,5105614824,18.02.2015,Wightcare,General Materials,135.99,BETA PAK LTD,
Revenue,Head of ASC & Community Wellbeing,5105615185,20.02.2015,Wightcare,General Materials,30.91,BETA PAK LTD,
Revenue,Director of Childrens Services,5105613300,13.02.2015,Youth Offending Team,Catering Purchases,35.50,BETA PAK LTD,
Revenue,Head of ASC & Community Wellbeing,5105615428,20.02.2015,Elderly Frail Homecare,Charges from Independent Providers,"1,184.20",BETTER AT HOME IOW LTD,
Revenue,Head of ASC & Community Wellbeing,5105615430,20.02.2015,Elderly Frail Homecare,Charges from Independent Providers,30.59,BETTER AT HOME IOW LTD,
Revenue,Head of ASC & Community Wellbeing,5105615439,20.02.2015,Elderly Frail Homecare,Charges from Independent Providers,511.88,BETTER AT HOME IOW LTD,
Revenue,Head of ASC & Community Wellbeing,5105615440,20.02.2015,Mental Health Homecare,Charges from Independent Providers,404.92,BETTER AT HOME IOW LTD,
Revenue,Head of ASC & Community Wellbeing,5105615431,20.02.2015,Elderly Frail Homecare,Charges from Independent Providers,897.70,BETTER AT HOME IOW LTD,
Revenue,Head of ASC & Community Wellbeing,5105615432,20.02.2015,Elderly Frail Homecare,Charges from Independent Providers,"1,279.70",BETTER AT HOME IOW LTD,
Revenue,Head of ASC & Community Wellbeing,5105615433,20.02.2015,Elderly Frail Homecare,Charges from Independent Providers,"1,787.76",BETTER AT HOME IOW LTD,
Revenue,Head of ASC & Community Wellbeing,5105615434,20.02.2015,Elderly Frail Homecare,Charges from Independent Providers,"1,337.00",BETTER AT HOME IOW LTD,
Revenue,Head of ASC & Community Wellbeing,5105615435,20.02.2015,Elderly Frail Homecare,Charges from Independent Providers,534.80,BETTER AT HOME IOW LTD,
Revenue,Head of ASC & Community Wellbeing,5105615436,20.02.2015,Elderly Frail Homecare,Charges from Independent Providers,859.50,BETTER AT HOME IOW LTD,
Revenue,Head of ASC & Community Wellbeing,5105615437,20.02.2015,Elderly Frail Homecare,Charges from Independent Providers,764.00,BETTER AT HOME IOW LTD,
Revenue,Head of ASC & Community Wellbeing,5105615438,20.02.2015,Elderly Frail Homecare,Charges from Independent Providers,"1,314.08",BETTER AT HOME IOW LTD,
Revenue,Head of ASC & Community Wellbeing,5105615429,20.02.2015,Elderly Frail Homecare,Charges from Independent Providers,"1,841.24",BETTER AT HOME IOW LTD,
Revenue,Head of ASC & Community Wellbeing,5105615446,20.02.2015,Elderly Frail Homecare,Charges from Independent Providers,61.12,BETTER AT HOME IOW LTD,
Revenue,Head of ASC & Community Wellbeing,5105615447,20.02.2015,Elderly Frail Homecare,Charges from Independent Providers,611.20,BETTER AT HOME IOW LTD,
Revenue,Head of ASC & Community Wellbeing,5105615445,20.02.2015,Elderly Frail Homecare,Charges from Independent Providers,267.40,BETTER AT HOME IOW LTD,
Revenue,Head of ASC & Community Wellbeing,5105615441,20.02.2015,Elderly Frail Homecare,Charges from Independent Providers,802.20,BETTER AT HOME IOW LTD,
Revenue,Head of ASC & Community Wellbeing,5105615450,20.02.2015,Elderly Frail Homecare,Charges from Independent Providers,263.58,BETTER AT HOME IOW LTD,
Revenue,Head of ASC & Community Wellbeing,5105615452,20.02.2015,Elderly Frail Homecare,Charges from Independent Providers,252.12,BETTER AT HOME IOW LTD,
Revenue,Head of ASC & Community Wellbeing,5105615453,20.02.2015,Elderly Frail Homecare,Charges from Independent Providers,534.80,BETTER AT HOME IOW LTD,
Revenue,Head of ASC & Community Wellbeing,5105615442,20.02.2015,Elderly Frail Homecare,Charges from Independent Providers,592.10,BETTER AT HOME IOW LTD,
Revenue,Head of ASC & Community Wellbeing,5105615443,20.02.2015,Elderly Frail Homecare,Charges from Independent Providers,"1,092.52",BETTER AT HOME IOW LTD,
Revenue,Head of ASC & Community Wellbeing,5105615455,20.02.2015,Elderly Frail Homecare,Charges from Independent Providers,11.46,BETTER AT HOME IOW LTD,
Revenue,Head of ASC & Community Wellbeing,5105615444,20.02.2015,Elderly Frail Homecare,Charges from Independent Providers,725.80,BETTER AT HOME IOW LTD,
Revenue,Head of ASC & Community Wellbeing,5105615448,20.02.2015,Elderly Frail Homecare,Charges from Independent Providers,160.44,BETTER AT HOME IOW LTD,
Revenue,Head of ASC & Community Wellbeing,5105615449,20.02.2015,Elderly Frail Homecare,Charges from Independent Providers,802.20,BETTER AT HOME IOW LTD,
Revenue,Head of ASC & Community Wellbeing,5105615456,20.02.2015,Elderly Frail Homecare,Charges from Independent Providers,236.84,BETTER AT HOME IOW LTD,
Revenue,Head of ASC & Community Wellbeing,5105615457,20.02.2015,Elderly Frail Homecare,Charges from Independent Providers,534.80,BETTER AT HOME IOW LTD,
Revenue,Head of ASC & Community Wellbeing,5105615458,20.02.2015,Elderly Frail Homecare,Charges from Independent Providers,267.40,BETTER AT HOME IOW LTD,
Revenue,Head of ASC & Community Wellbeing,5105615462,20.02.2015,Physical Disability Homecare,Charges from Independent Providers,34.38,BETTER AT HOME IOW LTD,
Revenue,Head of ASC & Community Wellbeing,5105615459,20.02.2015,Elderly Mentally Ill Homecare,Charges from Independent Providers,802.20,BETTER AT HOME IOW LTD,
Revenue,Head of ASC & Community Wellbeing,5105615461,20.02.2015,Elderly Frail Homecare,Charges from Independent Providers,473.68,BETTER AT HOME IOW LTD,
Revenue,Head of ASC & Community Wellbeing,5105615464,20.02.2015,Physical Disability Homecare,Charges from Independent Providers,534.80,BETTER AT HOME IOW LTD,
Revenue,Head of ASC & Community Wellbeing,5105615470,20.02.2015,Elderly Frail Homecare,Charges from Independent Providers,401.10,BETTER AT HOME IOW LTD,
Revenue,Head of ASC & Community Wellbeing,5105615466,20.02.2015,Elderly Frail Homecare,Charges from Independent Providers,34.38,BETTER AT HOME IOW LTD,
Revenue,Head of ASC & Community Wellbeing,5105615460,20.02.2015,Elderly Frail Homecare,Charges from Independent Providers,259.76,BETTER AT HOME IOW LTD,
Revenue,Head of ASC & Community Wellbeing,5105615476,20.02.2015,Physical Disability Homecare,Charges from Independent Providers,401.10,BETTER AT HOME IOW LTD,
Revenue,Head of ASC & Community Wellbeing,5105615463,20.02.2015,Elderly Frail Homecare,Charges from Independent Providers,626.48,BETTER AT HOME IOW LTD,
Revenue,Head of ASC & Community Wellbeing,5105615465,20.02.2015,Physical Disability Homecare,Charges from Independent Providers,401.10,BETTER AT HOME IOW LTD,
Revenue,Head of ASC & Community Wellbeing,5105615469,20.02.2015,Elderly Frail Homecare,Charges from Independent Providers,534.80,BETTER AT HOME IOW LTD,
Revenue,Head of ASC & Community Wellbeing,5105615466,20.02.2015,Elderly Frail Homecare,Charges from Independent Providers,401.10,BETTER AT HOME IOW LTD,
Revenue,Head of ASC & Community Wellbeing,5105615472,20.02.2015,Elderly Mentally Ill Homecare,Charges from Independent Providers,"1,203.30",BETTER AT HOME IOW LTD,
Revenue,Head of ASC & Community Wellbeing,5105615474,20.02.2015,Elderly Frail Homecare,Charges from Independent Providers,"1,337.00",BETTER AT HOME IOW LTD,
Revenue,Head of ASC & Community Wellbeing,5105615477,20.02.2015,Elderly Frail Homecare,Charges from Independent Providers,"1,283.52",BETTER AT HOME IOW LTD,
Revenue,Head of ASC & Community Wellbeing,5105615467,20.02.2015,Physical Disability Homecare,Charges from Independent Providers,534.80,BETTER AT HOME IOW LTD,
Revenue,Head of ASC & Community Wellbeing,5105615473,20.02.2015,Elderly Mentally Ill Homecare,Charges from Independent Providers,534.80,BETTER AT HOME IOW LTD,
Revenue,Head of ASC & Community Wellbeing,5105615475,20.02.2015,Elderly Frail Homecare,Charges from Independent Providers,"1,589.12",BETTER AT HOME IOW LTD,
Revenue,Head of ASC & Community Wellbeing,5105615479,20.02.2015,Elderly Frail Homecare,Charges from Independent Providers,"2,941.40",BETTER AT HOME IOW LTD,
Revenue,Head of ASC & Community Wellbeing,5105615480,20.02.2015,Elderly Frail Homecare,Charges from Independent Providers,817.48,BETTER AT HOME IOW LTD,
Revenue,Head of ASC & Community Wellbeing,5105615488,20.02.2015,Elderly Frail Homecare,Charges from Independent Providers,244.48,BETTER AT HOME IOW LTD,
Revenue,Head of ASC & Community Wellbeing,5105615481,20.02.2015,Elderly Frail Homecare,Charges from Independent Providers,"1,092.52",BETTER AT HOME IOW LTD,
Revenue,Head of ASC & Community Wellbeing,5105615481,20.02.2015,Elderly Frail Homecare,Charges from Independent Providers,213.92,BETTER AT HOME IOW LTD,
Revenue,Head of ASC & Community Wellbeing,5105615485,20.02.2015,Elderly Frail Homecare,Charges from Independent Providers,129.88,BETTER AT HOME IOW LTD,
Revenue,Head of ASC & Community Wellbeing,5105615486,20.02.2015,Elderly Frail Homecare,Charges from Independent Providers,534.80,BETTER AT HOME IOW LTD,
Revenue,Head of ASC & Community Wellbeing,5105615487,20.02.2015,Physical Disability Homecare,Charges from Independent Providers,"2,311.10",BETTER AT HOME IOW LTD,
Revenue,Head of ASC & Community Wellbeing,5105615487,20.02.2015,Physical Disability Homecare,Charges from Independent Providers,786.92,BETTER AT HOME IOW LTD,
Revenue,Head of ASC & Community Wellbeing,5105615483,20.02.2015,Elderly Frail Homecare,Charges from Independent Providers,305.60,BETTER AT HOME IOW LTD,
Revenue,Head of ASC & Community Wellbeing,5105615491,20.02.2015,Elderly Frail Homecare,Charges from Independent Providers,282.68,BETTER AT HOME IOW LTD,
Revenue,Head of ASC & Community Wellbeing,5105615492,20.02.2015,Elderly Frail Homecare,Charges from Independent Providers,137.52,BETTER AT HOME IOW LTD,
Revenue,Head of ASC & Community Wellbeing,5105615490,20.02.2015,Elderly Mentally Ill Homecare,Charges from Independent Providers,320.88,BETTER AT HOME IOW LTD,
Revenue,Head of ASC & Community Wellbeing,5105615489,20.02.2015,Elderly Frail Homecare,Charges from Independent Providers,183.36,BETTER AT HOME IOW LTD,
Revenue,Head of ASC & Community Wellbeing,5105615493,20.02.2015,Elderly Frail Homecare,Charges from Independent Providers,122.24,BETTER AT HOME IOW LTD,
Revenue,Head of ASC & Community Wellbeing,5105615482,20.02.2015,Elderly Frail Homecare,Regular Respite Care,183.36,BETTER AT HOME IOW LTD,
Revenue,Head of ASC & Community Wellbeing,5105615484,20.02.2015,Elderly Frail Homecare,Regular Respite Care,152.80,BETTER AT HOME IOW LTD,
Revenue,Head of ASC & Community Wellbeing,5105615471,20.02.2015,Elderly Frail Homecare,Regular Respite Care,91.68,BETTER AT HOME IOW LTD,
Revenue,Head of ASC & Community Wellbeing,5105615478,20.02.2015,Elderly Frail Homecare,Regular Respite Care,30.56,BETTER AT HOME IOW LTD,
Revenue,Head of ASC & Community Wellbeing,5105615468,20.02.2015,Elderly Frail Homecare,Regular Respite Care,305.60,BETTER AT HOME IOW LTD,
Revenue,Head of ASC & Community Wellbeing,5105615451,20.02.2015,Elderly Frail Homecare,Regular Respite Care,152.80,BETTER AT HOME IOW LTD,
Revenue,Head of ASC & Community Wellbeing,5105615454,20.02.2015,Elderly Frail Homecare,Regular Respite Care,152.80,BETTER AT HOME IOW LTD,
Revenue,Head of HR & Organisational Change,5105613053,11.02.2015,ICT Desktop Experience project,Training,750.00,BEVAN YOUNG ASSOCIATES,
Revenue,Head of Economy & Tourism,5105611958,04.02.2015,Public Libraries Central,Stationery,80.92,BIBLIOTHECA LTD,
Revenue,Head of Economy & Tourism,5105617064,27.02.2015,Public Libraries Central,Stationery,108.64,BIBLIOTHECA LTD,
Revenue,Head of Economy & Tourism,5105615265,20.02.2015,Public Libraries Central,Purchase of Books,"7,281.00",BIBLIOTHECA LTD,
Revenue,Head of HR & Organisational Change,5105613163,20.02.2015,"Westridge, Ryde","Refuse Collection, Disposal and Recycling Costs",18.70,BIFFA WASTE SERVICES LTD,
Revenue,Head of Economy & Tourism,5105613163,20.02.2015,Cothey Bottom Store RYDE,"Refuse Collection, Disposal and Recycling Costs",9.35,BIFFA WASTE SERVICES LTD,
Revenue,Head of Economy & Tourism,5105613163,20.02.2015,Westridge Squash Courts,"Refuse Collection, Disposal and Recycling Costs",9.35,BIFFA WASTE SERVICES LTD,
Revenue,Director of Childrens Services,5105613163,20.02.2015,Learning & Development Running Costs,"Refuse Collection, Disposal and Recycling Costs",41.48,BIFFA WASTE SERVICES LTD,
Revenue,Head of Economy & Tourism,5105613163,20.02.2015,Public Libraries Central,"Refuse Collection, Disposal and Recycling Costs",42.88,BIFFA WASTE SERVICES LTD,
Revenue,Head of Planning & Regulatory Services,5105613163,20.02.2015,Planning Business Support,"Refuse Collection, Disposal and Recycling Costs",347.70,BIFFA WASTE SERVICES LTD,
Revenue,Director of Childrens Services,5105613163,20.02.2015,Specialist Service Business Admin,"Refuse Collection, Disposal and Recycling Costs",156.40,BIFFA WASTE SERVICES LTD,
Revenue,Head of ASC & Community Wellbeing,5105612510,11.02.2015,Gouldings Resource Centre,"Refuse Collection, Disposal and Recycling Costs",114.50,BIFFA WASTE SERVICES LTD,
Revenue,Head of ASC & Community Wellbeing,5105612511,11.02.2015,Gouldings Resource Centre,"Refuse Collection, Disposal and Recycling Costs",355.20,BIFFA WASTE SERVICES LTD,
Revenue,Head of Economy & Tourism,5105613163,20.02.2015,Crematorium,"Refuse Collection, Disposal and Recycling Costs",114.92,BIFFA WASTE SERVICES LTD,
Revenue,Head of Economy & Tourism,5105613163,20.02.2015,Dinosaur Isle Museum (Sandown Geology),"Refuse Collection, Disposal and Recycling Costs",8.12,BIFFA WASTE SERVICES LTD,
Revenue,Head of Economy & Tourism,5105613163,20.02.2015,Fort Victoria,"Refuse Collection, Disposal and Recycling Costs",78.20,BIFFA WASTE SERVICES LTD,
Revenue,Chief Fire Officer,5105613163,20.02.2015,Fire Operations,"Refuse Collection, Disposal and Recycling Costs",321.48,BIFFA WASTE SERVICES LTD,
Revenue,Chief Fire Officer,5105612416,06.02.2015,Fire Operations,"Refuse Collection, Disposal and Recycling Costs",0.24,BIFFA WASTE SERVICES LTD,
Revenue,Chief Fire Officer,5105612354,06.02.2015,Fire Operations,"Refuse Collection, Disposal and Recycling Costs",0.30,BIFFA WASTE SERVICES LTD,
Revenue,Chief Fire Officer,5105612476,06.02.2015,Fire Operations,"Refuse Collection, Disposal and Recycling Costs",0.30,BIFFA WASTE SERVICES LTD,
Revenue,Chief Fire Officer,5105612481,06.02.2015,Fire Operations,"Refuse Collection, Disposal and Recycling Costs",0.30,BIFFA WASTE SERVICES LTD,
Revenue,Head of Economy & Tourism,5105613163,20.02.2015,Ferry Management,"Refuse Collection, Disposal and Recycling Costs",82.60,BIFFA WASTE SERVICES LTD,
Revenue,Director of Childrens Services,5105613163,20.02.2015,Beaulieu House,"Refuse Collection, Disposal and Recycling Costs",171.70,BIFFA WASTE SERVICES LTD,
Revenue,Head of Planning & Regulatory Services,5105613163,20.02.2015,Regulatory Management & Admin Support,"Refuse Collection, Disposal and Recycling Costs",78.20,BIFFA WASTE SERVICES LTD,
Revenue,Head of Economy & Tourism,5105613163,20.02.2015,Medina Leisure Centre,"Refuse Collection, Disposal and Recycling Costs",297.24,BIFFA WASTE SERVICES LTD,
Revenue,Head of ASC & Community Wellbeing,5105616935,27.02.2015,Adelaide Resource Centre,"Refuse Collection, Disposal and Recycling Costs","1,358.63",BIFFA WASTE SERVICES LTD,
Revenue,Head of ASC & Community Wellbeing,5105616972,27.02.2015,Adelaide Resource Centre,"Refuse Collection, Disposal and Recycling Costs",187.46,BIFFA WASTE SERVICES LTD,
Revenue,Head of Economy & Tourism,5105613163,20.02.2015,Seaclose Amusements,"Refuse Collection, Disposal and Recycling Costs",13.69,BIFFA WASTE SERVICES LTD,
Revenue,Head of Economy & Tourism,5105613163,20.02.2015,Ryde Harbour,"Refuse Collection, Disposal and Recycling Costs",53.80,BIFFA WASTE SERVICES LTD,
Revenue,Head of HR & Organisational Change,5105613163,20.02.2015,"Bugle House,Newport","Refuse Collection, Disposal and Recycling Costs",151.64,BIFFA WASTE SERVICES LTD,
Revenue,Head of HR & Organisational Change,5105613163,20.02.2015,"Civic Centre,Sandown","Refuse Collection, Disposal and Recycling Costs",130.09,BIFFA WASTE SERVICES LTD,
Revenue,Head of HR & Organisational Change,5105612512,11.02.2015,"Civic Centre,Sandown","Refuse Collection, Disposal and Recycling Costs",105.69,BIFFA WASTE SERVICES LTD,
Revenue,Head of Economy & Tourism,5105613163,20.02.2015,Leisure Management & Admin,"Refuse Collection, Disposal and Recycling Costs",151.64,BIFFA WASTE SERVICES LTD,
Revenue,Director of Childrens Services,5105613163,20.02.2015,Parent Partnership,"Refuse Collection, Disposal and Recycling Costs",16.64,BIFFA WASTE SERVICES LTD,
Revenue,Director of Childrens Services,5105613163,20.02.2015,Family Information Zone,"Refuse Collection, Disposal and Recycling Costs",16.64,BIFFA WASTE SERVICES LTD,
Revenue,Head of Economy & Tourism,5105613163,20.02.2015,The Heights,"Refuse Collection, Disposal and Recycling Costs",287.12,BIFFA WASTE SERVICES LTD,
Revenue,Head of Economy & Tourism,5105613163,20.02.2015,Newport Harbour Account,"Refuse Collection, Disposal and Recycling Costs",392.28,BIFFA WASTE SERVICES LTD,
Revenue,Head of Economy & Tourism,5105613163,20.02.2015,Newport Harbour Account,"Refuse Collection, Disposal and Recycling Costs",160.44,BIFFA WASTE SERVICES LTD,
Revenue,Head of ASC & Community Wellbeing,5105613163,20.02.2015,S75 Integrated Community Equipment Store,"Refuse Collection, Disposal and Recycling Costs",74.12,BIFFA WASTE SERVICES LTD,
Revenue,Head of HR & Organisational Change,5105613163,20.02.2015,ICT Contracts,"Refuse Collection, Disposal and Recycling Costs",69.02,BIFFA WASTE SERVICES LTD,
Revenue,Head of ASC & Community Wellbeing,5105613163,20.02.2015,Stores Adult Social Care,"Refuse Collection, Disposal and Recycling Costs",0.11,BIFFA WASTE SERVICES LTD,
Revenue,Head of ASC & Community Wellbeing,5105613163,20.02.2015,Westminster House,"Refuse Collection, Disposal and Recycling Costs",43.68,BIFFA WASTE SERVICES LTD,
Revenue,Head of ASC & Community Wellbeing,5105613163,20.02.2015,The Laurels,"Refuse Collection, Disposal and Recycling Costs",72.87,BIFFA WASTE SERVICES LTD,
Revenue,Head of ASC & Community Wellbeing,5105613163,20.02.2015,Seagulls,"Refuse Collection, Disposal and Recycling Costs",82.60,BIFFA WASTE SERVICES LTD,
Revenue,Head of ASC & Community Wellbeing,5105613163,20.02.2015,Saxonbury,"Refuse Collection, Disposal and Recycling Costs",78.20,BIFFA WASTE SERVICES LTD,
Revenue,Head of ASC & Community Wellbeing,5105613163,20.02.2015,Plean Dene,"Refuse Collection, Disposal and Recycling Costs",160.44,BIFFA WASTE SERVICES LTD,
Revenue,Head of ASC & Community Wellbeing,5105613163,20.02.2015,Overbrook,"Refuse Collection, Disposal and Recycling Costs",99.82,BIFFA WASTE SERVICES LTD,
Revenue,Head of ASC & Community Wellbeing,5105613163,20.02.2015,Highmead,"Refuse Collection, Disposal and Recycling Costs",72.87,BIFFA WASTE SERVICES LTD,
Revenue,Head of ASC & Community Wellbeing,5105613163,20.02.2015,40 Venner Avenue,"Refuse Collection, Disposal and Recycling Costs",4.76,BIFFA WASTE SERVICES LTD,
Revenue,Head of ASC & Community Wellbeing,5105613163,20.02.2015,31 Carter Avenue,"Refuse Collection, Disposal and Recycling Costs",82.60,BIFFA WASTE SERVICES LTD,
Revenue,Director of Childrens Services,5105616872,27.02.2015,Leaving Care Costs,Support Children,65.00,REDACTED PERSONAL DATA,
Revenue,Director of Childrens Services,5105615135,20.02.2015,Leaving Care Costs,Support Children,65.00,REDACTED PERSONAL DATA,
Revenue,Director of Childrens Services,5105612777,06.02.2015,Leaving Care Costs,Support Children,65.00,REDACTED PERSONAL DATA,
Revenue,Director of Childrens Services,5105613464,13.02.2015,Leaving Care Costs,Support Children,65.00,REDACTED PERSONAL DATA,
Revenue,Head of Exchequer Services,5105614963,20.02.2015,Staff Benefits,Payment to Private Contractors,156.60,BLACKBERRY LANE PRE-SCHOOL,
Revenue,Head of Exchequer Services,5105614963,20.02.2015,Staff Benefits,Payment to Private Contractors,45.00,BLACKBERRY LANE PRE-SCHOOL,
Revenue,Head of ASC & Community Wellbeing,5105693354,25.02.2015,Community Outreach,Vehicle Maintenance Costs,5.00,REDACTED PERSONAL DATA,
Revenue,Head of ASC & Community Wellbeing,5105693345,25.02.2015,Community Outreach,Vehicle Maintenance Costs,10.00,REDACTED PERSONAL DATA,
Revenue,Head of ASC & Community Wellbeing,5105693345,25.02.2015,Community Outreach,Vehicle Maintenance Costs,15.00,REDACTED PERSONAL DATA,
Revenue,Head of ASC & Community Wellbeing,5105693354,25.02.2015,Community Outreach,Vehicle Maintenance Costs,5.00,REDACTED PERSONAL DATA,
Revenue,Head of ASC & Community Wellbeing,5105693354,25.02.2015,Community Outreach,Vehicle Maintenance Costs,10.00,REDACTED PERSONAL DATA,
Revenue,Head of ASC & Community Wellbeing,5105693345,25.02.2015,Community Outreach,Vehicle Maintenance Costs,10.00,REDACTED PERSONAL DATA,
Revenue,Head of ASC & Community Wellbeing,5105693354,25.02.2015,Community Outreach,Vehicle Maintenance Costs,15.00,REDACTED PERSONAL DATA,
Revenue,Head of ASC & Community Wellbeing,5105693354,25.02.2015,Community Outreach,Vehicle Maintenance Costs,5.00,REDACTED PERSONAL DATA,
Revenue,Head of ASC & Community Wellbeing,5105693354,25.02.2015,Community Outreach,Vehicle Maintenance Costs,20.00,REDACTED PERSONAL DATA,
Revenue,Head of ASC & Community Wellbeing,5105693345,25.02.2015,Community Outreach,Vehicle Maintenance Costs,10.00,REDACTED PERSONAL DATA,
Revenue,Head of ASC & Community Wellbeing,5105693354,25.02.2015,Community Outreach,Vehicle Maintenance Costs,10.00,REDACTED PERSONAL DATA,
Revenue,Head of ASC & Community Wellbeing,5105693345,25.02.2015,Community Outreach,Vehicle Maintenance Costs,10.00,REDACTED PERSONAL DATA,
Revenue,Head of ASC & Community Wellbeing,5105693345,25.02.2015,Community Outreach,Vehicle Maintenance Costs,5.00,REDACTED PERSONAL DATA,
Revenue,Head of ASC & Community Wellbeing,5105693345,25.02.2015,Community Outreach,Professional Services,10.00,REDACTED PERSONAL DATA,
Revenue,Director of Childrens Services,5105614158,18.02.2015,Beaulieu House,General Materials,75.83,BLINDS BY ELEGANCE,
Revenue,Director of Childrens Services,5105613198,18.02.2015,Purchased Fostering,Charges from Independent Providers,"2,801.36",BLUE SKY FOSTERING LTD,
Revenue,Director of Childrens Services,5105613164,11.02.2015,Purchased Fostering,Charges from Independent Providers,"2,801.36",BLUE SKY FOSTERING LTD,
Revenue,Director of Childrens Services,5105613152,13.02.2015,Purchased Fostering,Charges from Independent Providers,"2,801.36",BLUE SKY FOSTERING LTD,
Revenue,Director of Childrens Services,5105613143,11.02.2015,Beaulieu House,General Materials,33.50,BOC LTD,
Revenue,Director of Childrens Services,5105614226,18.02.2015,Short Breaks,Charges from Independent Providers,520.00,BODSTER EQUINE ASSISTED LEARN CIC,
Revenue,Director of Childrens Services,5105617126,27.02.2015,Pathways to Traineeships,Payment to Private Contractors,"10,237.00",BODSTER EQUINE ASSISTED LEARN CIC,
Revenue,Head of ASC & Community Wellbeing,5105613873,25.02.2015,Plean Dene,Catering Purchases,264.24,BOOKER CASH & CARRY LTD,
Revenue,Head of ASC & Community Wellbeing,5105615302,25.02.2015,Plean Dene,Catering Purchases,73.79,BOOKER CASH & CARRY LTD,
Revenue,Head of ASC & Community Wellbeing,5105613074,11.02.2015,Plean Dene,Catering Purchases,10.39,BOOKER CASH & CARRY LTD,
Revenue,Head of ASC & Community Wellbeing,5105613266,11.02.2015,Plean Dene,Catering Purchases,55.33,BOOKER CASH & CARRY LTD,
Revenue,Head of ASC & Community Wellbeing,5105613867,18.02.2015,Plean Dene,Catering Purchases,57.17,BOOKER CASH & CARRY LTD,
Revenue,Head of ASC & Community Wellbeing,5105612915,06.02.2015,Plean Dene,Catering Purchases,210.44,BOOKER CASH & CARRY LTD,
Revenue,Head of ASC & Community Wellbeing,5105612459,04.02.2015,Plean Dene,Catering Purchases,94.35,BOOKER CASH & CARRY LTD,
Revenue,Head of ASC & Community Wellbeing,5105616607,25.02.2015,Plean Dene,Catering Purchases,24.09,BOOKER CASH & CARRY LTD,
Revenue,Head of ASC & Community Wellbeing,5105616604,25.02.2015,Plean Dene,Catering Purchases,53.52,BOOKER CASH & CARRY LTD,
Revenue,Head of ASC & Community Wellbeing,5105617014,27.02.2015,Plean Dene,Catering Purchases,12.05,BOOKER CASH & CARRY LTD,
Revenue,Head of ASC & Community Wellbeing,5105616999,27.02.2015,Plean Dene,Catering Purchases,101.65,BOOKER CASH & CARRY LTD,
Revenue,Head of ASC & Community Wellbeing,5105616999,27.02.2015,Plean Dene,Catering Purchases,50.62,BOOKER CASH & CARRY LTD,
Revenue,Head of ASC & Community Wellbeing,5105616604,25.02.2015,Plean Dene,Catering Purchases,1.45,BOOKER CASH & CARRY LTD,
Revenue,Head of ASC & Community Wellbeing,5105612459,04.02.2015,Plean Dene,Catering Purchases,8.97,BOOKER CASH & CARRY LTD,
Revenue,Head of ASC & Community Wellbeing,5105612915,06.02.2015,Plean Dene,Catering Purchases,53.78,BOOKER CASH & CARRY LTD,
Revenue,Head of ASC & Community Wellbeing,5105613873,25.02.2015,Plean Dene,Catering Purchases,53.92,BOOKER CASH & CARRY LTD,
Revenue,Head of ASC & Community Wellbeing,5105613071,25.02.2015,Overbrook,Catering Purchases,8.79,BOOKER CASH & CARRY LTD,
Revenue,Head of ASC & Community Wellbeing,5105613071,25.02.2015,Overbrook,Catering Purchases,236.11,BOOKER CASH & CARRY LTD,
Revenue,Director of Childrens Services,5105615285,20.02.2015,Pupil Premium Managed Centrally,General Materials,700.56,BOOKTRUST,
Revenue,Director of Childrens Services,5105615285,20.02.2015,Pupil Premium Managed Centrally,General Materials,700.56,BOOKTRUST,
Revenue,Director of Childrens Services,5105615285,20.02.2015,Pupil Premium Managed Centrally,General Materials,400.32,BOOKTRUST,
Revenue,Director of Childrens Services,5105615285,20.02.2015,Pupil Premium Managed Centrally,General Materials,203.70,BOOKTRUST,
Revenue,Director of Childrens Services,5105615285,20.02.2015,Pupil Premium Managed Centrally,General Materials,203.70,BOOKTRUST,
Revenue,Director of Childrens Services,5105615285,20.02.2015,Pupil Premium Managed Centrally,General Materials,116.38,BOOKTRUST,
Revenue,Managing Director & Head of Paid Service,5105615315,20.02.2015,Contraception,Payment to Private Contractors,279.50,BOOTS THE CHEMIST LTD (Ryde),
Revenue,Managing Director & Head of Paid Service,5105615315,20.02.2015,Contraception,Payment to Private Contractors,67.60,BOOTS THE CHEMIST LTD (Ryde),
Revenue,Managing Director & Head of Paid Service,5105615315,20.02.2015,Drug Misuse - Adults,Payment to Private Contractors,486.50,BOOTS THE CHEMIST LTD (Ryde),
Revenue,Managing Director & Head of Paid Service,5105615315,20.02.2015,Drug Misuse - Adults,Payment to Private Contractors,894.00,BOOTS THE CHEMIST LTD (Ryde),
Revenue,Managing Director & Head of Paid Service,5105614781,18.02.2015,Drug Misuse - Adults,Payment to Private Contractors,136.50,BOOTS UK LTD (107 HIGH ST SANDOWN),
Revenue,Managing Director & Head of Paid Service,5105614787,18.02.2015,Drug Misuse - Adults,Payment to Private Contractors,392.00,BOOTS UK LTD (COWES),
Revenue,Managing Director & Head of Paid Service,5105614787,18.02.2015,Drug Misuse - Adults,Payment to Private Contractors,908.00,BOOTS UK LTD (COWES),
Revenue,Managing Director & Head of Paid Service,5105614798,18.02.2015,Drug Misuse - Adults,Payment to Private Contractors,396.00,BOOTS UK LTD (FRESHWATER),
Revenue,Managing Director & Head of Paid Service,5105614227,18.02.2015,STI Tests & Treatment,Payment to Private Contractors,5.00,BOOTS UK LTD (NEWPORT),
Revenue,Managing Director & Head of Paid Service,5105614227,18.02.2015,Contraception,Payment to Private Contractors,258.00,BOOTS UK LTD (NEWPORT),
Revenue,Managing Director & Head of Paid Service,5105614227,18.02.2015,Contraception,Payment to Private Contractors,62.40,BOOTS UK LTD (NEWPORT),
Revenue,Managing Director & Head of Paid Service,5105615329,20.02.2015,Contraception,Payment to Private Contractors,129.00,BOOTS UK LTD (SANDOWN LARGE STORE),
Revenue,Managing Director & Head of Paid Service,5105615329,20.02.2015,Contraception,Payment to Private Contractors,31.20,BOOTS UK LTD (SANDOWN LARGE STORE),
Revenue,Managing Director & Head of Paid Service,5105615329,20.02.2015,Drug Misuse - Adults,Payment to Private Contractors,21.00,BOOTS UK LTD (SANDOWN LARGE STORE),
Revenue,Managing Director & Head of Paid Service,5105615329,20.02.2015,Drug Misuse - Adults,Payment to Private Contractors,320.00,BOOTS UK LTD (SANDOWN LARGE STORE),
Revenue,Managing Director & Head of Paid Service,5105615314,20.02.2015,Drug Misuse - Adults,Payment to Private Contractors,26.00,BOOTS UK LTD (SHANKLIN),
Revenue,Managing Director & Head of Paid Service,5105612493,04.02.2015,Drug Misuse - Adults,Payment to Private Contractors,84.00,BOOTS UK LTD (SHANKLIN),
Revenue,Managing Director & Head of Paid Service,5105614806,18.02.2015,Drug Misuse - Adults,Payment to Private Contractors,52.50,BOOTS UK LTD (TOWER HOUSE),
Revenue,Managing Director & Head of Paid Service,5105614806,18.02.2015,Drug Misuse - Adults,Payment to Private Contractors,64.00,BOOTS UK LTD (TOWER HOUSE),
Revenue,Managing Director & Head of Paid Service,5105615316,20.02.2015,STI Tests & Treatment,Payment to Private Contractors,30.00,BOOTS UK LTD,
Revenue,Managing Director & Head of Paid Service,5105615316,20.02.2015,STI Tests & Treatment,Payment to Private Contractors,8.04,BOOTS UK LTD,
Revenue,Managing Director & Head of Paid Service,5105615316,20.02.2015,Contraception,Payment to Private Contractors,64.50,BOOTS UK LTD,
Revenue,Managing Director & Head of Paid Service,5105615316,20.02.2015,Contraception,Payment to Private Contractors,15.60,BOOTS UK LTD,
Revenue,Managing Director & Head of Paid Service,5105615316,20.02.2015,Contraception,Payment to Private Contractors,3.55,BOOTS UK LTD,
Revenue,Managing Director & Head of Paid Service,5105615316,20.02.2015,Drug Misuse - Adults,Payment to Private Contractors,17.50,BOOTS UK LTD,
Revenue,Managing Director & Head of Paid Service,5105615316,20.02.2015,Drug Misuse - Adults,Payment to Private Contractors,38.00,BOOTS UK LTD,
Revenue,Managing Director & Head of Paid Service,5105614229,18.02.2015,Contraception,Payment to Private Contractors,21.50,BOOTS UK LTD (YLB BEMBRIDGE),
Revenue,Managing Director & Head of Paid Service,5105614229,18.02.2015,Contraception,Payment to Private Contractors,5.20,BOOTS UK LTD (YLB BEMBRIDGE),
Revenue,Managing Director & Head of Paid Service,5105614229,18.02.2015,Drug Misuse - Adults,Payment to Private Contractors,3.50,BOOTS UK LTD (YLB BEMBRIDGE),
Revenue,Director of Childrens Services,5105612946,11.02.2015,Adult Social Care - Workforce Development,Training,575.00,BOURNEMOUTH UNIVERSITY,
Revenue,Head of Economy & Tourism,5105616451,25.02.2015,The Heights,Stock Purchases,127.50,BRAKE BROS LTD,
Revenue,Head of Economy & Tourism,5105612523,04.02.2015,The Heights,Stock Purchases,82.35,BRAKE BROS LTD,
Revenue,Head of ASC & Community Wellbeing,5105614954,20.02.2015,Leaseholds by LA,Accommodation Costs - Leaseholder Payments,746.81,BRAMBLE LETTINGS,
Revenue,Head of ASC & Community Wellbeing,5105614954,20.02.2015,Leaseholds by LA,Accommodation Costs - Leaseholder Payments,769.43,BRAMBLE LETTINGS,
Revenue,Head of ASC & Community Wellbeing,5105614954,20.02.2015,Leaseholds by LA,Accommodation Costs - Leaseholder Payments,746.81,BRAMBLE LETTINGS,
Revenue,Head of ASC & Community Wellbeing,5105614954,20.02.2015,Leaseholds by LA,Accommodation Costs - Leaseholder Payments,746.81,BRAMBLE LETTINGS,
Revenue,Head of ASC & Community Wellbeing,5105614954,20.02.2015,Leaseholds by LA,Accommodation Costs - Leaseholder Payments,746.81,BRAMBLE LETTINGS,
Revenue,Head of ASC & Community Wellbeing,5105614954,20.02.2015,Leaseholds by LA,Accommodation Costs - Leaseholder Payments,746.81,BRAMBLE LETTINGS,
Revenue,Head of ASC & Community Wellbeing,5105614954,20.02.2015,Leaseholds by LA,Accommodation Costs - Leaseholder Payments,746.81,BRAMBLE LETTINGS,
Revenue,Head of ASC & Community Wellbeing,5105614954,20.02.2015,Leaseholds by LA,Accommodation Costs - Leaseholder Payments,746.81,BRAMBLE LETTINGS,
Revenue,Head of ASC & Community Wellbeing,5105614954,20.02.2015,Leaseholds by LA,Accommodation Costs - Leaseholder Payments,746.81,BRAMBLE LETTINGS,
Revenue,Head of ASC & Community Wellbeing,5105614954,20.02.2015,Leaseholds by LA,Accommodation Costs - Leaseholder Payments,746.81,BRAMBLE LETTINGS,
Revenue,Head of ASC & Community Wellbeing,5105614954,20.02.2015,Leaseholds by LA,Accommodation Costs - Leaseholder Payments,746.81,BRAMBLE LETTINGS,
Revenue,Head of ASC & Community Wellbeing,5105614954,20.02.2015,Leaseholds by LA,Accommodation Costs - Leaseholder Payments,588.38,BRAMBLE LETTINGS,
Revenue,Head of ASC & Community Wellbeing,5105614954,20.02.2015,Leaseholds by LA,Accommodation Costs - Leaseholder Payments,746.81,BRAMBLE LETTINGS,
Revenue,Head of ASC & Community Wellbeing,5105614954,20.02.2015,Leaseholds by LA,Accommodation Costs - Leaseholder Payments,746.81,BRAMBLE LETTINGS,
Revenue,Head of ASC & Community Wellbeing,5105614954,20.02.2015,Leaseholds by LA,Accommodation Costs - Leaseholder Payments,746.81,BRAMBLE LETTINGS,
Revenue,Head of ASC & Community Wellbeing,5105614954,20.02.2015,Leaseholds by LA,Accommodation Costs - Leaseholder Payments,746.81,BRAMBLE LETTINGS,
Revenue,Head of ASC & Community Wellbeing,5105614954,20.02.2015,Leaseholds by LA,Accommodation Costs - Leaseholder Payments,588.38,BRAMBLE LETTINGS,
Revenue,Head of ASC & Community Wellbeing,5105614954,20.02.2015,Leaseholds by LA,Accommodation Costs - Leaseholder Payments,588.38,BRAMBLE LETTINGS,
Revenue,Head of ASC & Community Wellbeing,5105614954,20.02.2015,Leaseholds by LA,Accommodation Costs - Leaseholder Payments,588.38,BRAMBLE LETTINGS,
Revenue,Head of ASC & Community Wellbeing,5105614954,20.02.2015,Leaseholds by LA,Accommodation Costs - Leaseholder Payments,588.38,BRAMBLE LETTINGS,
Revenue,Head of ASC & Community Wellbeing,5105614954,20.02.2015,Leaseholds by LA,Accommodation Costs - Leaseholder Payments,588.38,BRAMBLE LETTINGS,
Revenue,Head of ASC & Community Wellbeing,5105614954,20.02.2015,Leaseholds by LA,Accommodation Costs - Leaseholder Payments,746.81,BRAMBLE LETTINGS,
Revenue,Managing Director & Head of Paid Service,5105612498,04.02.2015,Strengthening Families,Payments to Voluntary and Other Associations,100.00,BRAVEHEART SOCIAL ENTERPRISES LTD,
Revenue,Head of ASC & Community Wellbeing,5105616162,25.02.2015,Elderly Frail Residential Care,Charges from Independent Providers,"2,048.76",BRENDONCARE FOUNDATION,
Revenue,Head of ASC & Community Wellbeing,5105615873,25.02.2015,Learning Disability Personal Budgets,Payments for Self Directed Support,813.12,REDACTED PERSONAL DATA,
Revenue,Head of ASC & Community Wellbeing,5105616044,25.02.2015,Learning Disability Personal Budgets,Payments for Self Directed Support,616.00,REDACTED PERSONAL DATA,
Revenue,Head of ASC & Community Wellbeing,5105615690,25.02.2015,Elderly Frail Residential Care,Charges from Independent Providers,"2,093.84",BRIGHSTONE CARE LTD,
Revenue,Head of ASC & Community Wellbeing,5105615690,25.02.2015,Elderly Mentally Ill Residential Care,Charges from Independent Providers,"1,781.36",BRIGHSTONE CARE LTD,
Revenue,Head of ASC & Community Wellbeing,5105615690,25.02.2015,Elderly Mentally Ill Residential Care,Charges from Independent Providers,"2,093.84",BRIGHSTONE CARE LTD,
Revenue,Head of ASC & Community Wellbeing,5105615690,25.02.2015,Elderly Frail Residential Care,Charges from Independent Providers,"1,700.44",BRIGHSTONE CARE LTD,
Revenue,Head of ASC & Community Wellbeing,5105615337,20.02.2015,Elderly Frail Residential Care,Charges from Independent Providers,897.36,BRIGHSTONE CARE LTD,
Revenue,Head of ASC & Community Wellbeing,5105615337,20.02.2015,Elderly Frail Residential Care,Charges from Independent Providers,"4,187.68",BRIGHSTONE CARE LTD,
Revenue,Head of ASC & Community Wellbeing,5105615690,25.02.2015,Elderly Frail Residential Care,Charges from Independent Providers,"2,093.84",BRIGHSTONE CARE LTD,
Revenue,Head of ASC & Community Wellbeing,5105613529,13.02.2015,Seagulls,Grounds Maintenance,48.00,BRIGHSTONE LANDSCAPING LTD,
Revenue,Head of ASC & Community Wellbeing,5105613529,13.02.2015,Saxonbury,Grounds Maintenance,48.00,BRIGHSTONE LANDSCAPING LTD,
Revenue,Head of ASC & Community Wellbeing,5105613529,13.02.2015,40 Venner Avenue,Grounds Maintenance,48.00,BRIGHSTONE LANDSCAPING LTD,
Revenue,Head of ASC & Community Wellbeing,5105613529,13.02.2015,Overbrook,Grounds Maintenance,48.00,BRIGHSTONE LANDSCAPING LTD,
Revenue,Head of ASC & Community Wellbeing,5105613529,13.02.2015,Highmead,Grounds Maintenance,126.00,BRIGHSTONE LANDSCAPING LTD,
Revenue,Head of ASC & Community Wellbeing,5105613529,13.02.2015,The Laurels,Grounds Maintenance,126.00,BRIGHSTONE LANDSCAPING LTD,
Revenue,Head of ASC & Community Wellbeing,5105613529,13.02.2015,Plean Dene,Grounds Maintenance,387.49,BRIGHSTONE LANDSCAPING LTD,
Revenue,Head of Economy & Tourism,5105613942,18.02.2015,Beach Cleaning,Beach Cleansing Contractors,"3,349.17",BRIGHSTONE LANDSCAPING LTD,
Revenue,Head of Economy & Tourism,5105612443,04.02.2015,Beach Cleaning,Payment to Private Contractors,925.00,BRIGHSTONE LANDSCAPING LTD,
Revenue,Head of Economy & Tourism,5105614906,20.02.2015,Beach Cleaning,Payment to Private Contractors,95.00,BRIGHSTONE LANDSCAPING LTD,
Revenue,Head of Economy & Tourism,5105616479,25.02.2015,Beach Cleaning,Payment to Private Contractors,55.00,BRIGHSTONE LANDSCAPING LTD,
Revenue,Head of Economy & Tourism,5105616385,25.02.2015,Beach Cleaning,Payment to Private Contractors,50.00,BRIGHSTONE LANDSCAPING LTD,
Revenue,Head of Economy & Tourism,5105617031,27.02.2015,Beach Cleaning,Payment to Private Contractors,60.00,BRIGHSTONE LANDSCAPING LTD,
Revenue,Head of ASC & Community Wellbeing,5105612882,11.02.2015,Adelaide Resource Centre,Maintenance of Operational Equipment,278.82,BRISTOL MAID,
Revenue,Head of ASC & Community Wellbeing,5105612882,11.02.2015,Adelaide Resource Centre,Maintenance of Operational Equipment,26.45,BRISTOL MAID,
Revenue,Director of Childrens Services,5105615568,25.02.2015,Adult Community Learning,Licences,46.00,BRITISH COMPUTER SOCIETY,
Revenue,Director of Childrens Services,5105612944,11.02.2015,Adult Community Learning,Licences,"2,375.00",BRITISH COMPUTER SOCIETY,
Revenue,Head of ASC & Community Wellbeing,5105611015,20.02.2015,S75 Integrated Community Equipment Store,Payment to Private Contractors,"3,167.24",BRITISH RED CROSS SOCIETY,
Revenue,Head of ASC & Community Wellbeing,5105611847,20.02.2015,S75 Integrated Community Equipment Store,Payment to Private Contractors,"4,519.60",BRITISH RED CROSS SOCIETY,
Revenue,Chief Fire Officer,5105613834,18.02.2015,Fire Technical Support,Vehicle Fuel Costs,41.42,BROADWAY GARAGE,
Revenue,Corporate Items,5105613012,11.02.2015,Insurance Suspense - Claims Outstanding,Order Settlement to Bal Sht GL,488.00,BROWNE JACOBSON,
Revenue,Head of Economy & Tourism,5105612862,06.02.2015,Play Development,Operational Equipment,7.15,BROXAP LTD,
Revenue,Head of Economy & Tourism,5105612862,06.02.2015,Play Development,Operational Equipment,17.55,BROXAP LTD,
Revenue,Head of Economy & Tourism,5105612862,06.02.2015,Play Development,Operational Equipment,6.50,BROXAP LTD,
Revenue,Chief Fire Officer,5105615596,25.02.2015,Deputy Chief Fire Office,Conference Expenses,4.88,BT CONFERENCING,
Revenue,Director of Childrens Services,5105617128,27.02.2015,Workforce Development Schools,Travel Expenses,133.92,BUCKINGHAMSHIRE LEARNING TRUST,
Revenue,Head of ASC & Community Wellbeing,5105615711,25.02.2015,Elderly Frail Residential Care,Charges from Independent Providers,"2,093.84",BUCKLAND CARE LTD,
Revenue,Head of ASC & Community Wellbeing,5105615711,25.02.2015,Elderly Frail Residential Care,Charges from Independent Providers,"2,093.84",BUCKLAND CARE LTD,
Revenue,Head of ASC & Community Wellbeing,5105615711,25.02.2015,Elderly Frail Residential Care,Charges from Independent Providers,"2,093.84",BUCKLAND CARE LTD,
Revenue,Head of ASC & Community Wellbeing,5105615711,25.02.2015,Elderly Frail Residential Care,Charges from Independent Providers,"2,093.84",BUCKLAND CARE LTD,
Revenue,Head of ASC & Community Wellbeing,5105615711,25.02.2015,Elderly Mentally Ill Residential Care,Charges from Independent Providers,"1,781.36",BUCKLAND CARE LTD,
Revenue,Head of ASC & Community Wellbeing,5105615711,25.02.2015,Elderly Mentally Ill Residential Care,Charges from Independent Providers,"2,093.84",BUCKLAND CARE LTD,
Revenue,Head of ASC & Community Wellbeing,5105615711,25.02.2015,Elderly Frail Residential Care,Charges from Independent Providers,"1,700.44",BUCKLAND CARE LTD,
Revenue,Head of ASC & Community Wellbeing,5105615711,25.02.2015,Elderly Frail Residential Care,Charges from Independent Providers,"2,093.84",BUCKLAND CARE LTD,
Revenue,Head of ASC & Community Wellbeing,5105615711,25.02.2015,Elderly Frail Residential Care,Charges from Independent Providers,"1,700.44",BUCKLAND CARE LTD,
Revenue,Head of ASC & Community Wellbeing,5105615711,25.02.2015,Elderly Frail Residential Care,Charges from Independent Providers,"1,700.44",BUCKLAND CARE LTD,
Revenue,Head of ASC & Community Wellbeing,5105615711,25.02.2015,Elderly Mentally Ill Residential Care,Charges from Independent Providers,"1,781.36",BUCKLAND CARE LTD,
Revenue,Head of ASC & Community Wellbeing,5105615711,25.02.2015,Elderly Mentally Ill Residential Care,Charges from Independent Providers,"2,093.84",BUCKLAND CARE LTD,
Revenue,Head of ASC & Community Wellbeing,5105615711,25.02.2015,Elderly Mentally Ill Residential Care,Charges from Independent Providers,"1,781.36",BUCKLAND CARE LTD,
Revenue,Head of ASC & Community Wellbeing,5105615711,25.02.2015,Elderly Mentally Ill Residential Care,Charges from Independent Providers,"1,781.36",BUCKLAND CARE LTD,
Revenue,Head of ASC & Community Wellbeing,5105615711,25.02.2015,Elderly Mentally Ill Residential Care,Charges from Independent Providers,"2,093.84",BUCKLAND CARE LTD,
Revenue,Head of ASC & Community Wellbeing,5105615711,25.02.2015,Elderly Mentally Ill Residential Care,Charges from Independent Providers,"2,093.84",BUCKLAND CARE LTD,
Revenue,Head of ASC & Community Wellbeing,5105615711,25.02.2015,Elderly Mentally Ill Residential Care,Charges from Independent Providers,"1,781.36",BUCKLAND CARE LTD,
Revenue,Head of ASC & Community Wellbeing,5105615711,25.02.2015,Elderly Mentally Ill Residential Care,Charges from Independent Providers,"2,093.84",BUCKLAND CARE LTD,
Revenue,Head of ASC & Community Wellbeing,5105615711,25.02.2015,Elderly Mentally Ill Residential Care,Charges from Independent Providers,"1,781.36",BUCKLAND CARE LTD,
Revenue,Head of ASC & Community Wellbeing,5105615711,25.02.2015,Elderly Mentally Ill Residential Care,Charges from Independent Providers,"2,093.84",BUCKLAND CARE LTD,
Revenue,Head of ASC & Community Wellbeing,5105612872,06.02.2015,Elderly Frail Residential Care,Charges from Independent Providers,373.90,BUCKLAND CARE LTD,
Revenue,Head of ASC & Community Wellbeing,5105613990,18.02.2015,Elderly Mentally Ill Residential Care,Charges from Independent Providers,448.68,BUCKLAND CARE LTD,
Revenue,Head of ASC & Community Wellbeing,5105613990,18.02.2015,Elderly Mentally Ill Residential Care,Charges from Independent Providers,"4,187.68",BUCKLAND CARE LTD,
Revenue,Head of ASC & Community Wellbeing,5105615711,25.02.2015,Elderly Mentally Ill Residential Care,Charges from Independent Providers,"2,093.84",BUCKLAND CARE LTD,
Revenue,Head of ASC & Community Wellbeing,5105614974,20.02.2015,Elderly Frail Residential Care,Charges from Independent Providers,607.30,BUCKLAND CARE LTD,
Revenue,Head of ASC & Community Wellbeing,5105614974,20.02.2015,Elderly Frail Residential Care,Charges from Independent Providers,"1,700.44",BUCKLAND CARE LTD,
Revenue,Head of ASC & Community Wellbeing,5105616744,27.02.2015,Elderly Frail Residential Care,Charges from Independent Providers,124.27,BUCKLAND CARE LTD,
Revenue,Head of ASC & Community Wellbeing,5105612565,04.02.2015,Elderly Frail Residential Care,Charges from Independent Providers,121.46,BUCKLAND CARE LTD,
Revenue,Head of ASC & Community Wellbeing,5105612565,04.02.2015,Elderly Frail Residential Care,Charges from Independent Providers,"1,700.44",BUCKLAND CARE LTD,
Revenue,Head of ASC & Community Wellbeing,5105615614,25.02.2015,Elderly Frail Residential Care,Charges from Independent Providers,"1,121.70",BUCKLAND CARE LTD,
Revenue,Head of ASC & Community Wellbeing,5105612872,06.02.2015,Elderly Mentally Ill Residential Care,Charges from Independent Providers,636.20,BUCKLAND CARE LTD,
Revenue,Head of ASC & Community Wellbeing,5105612872,06.02.2015,Elderly Frail Residential Care,Charges from Independent Providers,897.36,BUCKLAND CARE LTD,
Revenue,Head of ASC & Community Wellbeing,5105615711,25.02.2015,HARVIE Margaret - Blackwater Mill,Order Settlement to Bal Sht GL,"1,781.36",BUCKLAND CARE LTD,
Revenue,Head of ASC & Community Wellbeing,5105615697,25.02.2015,Elderly Frail Nursing Island,Charges from Independent Providers,"2,780.40",BUCKLAND CARE LTD,
Revenue,Head of ASC & Community Wellbeing,5105615697,25.02.2015,Funded Nursing Care Island,Charges from Independent Providers,443.80,BUCKLAND CARE LTD,
Revenue,Head of ASC & Community Wellbeing,5105615697,25.02.2015,Funded Nursing Care Island,Charges from Independent Providers,443.80,BUCKLAND CARE LTD,
Revenue,Head of ASC & Community Wellbeing,5105615697,25.02.2015,Elderly Frail Nursing Island,Charges from Independent Providers,"2,780.40",BUCKLAND CARE LTD,
Revenue,Head of ASC & Community Wellbeing,5105615697,25.02.2015,Funded Nursing Care Island,Charges from Independent Providers,443.80,BUCKLAND CARE LTD,
Revenue,Head of ASC & Community Wellbeing,5105615697,25.02.2015,Funded Nursing Care Island,Charges from Independent Providers,443.80,BUCKLAND CARE LTD,
Revenue,Head of ASC & Community Wellbeing,5105615697,25.02.2015,Elderly Frail Nursing Island,Charges from Independent Providers,"2,780.40",BUCKLAND CARE LTD,
Revenue,Head of ASC & Community Wellbeing,5105615697,25.02.2015,Elderly Frail Nursing Island,Charges from Independent Providers,"2,780.40",BUCKLAND CARE LTD,
Revenue,Head of ASC & Community Wellbeing,5105615697,25.02.2015,Elderly Frail Nursing Island,Charges from Independent Providers,"2,780.40",BUCKLAND CARE LTD,
Revenue,Head of ASC & Community Wellbeing,5105615697,25.02.2015,Funded Nursing Care Island,Charges from Independent Providers,443.80,BUCKLAND CARE LTD,
Revenue,Head of ASC & Community Wellbeing,5105615697,25.02.2015,Elderly Mentally Ill Nursing Island,Charges from Independent Providers,"2,780.40",BUCKLAND CARE LTD,
Revenue,Head of ASC & Community Wellbeing,5105615697,25.02.2015,Funded Nursing Care Island,Charges from Independent Providers,443.80,BUCKLAND CARE LTD,
Revenue,Head of ASC & Community Wellbeing,5105615697,25.02.2015,Funded Nursing Care Island,Charges from Independent Providers,443.80,BUCKLAND CARE LTD,
Revenue,Head of ASC & Community Wellbeing,5105615697,25.02.2015,Elderly Frail Nursing Island,Charges from Independent Providers,"2,780.40",BUCKLAND CARE LTD,
Revenue,Head of ASC & Community Wellbeing,5105615697,25.02.2015,Funded Nursing Care Island,Charges from Independent Providers,443.80,BUCKLAND CARE LTD,
Revenue,Head of ASC & Community Wellbeing,5105615697,25.02.2015,Elderly Frail Nursing Island,Charges from Independent Providers,"2,780.40",BUCKLAND CARE LTD,
Revenue,Head of ASC & Community Wellbeing,5105615697,25.02.2015,Elderly Frail Nursing Island,Charges from Independent Providers,"2,780.40",BUCKLAND CARE LTD,
Revenue,Head of ASC & Community Wellbeing,5105614242,18.02.2015,Physical Disability Nursing Island,Charges from Independent Providers,"4,567.80",BUCKLAND CARE LTD,
Revenue,Head of ASC & Community Wellbeing,5105615697,25.02.2015,Elderly Mentally Ill Nursing Island,Charges from Independent Providers,"2,780.40",BUCKLAND CARE LTD,
Revenue,Head of ASC & Community Wellbeing,5105615697,25.02.2015,Funded Nursing Care Island,Charges from Independent Providers,443.80,BUCKLAND CARE LTD,
Revenue,Head of ASC & Community Wellbeing,5105615697,25.02.2015,Elderly Mentally Ill Nursing Island,Charges from Independent Providers,"2,780.40",BUCKLAND CARE LTD,
Revenue,Head of ASC & Community Wellbeing,5105615697,25.02.2015,Funded Nursing Care Island,Charges from Independent Providers,443.80,BUCKLAND CARE LTD,
Revenue,Head of ASC & Community Wellbeing,5105612871,18.02.2015,Elderly Frail Nursing Island,Charges from Independent Providers,496.50,BUCKLAND CARE LTD,
Revenue,Head of ASC & Community Wellbeing,5105612871,18.02.2015,Elderly Frail Nursing Island,Charges from Independent Providers,"2,780.40",BUCKLAND CARE LTD,
Revenue,Head of ASC & Community Wellbeing,5105615697,25.02.2015,PARTRIDGE Elsie - Inglefield NH,Order Settlement to Bal Sht GL,"2,336.60",BUCKLAND CARE LTD,
Revenue,Head of ASC & Community Wellbeing,5105615697,25.02.2015,CHURCH Joan - Inglefield NH,Order Settlement to Bal Sht GL,"2,336.60",BUCKLAND CARE LTD,
Revenue,Head of ASC & Community Wellbeing,5105615697,25.02.2015,Elderly Mentally Ill Nursing Island,Regular Respite Care,"2,780.40",BUCKLAND CARE LTD,
Revenue,Head of ASC & Community Wellbeing,5105614897,27.02.2015,Plean Dene,Consumable Cleaning Materials,200.16,BUNZL CLEANING & HYGIENE SUPPLIES LTD,
Revenue,Head of ASC & Community Wellbeing,5105616005,25.02.2015,Elderly Frail Nursing Mainland,Charges from Independent Providers,"1,841.84",BUPA CARE HOME (BNH) LTD,
Revenue,Head of Finance & S151 Officer,5105613055,11.02.2015,Project Manager Waste Strategy,Consultants Fees,"4,784.60",BURGES SALMON LLP,
Capital,Head of HR & Organisational Change,5105613842,18.02.2015,Management of Asbestos,Payment to Contractors - Capital,"2,100.00",C & J GROUND MAINTENANCE,
Revenue,Head of Economy & Tourism,5105614901,20.02.2015,Properties  - Other Properties,Grounds Maintenance,980.00,C & J GROUND MAINTENANCE,
Revenue,Head of ASC & Community Wellbeing,5105615841,25.02.2015,Learning Disability Personal Budgets,Payments for Self Directed Support,970.88,REDACTED PERSONAL DATA,
Revenue,Director of Childrens Services,5105616854,27.02.2015,In-house Fostering,Boarding Out Allowances,16.50,REDACTED PERSONAL DATA,
Revenue,Director of Childrens Services,5105613446,13.02.2015,In-house Fostering,Boarding Out Allowances,16.50,REDACTED PERSONAL DATA,
Revenue,Director of Childrens Services,5105612759,06.02.2015,In-house Fostering,Boarding Out Allowances,16.50,REDACTED PERSONAL DATA,
Revenue,Director of Childrens Services,5105615116,20.02.2015,In-house Fostering,Boarding Out Allowances,16.50,REDACTED PERSONAL DATA,
Revenue,Director of Childrens Services,5105614739,18.02.2015,Direct Payments Children & Families,Direct Payments,190.00,REDACTED PERSONAL DATA,
Revenue,Director of Childrens Services,5105612820,06.02.2015,Direct Payments Children & Families,Direct Payments,114.00,REDACTED PERSONAL DATA,
Revenue,Head of ASC & Community Wellbeing,5105615816,25.02.2015,Learning Disability Personal Budgets,Payments for Self Directed Support,483.60,REDACTED PERSONAL DATA,
Revenue,Head of ASC & Community Wellbeing,5105615882,25.02.2015,Elderly Frail Personal Budgets,Payments for Self Directed Support,554.24,REDACTED PERSONAL DATA,
Revenue,Head of ASC & Community Wellbeing,5105616167,25.02.2015,Physical Disability Personal Budgets,Payments for Self Directed Support,"1,474.32",REDACTED PERSONAL DATA,
Revenue,Head of ASC & Community Wellbeing,5105615346,20.02.2015,Physical Disability Personal Budgets,Payments for Self Directed Support,"2,948.64",REDACTED PERSONAL DATA,
Revenue,Director of Childrens Services,5105612736,06.02.2015,Children placed with Family&Friends,Boarding Out Allowances,278.50,REDACTED PERSONAL DATA,
Revenue,Director of Childrens Services,5105613424,13.02.2015,Children placed with Family&Friends,Boarding Out Allowances,278.50,REDACTED PERSONAL DATA,
Revenue,Director of Childrens Services,5105615090,20.02.2015,Children placed with Family&Friends,Boarding Out Allowances,278.50,REDACTED PERSONAL DATA,
Revenue,Director of Childrens Services,5105616832,27.02.2015,Children placed with Family&Friends,Boarding Out Allowances,278.50,REDACTED PERSONAL DATA,
Revenue,Director of Childrens Services,5105616810,27.02.2015,Special Guardianship Order Costs,Support Children,125.79,REDACTED PERSONAL DATA,
Revenue,Director of Childrens Services,5105613403,13.02.2015,Special Guardianship Order Costs,Support Children,125.79,REDACTED PERSONAL DATA,
Revenue,Director of Childrens Services,5105612714,06.02.2015,Special Guardianship Order Costs,Support Children,125.79,REDACTED PERSONAL DATA,
Revenue,Director of Childrens Services,5105615040,20.02.2015,Special Guardianship Order Costs,Support Children,125.79,REDACTED PERSONAL DATA,
Revenue,Head of Economy & Tourism,5105615291,27.02.2015,Environment officers,Operational Equipment,72.89,C BREWER & SONS LTD,
Revenue,Head of ASC & Community Wellbeing,5105615292,25.02.2015,Adelaide Resource Centre,Maintenance of Operational Equipment,67.52,C BREWER & SONS LTD,
Revenue,Head of ASC & Community Wellbeing,5105615293,25.02.2015,Adelaide Resource Centre,Maintenance of Operational Equipment,217.33,C BREWER & SONS LTD,
Revenue,Head of ASC & Community Wellbeing,5105615289,27.02.2015,Adelaide Resource Centre,Fixtures and Fittings,162.06,C BREWER & SONS LTD,
Revenue,Director of Childrens Services,5105616861,27.02.2015,Children placed with Family&Friends,Boarding Out Allowances,140.33,REDACTED PERSONAL DATA,
Revenue,Director of Childrens Services,5105615124,20.02.2015,Children placed with Family&Friends,Boarding Out Allowances,140.33,REDACTED PERSONAL DATA,
Revenue,Director of Childrens Services,5105613453,13.02.2015,Children placed with Family&Friends,Boarding Out Allowances,140.33,REDACTED PERSONAL DATA,
Revenue,Director of Childrens Services,5105612766,06.02.2015,Children placed with Family&Friends,Boarding Out Allowances,140.33,REDACTED PERSONAL DATA,
Revenue,Head of ASC & Community Wellbeing,5105615765,25.02.2015,Learning Disability Personal Budgets,Payments for Self Directed Support,697.92,REDACTED PERSONAL DATA,
Revenue,Head of ASC & Community Wellbeing,5105616261,25.02.2015,Transitions Team Personal Budgets,Payments for Self Directed Support,245.00,REDACTED PERSONAL DATA,
Revenue,Head of ASC & Community Wellbeing,5105616022,25.02.2015,Learning Disability Personal Budgets,Payments for Self Directed Support,900.00,REDACTED PERSONAL DATA,
Revenue,Head of ASC & Community Wellbeing,5105615821,25.02.2015,Learning Disability Personal Budgets,Payments for Self Directed Support,"1,443.36",REDACTED PERSONAL DATA,
Revenue,Head of ASC & Community Wellbeing,5105615752,25.02.2015,Physical Disability Direct Payments,Direct Payments,817.52,REDACTED PERSONAL DATA,
Revenue,Head of ASC & Community Wellbeing,5105615723,25.02.2015,Learning Disability Personal Budgets,Payments for Self Directed Support,846.96,REDACTED PERSONAL DATA,
Revenue,Head of ASC & Community Wellbeing,5105616085,25.02.2015,Learning Disability Personal Budgets,Payments for Self Directed Support,292.00,REDACTED PERSONAL DATA,
Revenue,Head of ASC & Community Wellbeing,5105616060,25.02.2015,Learning Disability Personal Budgets,Payments for Self Directed Support,"1,220.00",REDACTED PERSONAL DATA,
Revenue,Director of Childrens Services,5105615102,20.02.2015,Adoption Costs,Support Children,125.79,REDACTED PERSONAL DATA,
Revenue,Director of Childrens Services,5105613434,13.02.2015,Adoption Costs,Support Children,125.79,REDACTED PERSONAL DATA,
Revenue,Director of Childrens Services,5105612746,06.02.2015,Adoption Costs,Support Children,125.79,REDACTED PERSONAL DATA,
Revenue,Director of Childrens Services,5105616842,27.02.2015,Adoption Costs,Support Children,125.79,REDACTED PERSONAL DATA,
Revenue,Director of Childrens Services,5105616842,27.02.2015,Adoption Costs,Support Children,132.69,REDACTED PERSONAL DATA,
Revenue,Director of Childrens Services,5105612746,06.02.2015,Adoption Costs,Support Children,132.69,REDACTED PERSONAL DATA,
Revenue,Director of Childrens Services,5105613434,13.02.2015,Adoption Costs,Support Children,132.69,REDACTED PERSONAL DATA,
Revenue,Director of Childrens Services,5105615102,20.02.2015,Adoption Costs,Support Children,132.69,REDACTED PERSONAL DATA,
Revenue,Head of ASC & Community Wellbeing,5105615935,25.02.2015,Learning Disability Personal Budgets,Payments for Self Directed Support,356.00,REDACTED PERSONAL DATA,
Revenue,Head of Exchequer Services,5105615089,20.02.2015,Staff Benefits,Payment to Private Contractors,166.50,REDACTED PERSONAL DATA,
Revenue,Director of Childrens Services,5105612796,06.02.2015,Children placed with Family&Friends,Boarding Out Allowances,199.00,REDACTED PERSONAL DATA,
Revenue,Director of Childrens Services,5105613483,13.02.2015,Children placed with Family&Friends,Boarding Out Allowances,199.00,REDACTED PERSONAL DATA,
Revenue,Director of Childrens Services,5105615154,20.02.2015,Children placed with Family&Friends,Boarding Out Allowances,199.00,REDACTED PERSONAL DATA,
Revenue,Director of Childrens Services,5105616889,27.02.2015,Children placed with Family&Friends,Boarding Out Allowances,199.00,REDACTED PERSONAL DATA,
Revenue,Director of Childrens Services,5105613417,13.02.2015,Special Guardianship Order Costs,Support Children,125.79,REDACTED PERSONAL DATA,
Revenue,Director of Childrens Services,5105612728,06.02.2015,Special Guardianship Order Costs,Support Children,125.79,REDACTED PERSONAL DATA,
Revenue,Director of Childrens Services,5105615082,20.02.2015,Special Guardianship Order Costs,Support Children,125.79,REDACTED PERSONAL DATA,
Revenue,Director of Childrens Services,5105616825,27.02.2015,Special Guardianship Order Costs,Support Children,125.79,REDACTED PERSONAL DATA,
Revenue,Director of Childrens Services,5105616856,27.02.2015,In-house Fostering,Boarding Out Allowances,199.00,REDACTED PERSONAL DATA,
Revenue,Director of Childrens Services,5105615118,20.02.2015,In-house Fostering,Boarding Out Allowances,199.00,REDACTED PERSONAL DATA,
Revenue,Director of Childrens Services,5105612761,06.02.2015,In-house Fostering,Boarding Out Allowances,199.00,REDACTED PERSONAL DATA,
Revenue,Director of Childrens Services,5105613448,13.02.2015,In-house Fostering,Boarding Out Allowances,199.00,REDACTED PERSONAL DATA,
Revenue,Director of Childrens Services,5105613448,13.02.2015,In-house Fostering,Boarding Out Allowances,159.85,REDACTED PERSONAL DATA,
Revenue,Director of Childrens Services,5105612761,06.02.2015,In-house Fostering,Boarding Out Allowances,159.85,REDACTED PERSONAL DATA,
Revenue,Director of Childrens Services,5105615118,20.02.2015,In-house Fostering,Boarding Out Allowances,159.85,REDACTED PERSONAL DATA,
Revenue,Director of Childrens Services,5105616856,27.02.2015,In-house Fostering,Boarding Out Allowances,159.85,REDACTED PERSONAL DATA,
Revenue,Director of Childrens Services,5105614727,18.02.2015,Direct Payments Children & Families,Direct Payments,209.00,REDACTED PERSONAL DATA,
Revenue,Head of ASC & Community Wellbeing,5105615795,25.02.2015,Learning Disability Personal Budgets,Payments for Self Directed Support,"1,411.04",REDACTED PERSONAL DATA,
Revenue,Head of ASC & Community Wellbeing,5105616106,25.02.2015,Elderly Frail Personal Budgets,Payments for Self Directed Support,"1,286.60",REDACTED PERSONAL DATA,
Revenue,Head of ASC & Community Wellbeing,5105616023,25.02.2015,Learning Disability Personal Budgets,Payments for Self Directed Support,"1,131.64",REDACTED PERSONAL DATA,
Revenue,Director of Childrens Services,5105616814,27.02.2015,Adoption Costs,Support Children,168.39,REDACTED PERSONAL DATA,
Revenue,Director of Childrens Services,5105612718,06.02.2015,Adoption Costs,Support Children,168.39,REDACTED PERSONAL DATA,
Revenue,Director of Childrens Services,5105613407,13.02.2015,Adoption Costs,Support Children,168.39,REDACTED PERSONAL DATA,
Revenue,Director of Childrens Services,5105615044,20.02.2015,Adoption Costs,Support Children,168.39,REDACTED PERSONAL DATA,
Revenue,Director of Childrens Services,5105615044,20.02.2015,Adoption Costs,Support Children,168.39,REDACTED PERSONAL DATA,
Revenue,Director of Childrens Services,5105613407,13.02.2015,Adoption Costs,Support Children,168.39,REDACTED PERSONAL DATA,
Revenue,Director of Childrens Services,5105612718,06.02.2015,Adoption Costs,Support Children,168.39,REDACTED PERSONAL DATA,
Revenue,Director of Childrens Services,5105616814,27.02.2015,Adoption Costs,Support Children,168.39,REDACTED PERSONAL DATA,
Revenue,Head of ASC & Community Wellbeing,5105615966,25.02.2015,Learning Disability Personal Budgets,Payments for Self Directed Support,672.28,REDACTED PERSONAL DATA,
Revenue,Director of Childrens Services,5105616880,27.02.2015,Special Guardianship Order Costs,Support Children,116.80,REDACTED PERSONAL DATA,
Revenue,Director of Childrens Services,5105613472,13.02.2015,Special Guardianship Order Costs,Support Children,116.80,REDACTED PERSONAL DATA,
Revenue,Director of Childrens Services,5105612785,06.02.2015,Special Guardianship Order Costs,Support Children,116.80,REDACTED PERSONAL DATA,
Revenue,Director of Childrens Services,5105615143,20.02.2015,Special Guardianship Order Costs,Support Children,116.80,REDACTED PERSONAL DATA,
Revenue,Head of ASC & Community Wellbeing,5105615756,25.02.2015,Learning Disability Personal Budgets,Payments for Self Directed Support,754.00,REDACTED PERSONAL DATA,
Revenue,Head of ASC & Community Wellbeing,5105616122,25.02.2015,Learning Disability Personal Budgets,Payments for Self Directed Support,326.16,REDACTED PERSONAL DATA,
Revenue,Head of ASC & Community Wellbeing,5105616318,25.02.2015,Learning Disability Direct Payments,Direct Payments,"6,102.60",REDACTED PERSONAL DATA,
Revenue,Head of ASC & Community Wellbeing,5105616001,25.02.2015,Learning Disability Personal Budgets,Payments for Self Directed Support,"6,220.04",REDACTED PERSONAL DATA,
Revenue,Director of Childrens Services,5105613400,13.02.2015,In-house Fostering,Boarding Out Allowances,10.00,REDACTED PERSONAL DATA,
Revenue,Director of Childrens Services,5105612711,06.02.2015,In-house Fostering,Boarding Out Allowances,10.00,REDACTED PERSONAL DATA,
Revenue,Director of Childrens Services,5105615037,20.02.2015,In-house Fostering,Boarding Out Allowances,10.00,REDACTED PERSONAL DATA,
Revenue,Director of Childrens Services,5105616807,27.02.2015,In-house Fostering,Boarding Out Allowances,10.00,REDACTED PERSONAL DATA,
Revenue,Director of Childrens Services,5105615037,20.02.2015,In-house Fostering,Boarding Out Allowances,25.00,REDACTED PERSONAL DATA,
Revenue,Director of Childrens Services,5105613400,13.02.2015,In-house Fostering,Boarding Out Allowances,25.00,REDACTED PERSONAL DATA,
Revenue,Director of Childrens Services,5105616807,27.02.2015,In-house Fostering,Boarding Out Allowances,25.00,REDACTED PERSONAL DATA,
Revenue,Director of Childrens Services,5105616807,27.02.2015,In-house Fostering,Boarding Out Allowances,245.00,REDACTED PERSONAL DATA,
Revenue,Director of Childrens Services,5105612711,06.02.2015,In-house Fostering,Boarding Out Allowances,245.00,REDACTED PERSONAL DATA,
Revenue,Director of Childrens Services,5105613400,13.02.2015,In-house Fostering,Boarding Out Allowances,245.00,REDACTED PERSONAL DATA,
Revenue,Director of Childrens Services,5105615037,20.02.2015,In-house Fostering,Boarding Out Allowances,245.00,REDACTED PERSONAL DATA,
Revenue,Director of Childrens Services,5105615037,20.02.2015,In-house Fostering,Boarding Out Allowances,199.00,REDACTED PERSONAL DATA,
Revenue,Director of Childrens Services,5105613400,13.02.2015,In-house Fostering,Boarding Out Allowances,199.00,REDACTED PERSONAL DATA,
Revenue,Director of Childrens Services,5105612711,06.02.2015,In-house Fostering,Boarding Out Allowances,199.00,REDACTED PERSONAL DATA,
Revenue,Director of Childrens Services,5105616807,27.02.2015,In-house Fostering,Boarding Out Allowances,199.00,REDACTED PERSONAL DATA,
Revenue,Director of Childrens Services,5105616807,27.02.2015,In-house Fostering,Boarding Out Allowances,242.08,REDACTED PERSONAL DATA,
Revenue,Director of Childrens Services,5105615037,20.02.2015,In-house Fostering,Boarding Out Allowances,242.08,REDACTED PERSONAL DATA,
Revenue,Director of Childrens Services,5105613400,13.02.2015,In-house Fostering,Boarding Out Allowances,242.08,REDACTED PERSONAL DATA,
Revenue,Director of Childrens Services,5105612711,06.02.2015,In-house Fostering,Boarding Out Allowances,242.08,REDACTED PERSONAL DATA,
Revenue,Director of Childrens Services,5105612711,06.02.2015,In-house Fostering,Boarding Out Allowances,200.00,REDACTED PERSONAL DATA,
Revenue,Director of Childrens Services,5105613400,13.02.2015,In-house Fostering,Boarding Out Allowances,200.00,REDACTED PERSONAL DATA,
Revenue,Director of Childrens Services,5105615037,20.02.2015,In-house Fostering,Boarding Out Allowances,175.00,REDACTED PERSONAL DATA,
Revenue,Director of Childrens Services,5105616807,27.02.2015,In-house Fostering,Boarding Out Allowances,175.00,REDACTED PERSONAL DATA,
Revenue,Head of ASC & Community Wellbeing,5105616156,25.02.2015,Physical Disability Personal Budgets,Payments for Self Directed Support,160.00,REDACTED PERSONAL DATA,
Revenue,Head of ASC & Community Wellbeing,5105616116,25.02.2015,Mental Health Personal Budgets,Payments for Self Directed Support,808.00,REDACTED PERSONAL DATA,
Revenue,Director of Childrens Services,5105614736,18.02.2015,Direct Payments Children & Families,Direct Payments,247.00,REDACTED PERSONAL DATA,
Revenue,Director of Childrens Services,5105612687,06.02.2015,In-house Fostering,Boarding Out Allowances,15.00,REDACTED PERSONAL DATA,
